Workbook

Sheet Ясли с 1-3 лет
G2: Приложение № 2 к Муниципальному контракту № _________ от «_____» _________ 2025 г
B4: УТВЕРЖДАЮ: | H4: СОГЛАСОВАНО:
B5: Директор ООО «Нигма» | H5: Руководитель образования ___________________________
B7: __________________ Л.Р. Гильфанова | H7: ____________________________________________________
A9: Двухнедельное меню для организации питания детей в возрасте с 1 до 3 лет и с 3-7 лет г. Агрыз Агрызского муниципального района РТ с 12 часовым пребыванием в 2025 году.
B10: ="20 января 2025 г." -> 20 января 2025 г.
D12: ПЕРИОД: ЛЕТО
A15: Но-мер рец. | B15: Прием пищи, наименование изделий (блюд) | C15: Вы-ход, г | E15: Белки, г | G15: Жиры, г | I15: Угле-воды, г | K15: ЭЦ, ккал | M15: НЖК | N15: ПНЖК | O15: МЖК | P15: Холестерин | Q15: МД | R15: Крахмал | S15: ПВ | T15: РПВ | U15: НПВ | V15: Органические кислоты | W15: Зола | X15: Na | Y15: K | Z15: Минеральные элементы, мг | AD15: Витамины, мг | AL15: Вита-мин С, мг | AM15: Алкоголь, г | AN15: Валин | AO15: изолейцин | AP15: лейцин | AQ15: лизин | AR15: метионин | AS15: треонин | AT15: триптофан | AU15: фенилаланин | AV15: аланин | AW15: аргинин | AX15: аспарагиновая | AY15: гистидин | AZ15: глицин | BA15: глутаминовая | BB15: оксипролин | BC15: пролин | BD15: серин | BE15: тирозин | BF15: цистин | BG15: масляная | BH15: капроновая | BI15: каприловая | BJ15: каприновая | BK15: лауриновая | BL15: миристиновая | BM15: пентадекановая | BN15: пальмитиновая | BO15: маргариновая | BP15: стеариновая | BQ15: арахиновая | BR15: бегеновая | BS15: лигноцериновая | BT15: миристолеиновая | BU15: пальмитолеиновая | BV15: олеиновая | BW15: гадолеиновая | BX15: эруковая | BY15: линолевая | BZ15: линоленовая | CA15: арахидоновая | CB15: Аденин | CC15: Гуанин | CD15: Ph | CH15: Витамин С, мг
C16: дет. сад | D16: ясли | E16: дет. сад | F16: ясли | G16: дет. сад | H16: ясли | I16: дет. сад | J16: ясли | K16: дет. сад | L16: ясли | Z16: Ca | AA16: Mg | AB16: P | AC16: Fe | AD16: А,мг | AE16: B | AF16: РЭ,мкг | AG16: ТЭ,мг | AH16: В1 | AI16: В2 | AJ16: РР | AK16: НЭ | CH16: дет. сад | CI16: ясли
B17: 1 НЕДЕЛЯ
B18: 1 ДЕНЬ
B19: Завтрак
A20: 311/04 | B20: Каша молочная Дружба с маслом сливочным | C20: 180/5 | D20: ="150/5" -> 150/5 | E20: 5.7 | F20: 4.74 | G20: 7.8 | H20: 7.16 | I20: 31.1 | J20: 25.98 | K20: 216 | L20: 186.014757 | M20: 4.31 | N20: 0.13 | O20: 4.24 | P20: 0 | Q20: 7.61 | R20: 17.52 | S20: 0.86 | T20: 0 | U20: 0 | V20: 0.08 | W20: 1.39 | X20: 262.26 | Y20: 156.02 | Z20: 97.76 | AA20: 27.95 | AB20: 115.4 | AC20: 0.62 | AD20: 44.98 | AE20: 28.67 | AF20: 50.13 | AG20: 0.14 | AH20: 0.09 | AI20: 0.12 | AJ20: 0.43 | AK20: 1.72 | AL20: 0.4 | AM20: 0 | AN20: 119.78 | AO20: 103.27 | AP20: 300.76 | AQ20: 74.31 | AR20: 62.88 | AS20: 88.52 | AT20: 39.57 | AU20: 130.07 | AV20: 204.99 | AW20: 123.25 | AX20: 160.85 | AY20: 59.31 | AZ20: 82.48 | BA20: 471.91 | BB20: 0 | BC20: 159.38 | BD20: 143.41 | BE20: 95.67 | BF20: 42.87 | BG20: 0.19 | BH20: 0.04 | BI20: 0.04 | BJ20: 0.09 | BK20: 0.12 | BL20: 0.39 | BM20: 0 | BN20: 1.29 | BO20: 0 | BP20: 0.39 | BQ20: 0 | BR20: 0 | BS20: 0 | BT20: 0.04 | BU20: 0.14 | BV20: 1.25 | BW20: 0 | BX20: 0 | BY20: 0.33 | BZ20: 0.01 | CA20: 0 | CB20: 0 | CC20: 0 | CD20: 0 | CE20: 124.6 | CF20: 49.76 | CH20: 0.5 | CI20: 0.4
A21: ="32/10" -> 32/10 | B21: Кофейный напиток с молоком | C21: 180 | D21: ="150" -> 150 | E21: 3 | F21: 2.5 | G21: 2.93 | H21: 2.44 | I21: 13.93 | J21: 11.6 | K21: 91.54 | L21: 76.28116667 | M21: 1.5 | N21: 0 | O21: 0 | P21: 0 | Q21: 11.6 | R21: 0 | S21: 0 | T21: 0 | U21: 0 | V21: 0.08 | W21: 0.53 | X21: 37.21 | Y21: 108.65 | Z21: 87.54 | AA21: 9.98 | AB21: 62.78 | AC21: 0.1 | AD21: 15 | AE21: 6.75 | AF21: 16.5 | AG21: 0 | AH21: 0.03 | AI21: 0.1 | AJ21: 0.06 | AK21: 0.6 | AL21: 0.39 | AM21: 0 | AN21: 119.81 | AO21: 118.34 | AP21: 202.86 | AQ21: 163.17 | AR21: 54.39 | AS21: 95.55 | AT21: 31.61 | AU21: 107.31 | AV21: 0 | AW21: 0 | AX21: 0 | AY21: 0 | AZ21: 0 | BA21: 0 | BB21: 0 | BC21: 0 | BD21: 0 | BE21: 135.24 | BF21: 19.11 | BG21: 0 | BH21: 0 | BI21: 0 | BJ21: 0 | BK21: 0 | BL21: 0 | BM21: 0 | BN21: 0 | BO21: 0 | BP21: 0 | BQ21: 0 | BR21: 0 | BS21: 0 | BT21: 0 | BU21: 0 | BV21: 0 | BW21: 0 | BX21: 0 | BY21: 0 | BZ21: 0 | CA21: 0 | CB21: 0 | CC21: 0 | CD21: 0 | CE21: 156.48 | CF21: 16.13 | CH21: 0.5 | CI21: 0.4
A22: ="1/13" -> 1/13 | B22: Бутерброд с маслом | C22: 30/5 | D22: ="25/5" -> 25/5 | E22: 2.32 | F22: 1.94 | G22: 3.9 | H22: 3.85 | I22: 14.14 | J22: 11.79 | K22: 102.04 | L22: 90.542 | M22: 2.36 | N22: 0.11 | O22: 0 | P22: 0 | Q22: 0.34 | R22: 11.4 | S22: 0.05 | T22: 0 | U22: 0 | V22: 0 | W22: 0.52 | X22: 0.75 | Y22: 1.5 | Z22: 1.2 | AA22: 0 | AB22: 1.5 | AC22: 0.01 | AD22: 20 | AE22: 15 | AF22: 22.5 | AG22: 0.05 | AH22: 0 | AI22: 0.01 | AJ22: 0.01 | AK22: 0.01 | AL22: 0 | AM22: 0 | AN22: 93.85 | AO22: 97.55 | AP22: 150.05 | AQ22: 50.75 | AR22: 29.6 | AS22: 59.85 | AT22: 23.9 | AU22: 106.1 | AV22: 66.3 | AW22: 91.3 | AX22: 77.1 | AY22: 40.75 | AZ22: 70.2 | BA22: 584.1 | BB22: 0 | BC22: 190.4 | BD22: 84.45 | BE22: 56.35 | BF22: 43.5 | BG22: 0.13 | BH22: 0.06 | BI22: 0.03 | BJ22: 0.08 | BK22: 0.09 | BL22: 0.4 | BM22: 0 | BN22: 1.13 | BO22: 0 | BP22: 0.34 | BQ22: 0 | BR22: 0 | BS22: 0 | BT22: 0.08 | BU22: 0.12 | BV22: 0.92 | BW22: 0 | BX22: 0 | BY22: 0.14 | BZ22: 0.01 | CA22: 0 | CB22: 0 | CC22: 0 | CD22: 0 | CE22: 11.03 | CF22: 22.5 | CH22: 0 | CI22: 0
B23: Итого за 'Завтрак' | C23: 400 | D23: 335 | E23: =SUM(E20:E22) -> 11.02 | F23: 9.18 | G23: 14.63 | H23: 13.45 | I23: 59.17 | J23: 49.37 | K23: 409.58 | L23: 352.8379237 | M23: 8.17 | N23: 0.24 | O23: 4.24 | P23: 0 | Q23: 19.55 | R23: 28.92 | S23: 0.91 | T23: 0 | U23: 0 | V23: 0.16 | W23: 2.44 | X23: 300.22 | Y23: 266.17 | Z23: 186.5 | AA23: 37.93 | AB23: 179.68 | AC23: 0.73 | AD23: 79.98 | AE23: 50.42 | AF23: 89.13 | AG23: 0.19 | AH23: 0.12 | AI23: 0.23 | AJ23: 0.5 | AK23: =SUM(AK20:AK22) -> 2.33 | AL23: 0.79 | AM23: 0 | AN23: 333.44 | AO23: 319.16 | AP23: 653.67 | AQ23: 288.23 | AR23: 146.87 | AS23: 243.92 | AT23: 95.08 | AU23: 343.48 | AV23: 271.29 | AW23: 214.55 | AX23: 237.95 | AY23: 100.06 | AZ23: 152.68 | BA23: 1056.01 | BB23: 0 | BC23: 349.78 | BD23: 227.86 | BE23: 287.26 | BF23: 105.48 | BG23: 0.32 | BH23: 0.1 | BI23: 0.07 | BJ23: 0.17 | BK23: 0.21 | BL23: 0.79 | BM23: 0 | BN23: 2.42 | BO23: 0 | BP23: 0.73 | BQ23: =SUM(BQ20:BQ22) -> 0 | BR23: 0 | BS23: 0 | BT23: 0.12 | BU23: 0.26 | BV23: 2.17 | BW23: 0 | BX23: 0 | BY23: 0.47 | BZ23: 0.02 | CA23: 0 | CB23: 0 | CC23: 0 | CD23: 0 | CE23: 292.11 | CF23: 88.39 | CG23: 0 | CH23: 1 | CI23: 0.8
B24: 10:00
A25: ="-" -> - | B25: Сок | C25: 100 | D25: ="100" -> 100 | E25: 0.5 | F25: 0.5 | G25: 0.1 | H25: 0.1 | I25: 10.3 | J25: 10.3 | K25: 43.24 | L25: 43.24 | M25: 0 | N25: 0 | O25: 0 | P25: 0 | Q25: 9.9 | R25: 0.2 | S25: 0.2 | T25: 0 | U25: 0 | V25: 0.5 | W25: 0.3 | X25: 6 | Y25: 120 | Z25: 7 | AA25: 4 | AB25: 7 | AC25: 1.4 | AD25: 0 | AE25: 0 | AF25: 0 | AG25: 0.1 | AH25: 0.01 | AI25: 0.01 | AJ25: 0.1 | AK25: 0.2 | AL25: 2 | AM25: 0.2 | AN25: 8 | AO25: 10 | AP25: 14 | AQ25: 14 | AR25: 2 | AS25: 8 | AT25: 2 | AU25: 7 | AV25: 13 | AW25: 8 | AX25: 58 | AY25: 5 | AZ25: 11 | BA25: 32 | BB25: 0 | BC25: 10 | BD25: 12 | BE25: 5 | BF25: 4 | BG25: 0 | BH25: 0 | BI25: 0 | BJ25: 0 | BK25: 0 | BL25: 0 | BM25: 0 | BN25: 0 | BO25: 0 | BP25: 0 | BQ25: 0 | BR25: 0 | BS25: 0 | BT25: 0 | BU25: 0 | BV25: 0 | BW25: 0 | BX25: 0 | BY25: 0 | BZ25: 0 | CA25: 0 | CB25: 0 | CC25: 0 | CD25: 0 | CE25: 88.1 | CF25: 0 | CH25: 2 | CI25: 2
B26: Итого за '10:00' | C26: 100 | D26: 100 | E26: 0.5 | F26: 0.5 | G26: 0.1 | H26: 0.1 | I26: 10.3 | J26: 10.3 | K26: 43.24 | L26: 43.24 | M26: 0 | N26: 0 | O26: 0 | P26: 0 | Q26: 9.9 | R26: 0.2 | S26: 0.2 | T26: 0 | U26: 0 | V26: 0.5 | W26: 0.3 | X26: 6 | Y26: 120 | Z26: 7 | AA26: 4 | AB26: 7 | AC26: 1.4 | AD26: 0 | AE26: 0 | AF26: 0 | AG26: 0.1 | AH26: 0.01 | AI26: 0.01 | AJ26: 0.1 | AK26: 0.2 | AL26: 2 | AM26: 0.2 | AN26: 8 | AO26: 10 | AP26: 14 | AQ26: 14 | AR26: 2 | AS26: 8 | AT26: 2 | AU26: 7 | AV26: 13 | AW26: 8 | AX26: 58 | AY26: 5 | AZ26: 11 | BA26: 32 | BB26: 0 | BC26: 10 | BD26: 12 | BE26: 5 | BF26: 4 | BG26: 0 | BH26: 0 | BI26: 0 | BJ26: 0 | BK26: 0 | BL26: 0 | BM26: 0 | BN26: 0 | BO26: 0 | BP26: 0 | BQ26: 0 | BR26: 0 | BS26: 0 | BT26: 0 | BU26: 0 | BV26: 0 | BW26: 0 | BX26: 0 | BY26: 0 | BZ26: 0 | CA26: 0 | CB26: 0 | CC26: 0 | CD26: 0 | CE26: 88.1 | CF26: 0 | CH26: 2 | CI26: 2
B27: Обед
A28: 71/17 | B28: Огурцы свежие порционно | C28: 50 | D28: ="30" -> 30 | E28: 0.4 | F28: 0.24 | G28: 0.05 | H28: 0.03 | I28: 1.25 | J28: 0.75 | K28: 7 | L28: 4.2 | M28: 0.23 | N28: 1.17 | O28: 0 | P28: 0 | Q28: 2.02 | R28: 0.03 | S28: 0.65 | T28: 0 | U28: 0 | V28: 0.03 | W28: 0.44 | X28: 66.94 | Y28: 67.01 | Z28: 10.22 | AA28: 5.79 | AB28: 11.4 | AC28: 0.37 | AD28: 0 | AE28: 2.47 | AF28: 0.59 | AG28: 0.82 | AH28: 0 | AI28: 0.01 | AJ28: 0.04 | AK28: 0.12 | AL28: 0.58 | AM28: 0 | AN28: 14.64 | AO28: 16.57 | AP28: 18.51 | AQ28: 25.41 | AR28: 5.52 | AS28: 14.64 | AT28: 3.59 | AU28: 12.43 | AV28: 11.05 | AW28: 20.16 | AX28: 90.6 | AY28: 3.87 | AZ28: 10.5 | BA28: 75.69 | BB28: 0 | BC28: 12.98 | BD28: 17.4 | BE28: 13.81 | BF28: 4.14 | BG28: 0 | BH28: 0 | BI28: 0 | BJ28: 0 | BK28: 0 | BL28: 0 | BM28: 0 | BN28: 0.11 | BO28: 0 | BP28: 0.07 | BQ28: 0.01 | BR28: 0.01 | BS28: 0 | BT28: 0 | BU28: 0 | BV28: 0.42 | BW28: 0 | BX28: 0 | BY28: 1.04 | BZ28: 0 | CA28: 0 | CB28: 0 | CC28: 0 | CD28: 0 | CE28: 25.52 | CF28: 0.41 | CH28: 2.45 | CI28: 1.47
A29: ="16/2" -> 16/2 | B29: Суп картофельный с бобовыми с мясными фрикадельками | C29: 180/15 | D29: ="150/15" -> 150/15 | E29: 6.68 | F29: 6.05 | G29: 5.37 | H29: 4.7 | I29: 16 | J29: 13.36 | K29: 135.18 | L29: 116.776344 | M29: 1.7 | N29: 1.95 | O29: 0 | P29: 0 | Q29: 1.92 | R29: 9.41 | S29: 2.03 | T29: 0 | U29: 0 | V29: 0.09 | W29: 1.42 | X29: 164.85 | Y29: 327.35 | Z29: 23.38 | AA29: 25.28 | AB29: 80.29 | AC29: 1.34 | AD29: 1.88 | AE29: 655.29 | AF29: 125.04 | AG29: 1.48 | AH29: 0.12 | AI29: 0.06 | AJ29: 1.11 | AK29: 1.48 | AL29: 2.78 | AM29: 0 | AN29: 296.34 | AO29: 268.88 | AP29: 450.5 | AQ29: 608.01 | AR29: 100.89 | AS29: 242.67 | AT29: 71.58 | AU29: 262.24 | AV29: 301.52 | AW29: 408.6 | AX29: 576.13 | AY29: 171.57 | AZ29: 273.55 | BA29: 942.65 | BB29: 44.31 | BC29: 197.66 | BD29: 239.26 | BE29: 197.43 | BF29: 77.21 | BG29: 0 | BH29: 0 | BI29: 0 | BJ29: 0 | BK29: 0 | BL29: 0 | BM29: 0 | BN29: 0.23 | BO29: 0 | BP29: 0.13 | BQ29: 0.01 | BR29: 0.02 | BS29: 0 | BT29: 0 | BU29: 0 | BV29: 0.79 | BW29: 0 | BX29: 0 | BY29: 1.87 | BZ29: 0.01 | CA29: 0 | CB29: 0 | CC29: 0 | CD29: 0 | CE29: 153.9 | CF29: 111.09 | CH29: 3.3 | CI29: 2.8
A30: 451/04 | B30: Биточки из говядины | C30: 70 | D30: ="50" -> 50 | E30: 9.87 | F30: 7.05 | G30: 7.07 | H30: 5.05 | I30: 11.52 | J30: 8.23 | K30: 148.83 | L30: 106.3076155 | M30: 0.5 | N30: 1.08 | O30: 0.5 | P30: 0 | Q30: 0.31 | R30: 7.37 | S30: 0.55 | T30: 0 | U30: 0 | V30: 0.06 | W30: 0.68 | X30: 64.44 | Y30: 141.29 | Z30: 19.55 | AA30: 14.94 | AB30: 76.53 | AC30: 0.69 | AD30: 2.59 | AE30: 1.72 | AF30: 3.94 | AG30: 0.96 | AH30: 0.03 | AI30: 0.06 | AJ30: 1.31 | AK30: 0.59 | AL30: 0.01 | AM30: 0 | AN30: 0 | AO30: 0 | AP30: 0 | AQ30: 0 | AR30: 0 | AS30: 0 | AT30: 0 | AU30: 0 | AV30: 0 | AW30: 0 | AX30: 0 | AY30: 0 | AZ30: 0 | BA30: 0 | BB30: 0 | BC30: 0 | BD30: 0 | BE30: 0 | BF30: 0 | BG30: 0 | BH30: 0 | BI30: 0 | BJ30: 0 | BK30: 0 | BL30: 0 | BM30: 0 | BN30: 0.1 | BO30: 0 | BP30: 0.06 | BQ30: 0 | BR30: 0.01 | BS30: 0 | BT30: 0 | BU30: 0 | BV30: 0.38 | BW30: 0 | BX30: 0 | BY30: 0.93 | BZ30: 0 | CA30: 0 | CB30: 0 | CC30: 0 | CD30: 0 | CE30: 42.15 | CF30: 2.87 | CH30: 0 | CI30: 0
A31: 534/04 | B31: Капуста тушеная | C31: 130 | D31: ="120" -> 120 | E31: 2.92 | F31: 2.7 | G31: 4.16 | H31: 3.84 | I31: 14.97 | J31: 13.82 | K31: 102.6 | L31: 94.70879064 | M31: 0.53 | N31: 2.73 | O31: 0.53 | P31: 0 | Q31: 10.01 | R31: 1.05 | S31: 2.76 | T31: 0 | U31: 0 | V31: 0.5 | W31: 1.54 | X31: 181.67 | Y31: 398.57 | Z31: 62.25 | AA31: 22.07 | AB31: 43.8 | AC31: 0.86 | AD31: 0 | AE31: 293.88 | AF31: 60.8 | AG31: 2.06 | AH31: 0.04 | AI31: 0.05 | AJ31: 0.85 | AK31: 1.41 | AL31: 25.51 | AM31: 0 | AN31: 82.32 | AO31: 71.25 | AP31: 94.64 | AQ31: 83.1 | AR31: 30.71 | AS31: 63.1 | AT31: 14.46 | AU31: 79.86 | AV31: 97.33 | AW31: 116.22 | AX31: 229.99 | AY31: 39.23 | AZ31: 66.15 | BA31: 402.49 | BB31: 0 | BC31: 90.08 | BD31: 83.78 | BE31: 68.43 | BF31: 28.83 | BG31: 0 | BH31: 0 | BI31: 0 | BJ31: 0 | BK31: 0 | BL31: 0 | BM31: 0 | BN31: 0.23 | BO31: 0 | BP31: 0.15 | BQ31: 0.01 | BR31: 0.03 | BS31: 0 | BT31: 0 | BU31: 0 | BV31: 0.88 | BW31: 0 | BX31: 0 | BY31: 2.49 | BZ31: 0 | CA31: 0 | CB31: 0 | CC31: 0 | CD31: 0 | CE31: 132.78 | CF31: 48.98 | CH31: 27.6 | CI31: 25.5
A32: 6/10 | B32: Напиток из сухофруктов | C32: 180 | D32: ="150" -> 150 | E32: 0.92 | F32: 0.76 | G32: 0.05 | H32: 0.04 | I32: 16.46 | J32: 13.72 | K32: 62.115 | L32: 51.76212 | M32: 0.02 | N32: 0 | O32: 0 | P32: 0 | Q32: 10.72 | R32: 0.43 | S32: 2.57 | T32: 0 | U32: 0 | V32: 0.23 | W32: 0.6 | X32: 2.56 | Y32: 255.09 | Z32: 23.39 | AA32: 14.96 | AB32: 20.37 | AC32: 0.48 | AD32: 0 | AE32: 472.5 | AF32: 87.45 | AG32: 0.83 | AH32: 0.01 | AI32: 0.03 | AJ32: 0.38 | AK32: 0.59 | AL32: 0.24 | AM32: 0 | AN32: 0.01 | AO32: 0.01 | AP32: 0.01 | AQ32: 0.01 | AR32: 0 | AS32: 0.01 | AT32: 0 | AU32: 0.01 | AV32: 0.01 | AW32: 0.01 | AX32: 0.04 | AY32: 0 | AZ32: 0.01 | BA32: 0.02 | BB32: 0 | BC32: 0.01 | BD32: 0.01 | BE32: 0 | BF32: 0 | BG32: 0 | BH32: 0 | BI32: 0 | BJ32: 0 | BK32: 0 | BL32: 0 | BM32: 0 | BN32: 0 | BO32: 0 | BP32: 0 | BQ32: 0 | BR32: 0 | BS32: 0 | BT32: 0 | BU32: 0 | BV32: 0.01 | BW32: 0 | BX32: 0 | BY32: 0 | BZ32: 0 | CA32: 0 | CB32: 0 | CC32: 0 | CD32: 0 | CE32: 160.5 | CF32: 78.75 | CH32: 0.3 | CI32: 0.2
A33: - | B33: Хлеб ржаной | C33: 50 | D33: ="35" -> 35 | E33: 3.3 | F33: 2.31 | G33: 0.6 | H33: 0.42 | I33: 20.85 | J33: 14.6 | K33: 96.69 | L33: 67.683 | M33: 0.07 | N33: 0 | O33: 0 | P33: 0 | Q33: 0.42 | R33: 11.27 | S33: 2.91 | T33: 0 | U33: 0 | V33: 0.35 | W33: 0.88 | X33: 213.5 | Y33: 85.75 | Z33: 12.25 | AA33: 16.45 | AB33: 55.3 | AC33: 1.37 | AD33: 0 | AE33: 1.75 | AF33: 0.35 | AG33: 0.49 | AH33: 0.06 | AI33: 0.03 | AJ33: 0.25 | AK33: 0.7 | AL33: 0 | AM33: 0 | AN33: 112.7 | AO33: 86.8 | AP33: 149.45 | AQ33: 78.05 | AR33: 32.55 | AS33: 69.3 | AT33: 28 | AU33: 129.85 | AV33: 103.95 | AW33: 101.85 | AX33: 162.4 | AY33: 43.4 | AZ33: 108.5 | BA33: 545.65 | BB33: 0 | BC33: 184.1 | BD33: 101.85 | BE33: 63 | BF33: 45.5 | BG33: 0 | BH33: 0 | BI33: 0 | BJ33: 0 | BK33: 0 | BL33: 0 | BM33: 0 | BN33: 0.05 | BO33: 0 | BP33: 0 | BQ33: 0.01 | BR33: 0 | BS33: 0 | BT33: 0 | BU33: 0 | BV33: 0.04 | BW33: 0 | BX33: 0 | BY33: 0.17 | BZ33: 0.03 | CA33: 0 | CB33: 0 | CC33: 0 | CD33: 0 | CE33: 16.45 | CF33: 0.29 | CH33: 0 | CI33: 0
B34: Итого за 'Обед' | C34: 675 | D34: 550 | E34: =SUM(E28:E33) -> 24.09 | F34: =SUM(F28:F33) -> 19.11 | G34: =SUM(G28:G33) -> 17.3 | H34: 14.08 | I34: 81.05 | J34: 64.48 | K34: 552.415 | L34: 441.4378702 | M34: 3.05 | N34: 6.93 | O34: 1.03 | P34: 0 | Q34: 25.4 | R34: 29.56 | S34: 11.47 | T34: 0 | U34: 0 | V34: 1.26 | W34: 5.56 | X34: 693.96 | Y34: 1275.06 | Z34: 151.04 | AA34: 99.49 | AB34: 287.69 | AC34: 5.11 | AD34: 4.47 | AE34: 1427.61 | AF34: 278.17 | AG34: 6.64 | AH34: 0.26 | AI34: 0.24 | AJ34: 3.94 | AK34: 4.89 | AL34: 29.12 | AM34: 0 | AN34: 506.01 | AO34: 443.51 | AP34: 713.11 | AQ34: 794.58 | AR34: 169.67 | AS34: 389.72 | AT34: 117.63 | AU34: 484.39 | AV34: 513.86 | AW34: 646.84 | AX34: 1059.16 | AY34: 258.07 | AZ34: 458.71 | BA34: 1966.5 | BB34: 44.31 | BC34: 484.83 | BD34: 442.3 | BE34: 342.67 | BF34: 155.68 | BG34: 0 | BH34: 0 | BI34: 0 | BJ34: 0 | BK34: 0 | BL34: 0 | BM34: 0 | BN34: 0.72 | BO34: 0 | BP34: 0.41 | BQ34: 0.04 | BR34: 0.07 | BS34: =SUM(BS28:BS33) -> 0 | BT34: 0 | BU34: 0 | BV34: 2.52 | BW34: 0 | BX34: 0 | BY34: 6.5 | BZ34: 0.04 | CA34: 0 | CB34: 0 | CC34: 0 | CD34: 0 | CE34: 531.3 | CF34: 242.39 | CG34: 0 | CH34: 33.65 | CI34: 29.97
B35: Полдник
A36: 297 | B36: Кефир | C36: 130 | D36: 110 | E36: 3.77 | F36: 3.19 | G36: 4.16 | H36: 3.52 | I36: 5.2 | J36: 4.4 | K36: 75.79 | L36: 64.13 | M36: 2 | N36: 0 | O36: 0 | P36: 0 | Q36: 4 | R36: 0 | S36: 0 | T36: 0 | U36: 0 | V36: 0.9 | W36: 0.7 | X36: 50 | Y36: 146 | Z36: 120 | AA36: 14 | AB36: 95 | AC36: 0.1 | AD36: 20 | AE36: 10 | AF36: 22 | AG36: 0 | AH36: 0.03 | AI36: 0.17 | AJ36: 0.1 | AK36: 0.8 | AL36: 0.7 | AM36: 0 | AN36: 135 | AO36: 160 | AP36: 277 | AQ36: 240 | AR36: 71 | AS36: 110 | AT36: 43 | AU36: 141 | AV36: 106 | AW36: 105 | AX36: 216 | AY36: 78 | AZ36: 46 | BA36: 506 | BB36: 0 | BC36: 272 | BD36: 185 | BE36: 155 | BF36: 20 | BG36: 0.1 | BH36: 0.07 | BI36: 0.04 | BJ36: 0.08 | BK36: 0.09 | BL36: 0.45 | BM36: 0.03 | BN36: 0.56 | BO36: 0.02 | BP36: 0.31 | BQ36: 0.04 | BR36: 0 | BS36: 0 | BT36: 0.04 | BU36: 0.08 | BV36: 0.69 | BW36: 0.01 | BX36: 0 | BY36: 0.02 | BZ36: 0.03 | CA36: 0.08 | CB36: 0 | CC36: 0 | CD36: 0 | CE36: 88.3 | CF36: 21.67 | CH36: 0.91 | CI36: 0.77
B37: Вафли | C37: 16 | D37: ="16" -> 16 | E37: 0.42 | F37: 0.42 | G37: 0.46 | H37: 0.46 | I37: 11.71 | J37: 11.71 | K37: 50.1135 | L37: 50.113504 | M37: 0.03 | N37: 0 | O37: 0 | P37: 0 | Q37: 11.25 | R37: 0 | S37: 0.45 | T37: 0 | U37: 0 | V37: 0.19 | W37: 0.05 | X37: 7.84 | Y37: 19.71 | Z37: 2.25 | AA37: 1.39 | AB37: 5.01 | AC37: 0.21 | AD37: 0.19 | AE37: 0.64 | AF37: 0.48 | AG37: 0.11 | AH37: 0 | AI37: 0.01 | AJ37: 0.05 | AK37: 0.11 | AL37: 0 | AM37: 0 | AN37: 0 | AO37: 0 | AP37: 0 | AQ37: 0 | AR37: 0 | AS37: 0 | AT37: 0 | AU37: 0 | AV37: 0 | AW37: 0 | AX37: 0 | AY37: 0 | AZ37: 0 | BA37: 0 | BB37: 0 | BC37: 0 | BD37: 0 | BE37: 0 | BF37: 0 | BG37: 0 | BH37: 0 | BI37: 0 | BJ37: 0 | BK37: 0 | BL37: 0 | BM37: 0 | BN37: 0 | BO37: 0 | BP37: 0 | BQ37: 0 | BR37: 0 | BS37: 0 | BT37: 0 | BU37: 0 | BV37: 0 | BW37: 0 | BX37: 0 | BY37: 0 | BZ37: 0 | CA37: 0 | CB37: 0 | CC37: 0 | CD37: 0 | CE37: 1.92 | CF37: 0.3 | CH37: 0 | CI37: 0
B38: Итого за 'Полдник' | C38: 146 | D38: 126 | E38: =SUM(E36:E37) -> 4.19 | F38: 3.61 | G38: 4.62 | H38: 3.98 | I38: 16.91 | J38: 16.11 | K38: 125.9035 | L38: 114.243504 | M38: 2.03 | N38: 0 | O38: 0 | P38: 0 | Q38: 15.25 | R38: 0 | S38: 0.45 | T38: 0 | U38: 0 | V38: 1.09 | W38: 0.75 | X38: 57.84 | Y38: 165.71 | Z38: 122.25 | AA38: 15.39 | AB38: 100.01 | AC38: 0.31 | AD38: 20.19 | AE38: 10.64 | AF38: 22.48 | AG38: 0.11 | AH38: 0.03 | AI38: 0.18 | AJ38: 0.15 | AK38: =SUM(AK36:AK37) -> 0.91 | AL38: 0.7 | AM38: 0 | AN38: 135 | AO38: 160 | AP38: 277 | AQ38: 240 | AR38: 71 | AS38: 110 | AT38: 43 | AU38: 141 | AV38: 106 | AW38: 105 | AX38: 216 | AY38: 78 | AZ38: 46 | BA38: 506 | BB38: 0 | BC38: 272 | BD38: 185 | BE38: 155 | BF38: 20 | BG38: 0.1 | BH38: 0.07 | BI38: 0.04 | BJ38: 0.08 | BK38: 0.09 | BL38: 0.45 | BM38: 0.03 | BN38: 0.56 | BO38: 0.02 | BP38: 0.31 | BQ38: =SUM(BQ36:BQ37) -> 0.04 | BR38: 0 | BS38: 0 | BT38: 0.04 | BU38: 0.08 | BV38: 0.69 | BW38: 0.01 | BX38: 0 | BY38: 0.02 | BZ38: 0.03 | CA38: 0.08 | CB38: 0 | CC38: 0 | CD38: 0 | CE38: 90.22 | CF38: 21.97 | CG38: 0 | CH38: 0.91 | CI38: 0.77
B39: Ужин
A40: 386/16 | B40: Яблоки | C40: 70 | D40: ="70" -> 70 | E40: 0.28 | F40: 0.28 | G40: 0.28 | H40: 0.28 | I40: 6.9 | J40: 6.9 | K40: 34.076 | L40: 34.076 | M40: 0.07 | N40: 0 | O40: 0 | P40: 0 | Q40: 6.3 | R40: 0.56 | S40: 1.26 | T40: 0 | U40: 0 | V40: 0.56 | W40: 0.35 | X40: 18.2 | Y40: 194.6 | Z40: 11.2 | AA40: 6.3 | AB40: 7.7 | AC40: 1.54 | AD40: 0 | AE40: 21 | AF40: 3.5 | AG40: 0.14 | AH40: 0.02 | AI40: 0.01 | AJ40: 0.21 | AK40: 0.28 | AL40: 7 | AM40: 0 | AN40: 8.4 | AO40: 9.1 | AP40: 13.3 | AQ40: 12.6 | AR40: 2.1 | AS40: 7.7 | AT40: 2.1 | AU40: 6.3 | AV40: 11.9 | AW40: 7 | AX40: 54.6 | AY40: 4.9 | AZ40: 9.8 | BA40: 29.4 | BB40: 0 | BC40: 9.1 | BD40: 11.2 | BE40: 4.2 | BF40: 3.5 | BG40: 0 | BH40: 0 | BI40: 0 | BJ40: 0 | BK40: 0 | BL40: 0 | BM40: 0 | BN40: 0 | BO40: 0 | BP40: 0 | BQ40: 0 | BR40: 0 | BS40: 0 | BT40: 0 | BU40: 0 | BV40: 0 | BW40: 0 | BX40: 0 | BY40: 0 | BZ40: 0 | CA40: 0 | CB40: 0 | CC40: 0 | CD40: 0 | CE40: 60.41 | CF40: 3.5 | CH40: 7 | CI40: 7
A41: 285 | B41: Пудинг рыбный | C41: 80 | D41: ="60" -> 60 | E41: 7.94 | F41: 5.96 | G41: 5.15 | H41: 3.86 | I41: 6.32 | J41: 4.74 | K41: 103.51 | L41: 77.63377232 | M41: 2.81 | N41: 0.11 | O41: 0 | P41: 0 | Q41: 1 | R41: 3.67 | S41: 0.07 | T41: 0 | U41: 0 | V41: 0.02 | W41: 0.69 | X41: 112.73 | Y41: 25.79 | Z41: 20.71 | AA41: 2.63 | AB41: 18.28 | AC41: 0.11 | AD41: 16.32 | AE41: 15.23 | AF41: 42.77 | AG41: 0.1 | AH41: 0.01 | AI41: 0.03 | AJ41: 0.03 | AK41: 0.37 | AL41: 0.03 | AM41: 0 | AN41: 52.84 | AO41: 47.25 | AP41: 80.71 | AQ41: 44.19 | AR41: 22.54 | AS41: 37.93 | AT41: 13.76 | AU41: 52.06 | AV41: 42.57 | AW41: 51.26 | AX41: 61.73 | AY41: 23.24 | AZ41: 34.27 | BA41: 233.9 | BB41: 0.44 | BC41: 69.86 | BD41: 56.6 | BE41: 31.73 | BF41: 21.96 | BG41: 0.13 | BH41: 0.03 | BI41: 0.02 | BJ41: 0.06 | BK41: 0.08 | BL41: 0.27 | BM41: 0 | BN41: 0.85 | BO41: 0 | BP41: 0.26 | BQ41: 0 | BR41: 0 | BS41: 0 | BT41: 0.03 | BU41: 0.1 | BV41: 0.78 | BW41: 0 | BX41: 0 | BY41: 0.07 | BZ41: 0 | CA41: 0 | CB41: 0 | CC41: 0 | CD41: 0 | CE41: 27.27 | CF41: 18.86 | CH41: 0 | CI41: 0
A42: 216/04 | B42: Картофель тушеный | C42: 150 | D42: ="120" -> 120 | E42: 3.06 | F42: 2.45 | G42: 11.05 | H42: 8.84 | I42: 24.93 | J42: 19.94 | K42: 208.23 | L42: 166.5841139 | M42: 1.3 | N42: 6.24 | O42: 5.25 | P42: 0 | Q42: 3.83 | R42: 13.99 | S42: 2.12 | T42: 0 | U42: 0 | V42: 0.35 | W42: 1.93 | X42: 171.41 | Y42: 582.92 | Z42: 18.96 | AA42: 28.06 | AB42: 69.1 | AC42: 1.07 | AD42: 0 | AE42: 1209.79 | AF42: 251.7 | AG42: 4.44 | AH42: 0.1 | AI42: 0.07 | AJ42: 1.23 | AK42: 2.14 | AL42: 9.69 | AM42: 0 | AN42: 31.17 | AO42: 44.56 | AP42: 57.15 | AQ42: 64.35 | AR42: 11.6 | AS42: 44.67 | AT42: 22.52 | AU42: 45.16 | AV42: 63.02 | AW42: 159.5 | AX42: 85.6 | AY42: 17.02 | AZ42: 43.94 | BA42: 245.51 | BB42: 0 | BC42: 34.86 | BD42: 32.68 | BE42: 33.15 | BF42: 14.36 | BG42: 0.32 | BH42: 0.07 | BI42: 0.06 | BJ42: 0.16 | BK42: 0.2 | BL42: 0.66 | BM42: 0 | BN42: 0.59 | BO42: 0 | BP42: 0.36 | BQ42: 0.03 | BR42: 0.06 | BS42: 0 | BT42: 0 | BU42: 0.25 | BV42: 2.15 | BW42: 0 | BX42: 0 | BY42: 5.76 | BZ42: 0.01 | CA42: 0 | CB42: 0 | CC42: 0 | CD42: 0 | CE42: 109.37 | CF42: 201.63 | CH42: 12.1 | CI42: 9.7
A43: ="27/10" -> 27/10 | B43: Чай полусладкий | C43: 180 | D43: ="150" -> 150 | E43: 0.18 | F43: 0.15 | G43: 0.04 | H43: 0.04 | I43: 4.53 | J43: 3.78 | K43: 18.157 | L43: 15.130905 | M43: 0 | N43: 0 | O43: 0 | P43: 0 | Q43: 3.7 | R43: 0 | S43: 0.08 | T43: 0 | U43: 0 | V43: 0 | W43: 0.05 | X43: 0.04 | Y43: 0.11 | Z43: 0.11 | AA43: 0 | AB43: 0 | AC43: 0.01 | AD43: 0 | AE43: 0 | AF43: 0 | AG43: 0 | AH43: 0 | AI43: 0 | AJ43: 0 | AK43: 0 | AL43: 0 | AM43: 0 | AN43: 0 | AO43: 0 | AP43: 0 | AQ43: 0 | AR43: 0 | AS43: 0 | AT43: 0 | AU43: 0 | AV43: 0 | AW43: 0 | AX43: 0 | AY43: 0 | AZ43: 0 | BA43: 0 | BB43: 0 | BC43: 0 | BD43: 0 | BE43: 0 | BF43: 0 | BG43: 0 | BH43: 0 | BI43: 0 | BJ43: 0 | BK43: 0 | BL43: 0 | BM43: 0 | BN43: 0 | BO43: 0 | BP43: 0 | BQ43: 0 | BR43: 0 | BS43: 0 | BT43: 0 | BU43: 0 | BV43: 0 | BW43: 0 | BX43: 0 | BY43: 0 | BZ43: 0 | CA43: 0 | CB43: 0 | CC43: 0 | CD43: 0 | CE43: 150.07 | CF43: 0 | CH43: 0 | CI43: 0
A44: - | B44: Хлеб пшеничный | C44: 30 | D44: ="30" -> 30 | E44: 1.98 | F44: 1.98 | G44: 0.2 | H44: 0.2 | I44: 14.07 | J44: 14.07 | K44: 67.1703 | L44: 67.1703 | M44: 0 | N44: 0 | O44: 0 | P44: 0 | Q44: 0.33 | R44: 13.68 | S44: 0.06 | T44: 0 | U44: 0 | V44: 0 | W44: 0.54 | X44: 0 | Y44: 0 | Z44: 0 | AA44: 0 | AB44: 0 | AC44: 0 | AD44: 0 | AE44: 0 | AF44: 0 | AG44: 0 | AH44: 0 | AI44: 0 | AJ44: 0 | AK44: 0 | AL44: 0 | AM44: 0 | AN44: 95.79 | AO44: 99.7 | AP44: 152.69 | AQ44: 50.63 | AR44: 30.02 | AS44: 60.03 | AT44: 22.71 | AU44: 108.58 | AV44: 67.34 | AW44: 93.96 | AX44: 77.52 | AY44: 40.72 | AZ44: 72.04 | BA44: 602.39 | BB44: 0 | BC44: 196.27 | BD44: 85.35 | BE44: 56.64 | BF44: 44.89 | BG44: 0 | BH44: 0 | BI44: 0 | BJ44: 0 | BK44: 0 | BL44: 0 | BM44: 0 | BN44: 0.02 | BO44: 0 | BP44: 0 | BQ44: 0 | BR44: 0 | BS44: 0 | BT44: 0 | BU44: 0 | BV44: 0.02 | BW44: 0 | BX44: 0 | BY44: 0.08 | BZ44: 0 | CA44: 0 | CB44: 0 | CC44: 0 | CD44: 0 | CE44: 11.73 | CF44: 0 | CH44: 0 | CI44: 0
B45: Итого за 'Ужин' | C45: 510 | D45: 430 | E45: =SUM(E40:E44) -> 13.44 | F45: =SUM(F40:F44) -> 10.82 | G45: 16.72 | H45: 13.22 | I45: 56.75 | J45: 49.43 | K45: 431.1433 | L45: 360.5950912 | M45: 4.18 | N45: 6.35 | O45: 5.25 | P45: 0 | Q45: 15.16 | R45: 31.9 | S45: 3.59 | T45: 0 | U45: 0 | V45: 0.93 | W45: 3.56 | X45: 302.38 | Y45: 803.42 | Z45: 50.98 | AA45: 36.99 | AB45: 95.08 | AC45: 2.73 | AD45: 16.32 | AE45: 1246.02 | AF45: 297.97 | AG45: 4.68 | AH45: 0.13 | AI45: 0.11 | AJ45: 1.47 | AK45: 2.79 | AL45: 16.72 | AM45: 0 | AN45: 188.2 | AO45: 200.61 | AP45: 303.85 | AQ45: 171.77 | AR45: 66.26 | AS45: 150.33 | AT45: 61.09 | AU45: 212.1 | AV45: 184.83 | AW45: 311.72 | AX45: 279.45 | AY45: 85.88 | AZ45: 160.05 | BA45: 1111.2 | BB45: 0.44 | BC45: 310.09 | BD45: 185.83 | BE45: 125.72 | BF45: 84.71 | BG45: 0.45 | BH45: 0.1 | BI45: 0.08 | BJ45: 0.22 | BK45: 0.28 | BL45: 0.93 | BM45: 0 | BN45: 1.46 | BO45: 0 | BP45: 0.62 | BQ45: 0.03 | BR45: =SUM(BR40:BR44) -> 0.06 | BS45: 0 | BT45: 0.03 | BU45: 0.35 | BV45: 2.95 | BW45: 0 | BX45: 0 | BY45: 5.91 | BZ45: 0.01 | CA45: 0 | CB45: 0 | CC45: 0 | CD45: 0 | CE45: 358.85 | CF45: 223.99 | CG45: 0 | CH45: 19.1 | CI45: 16.7
B46: Итого за день | E46: =SUM(E23+E26+E34+E38+E45) -> 53.24 | F46: 43.22 | G46: 53.37 | H46: 44.83 | I46: 224.18 | J46: 189.69 | K46: 1562.2818 | L46: 1312.354389 | M46: 17.43 | N46: 13.52 | O46: 10.52 | P46: 0 | Q46: 85.26 | R46: 90.58 | S46: 16.62 | T46: 0 | U46: 0 | V46: 3.94 | W46: 12.61 | X46: 1360.4 | Y46: 2630.36 | Z46: 517.77 | AA46: 193.8 | AB46: 669.46 | AC46: 10.28 | AD46: 120.96 | AE46: 2734.69 | AF46: 687.75 | AG46: 11.72 | AH46: 0.55 | AI46: 0.77 | AJ46: 6.16 | AK46: =SUM(AK23+AK26+AK34+AK38+AK45) -> 11.12 | AL46: 49.33 | AM46: 0.2 | AN46: 1170.65 | AO46: 1133.28 | AP46: 1961.63 | AQ46: 1508.58 | AR46: 455.8 | AS46: 901.97 | AT46: 318.8 | AU46: 1187.97 | AV46: 1088.98 | AW46: 1286.11 | AX46: 1850.56 | AY46: 527.01 | AZ46: 828.44 | BA46: 4671.71 | BB46: 44.75 | BC46: 1426.7 | BD46: 1052.99 | BE46: 915.65 | BF46: 369.87 | BG46: 0.87 | BH46: 0.27 | BI46: 0.19 | BJ46: 0.47 | BK46: 0.58 | BL46: 2.17 | BM46: 0.03 | BN46: 5.16 | BO46: 0.02 | BP46: 2.07 | BQ46: =SUM(BQ23+BQ26+BQ34+BQ38+BQ45) -> 0.11 | BR46: 0.13 | BS46: 0 | BT46: 0.19 | BU46: 0.69 | BV46: 8.33 | BW46: 0.01 | BX46: 0 | BY46: 12.9 | BZ46: 0.1 | CA46: 0.08 | CB46: 0 | CC46: 0 | CD46: 0 | CE46: 1360.58 | CF46: 576.74 | CG46: 0 | CH46: 56.66 | CI46: 50.24
B48: 2 ДЕНЬ
B49: Завтрак
A50: 302/04 | B50: Каша ячневая молочная с маслом сливочным | C50: 180/5 | D50: ="150/5" -> 150/5 | E50: 6.33 | F50: 5.28 | G50: 6.67 | H50: 6.23 | I50: 35.44 | J50: 29.54 | K50: 221.95 | L50: 191.0660848 | M50: 4.07 | N50: 0.13 | O50: 5.22 | P50: 0 | Q50: 7.25 | R50: 19.78 | S50: 2.51 | T50: 0 | U50: 0 | V50: 0.07 | W50: 1.27 | X50: 177.49 | Y50: 171.64 | Z50: 111.47 | AA50: 25.19 | AB50: 165.81 | AC50: 0.67 | AD50: 43.37 | AE50: 25.13 | AF50: 48.89 | AG50: 0.55 | AH50: 0.1 | AI50: 0.13 | AJ50: 0.81 | AK50: 2.17 | AL50: 0.38 | AM50: 0 | AN50: 154.78 | AO50: 149.94 | AP50: 165.41 | AQ50: 113.31 | AR50: 51.71 | AS50: 81.42 | AT50: 39.7 | AU50: 167.58 | AV50: 130.6 | AW50: 157.49 | AX50: 204.85 | AY50: 74.64 | AZ50: 131.86 | BA50: 770.31 | BB50: 0 | BC50: 420.43 | BD50: 126.39 | BE50: 97.22 | BF50: 64.26 | BG50: 0.18 | BH50: 0.04 | BI50: 0.04 | BJ50: 0.09 | BK50: 0.12 | BL50: 0.38 | BM50: 0 | BN50: 1.21 | BO50: 0 | BP50: 0.37 | BQ50: 0 | BR50: 0 | BS50: 0 | BT50: 0.04 | BU50: 0.14 | BV50: 1.11 | BW50: 0 | BX50: 0 | BY50: 0.04 | BZ50: 0 | CA50: 0 | CB50: 0 | CC50: 0 | CD50: 0 | CE50: 120.31 | CF50: 47.56 | CH50: 0.5 | CI50: 0.4
A51: 36/10 | B51: Какао с молоком | C51: 180 | D51: ="150" -> 150 | E51: 2.86 | F51: 2.39 | G51: 2.77 | H51: 2.31 | I51: 14.4 | J51: 12 | K51: 90.617 | L51: 75.514569 | M51: 1.64 | N51: 0 | O51: 0 | P51: 0 | Q51: 11.41 | R51: 0.11 | S51: 0.48 | T51: 0 | U51: 0 | V51: 0.13 | W51: 0.63 | X51: 37.79 | Y51: 116.52 | Z51: 81.13 | AA51: 14.68 | AB51: 67.27 | AC51: 0.38 | AD51: 9 | AE51: 6.24 | AF51: 16.55 | AG51: 0 | AH51: 0.02 | AI51: 0.09 | AJ51: 0.08 | AK51: 0.7 | AL51: 0.39 | AM51: 0 | AN51: 114.92 | AO51: 113.51 | AP51: 194.58 | AQ51: 156.51 | AR51: 52.17 | AS51: 91.65 | AT51: 30.32 | AU51: 102.93 | AV51: 0 | AW51: 0 | AX51: 0 | AY51: 0 | AZ51: 0 | BA51: 0 | BB51: 0 | BC51: 0 | BD51: 0 | BE51: 129.72 | BF51: 18.33 | BG51: 0 | BH51: 0 | BI51: 0 | BJ51: 0 | BK51: 0 | BL51: 0 | BM51: 0 | BN51: 0 | BO51: 0 | BP51: 0 | BQ51: 0 | BR51: 0 | BS51: 0 | BT51: 0 | BU51: 0 | BV51: 0 | BW51: 0 | BX51: 0 | BY51: 0 | BZ51: 0 | CA51: 0 | CB51: 0 | CC51: 0 | CD51: 0 | CE51: 150.38 | CF51: 10.04 | CH51: 0.5 | CI51: 0.4
A52: 3/13 | B52: Бутерброд с маслом и сыром | C52: 30/5/7 | D52: ="25/5/5" -> 25/5/5 | E52: 4.16 | F52: 3.26 | G52: 5.76 | H52: 5.18 | I52: 14.14 | J52: 11.79 | K52: 126.59 | L52: 108.072 | M52: 3.12 | N52: 0.11 | O52: 0 | P52: 0 | Q52: 0.34 | R52: 11.4 | S52: 0.05 | T52: 0 | U52: 0 | V52: 0.1 | W52: 0.74 | X52: 55.75 | Y52: 6.5 | Z52: 51.2 | AA52: 2.75 | AB52: 31.5 | AC52: 0.05 | AD52: 30.5 | AE52: 23.5 | AF52: 34.4 | AG52: 0.07 | AH52: 0 | AI52: 0.03 | AJ52: 0.02 | AK52: 0.35 | AL52: 0.04 | AM52: 0 | AN52: 172.35 | AO52: 156.05 | AP52: 265.05 | AQ52: 129.75 | AR52: 57.6 | AS52: 107.35 | AT52: 58.9 | AU52: 173.1 | AV52: 104.3 | AW52: 134.8 | AX52: 155.1 | AY52: 75.75 | AZ52: 95.7 | BA52: 842.6 | BB52: 0 | BC52: 326.9 | BD52: 148.95 | BE52: 125.85 | BF52: 54.25 | BG52: 0.13 | BH52: 0.07 | BI52: 0.05 | BJ52: 0.13 | BK52: 0.15 | BL52: 0.56 | BM52: 0.02 | BN52: 1.48 | BO52: 0.01 | BP52: 0.42 | BQ52: 0.01 | BR52: 0 | BS52: 0 | BT52: 0.1 | BU52: 0.15 | BV52: 1.18 | BW52: 0 | BX52: 0 | BY52: 0.18 | BZ52: 0.01 | CA52: 0 | CB52: 0 | CC52: 0 | CD52: 0 | CE52: 13.07 | CF52: 34.42 | CH52: 0 | CI52: 0
B53: Итого за 'Завтрак' | C53: 407 | D53: 340 | E53: =SUM(E50:E52) -> 13.35 | F53: 10.93 | G53: 15.2 | H53: 13.72 | I53: 63.98 | J53: 53.33 | K53: 439.157 | L53: 374.6526538 | M53: 8.83 | N53: 0.24 | O53: 5.22 | P53: 0 | Q53: 19 | R53: 31.29 | S53: 3.04 | T53: 0 | U53: 0 | V53: 0.3 | W53: 2.64 | X53: 271.03 | Y53: 294.66 | Z53: 243.8 | AA53: 42.62 | AB53: 264.58 | AC53: 1.1 | AD53: 82.87 | AE53: 54.87 | AF53: 99.84 | AG53: 0.62 | AH53: 0.12 | AI53: 0.25 | AJ53: 0.91 | AK53: =SUM(AK50:AK52) -> 3.22 | AL53: 0.81 | AM53: 0 | AN53: 442.05 | AO53: 419.5 | AP53: 625.04 | AQ53: 399.57 | AR53: 161.48 | AS53: 280.42 | AT53: 128.92 | AU53: 443.61 | AV53: 234.9 | AW53: 292.29 | AX53: 359.95 | AY53: 150.39 | AZ53: 227.56 | BA53: 1612.91 | BB53: 0 | BC53: 747.33 | BD53: 275.34 | BE53: 352.79 | BF53: 136.84 | BG53: 0.31 | BH53: 0.11 | BI53: 0.09 | BJ53: 0.22 | BK53: 0.27 | BL53: 0.94 | BM53: 0.02 | BN53: 2.69 | BO53: 0.01 | BP53: 0.79 | BQ53: =SUM(BQ50:BQ52) -> 0.01 | BR53: 0 | BS53: 0 | BT53: 0.14 | BU53: 0.29 | BV53: 2.29 | BW53: 0 | BX53: 0 | BY53: 0.22 | BZ53: 0.01 | CA53: 0 | CB53: 0 | CC53: 0 | CD53: 0 | CE53: 283.76 | CF53: 92.02 | CG53: 0 | CH53: 1 | CI53: 0.8
B54: 10:00
A55: ="-" -> - | B55: Сок | C55: 100 | D55: ="100" -> 100 | E55: 0.5 | F55: 0.5 | G55: 0.1 | H55: 0.1 | I55: 10.3 | J55: 10.3 | K55: 43.24 | L55: 43.24 | M55: 0 | N55: 0 | O55: 0 | P55: 0 | Q55: 9.9 | R55: 0.2 | S55: 0.2 | T55: 0 | U55: 0 | V55: 0.5 | W55: 0.3 | X55: 6 | Y55: 120 | Z55: 7 | AA55: 4 | AB55: 7 | AC55: 1.4 | AD55: 0 | AE55: 0 | AF55: 0 | AG55: 0.1 | AH55: 0.01 | AI55: 0.01 | AJ55: 0.1 | AK55: 0.2 | AL55: 2 | AM55: 0.2 | AN55: 8 | AO55: 10 | AP55: 14 | AQ55: 14 | AR55: 2 | AS55: 8 | AT55: 2 | AU55: 7 | AV55: 13 | AW55: 8 | AX55: 58 | AY55: 5 | AZ55: 11 | BA55: 32 | BB55: 0 | BC55: 10 | BD55: 12 | BE55: 5 | BF55: 4 | BG55: 0 | BH55: 0 | BI55: 0 | BJ55: 0 | BK55: 0 | BL55: 0 | BM55: 0 | BN55: 0 | BO55: 0 | BP55: 0 | BQ55: 0 | BR55: 0 | BS55: 0 | BT55: 0 | BU55: 0 | BV55: 0 | BW55: 0 | BX55: 0 | BY55: 0 | BZ55: 0 | CA55: 0 | CB55: 0 | CC55: 0 | CD55: 0 | CE55: 88.1 | CF55: 0 | CH55: 2 | CI55: 2
B56: Итого за '10:00' | C56: 100 | D56: 100 | E56: 0.5 | F56: 0.5 | G56: 0.1 | H56: 0.1 | I56: 10.3 | J56: 10.3 | K56: 43.24 | L56: 43.24 | M56: 0 | N56: 0 | O56: 0 | P56: 0 | Q56: 9.9 | R56: 0.2 | S56: 0.2 | T56: 0 | U56: 0 | V56: 0.5 | W56: 0.3 | X56: 6 | Y56: 120 | Z56: 7 | AA56: 4 | AB56: 7 | AC56: 1.4 | AD56: 0 | AE56: 0 | AF56: 0 | AG56: 0.1 | AH56: 0.01 | AI56: 0.01 | AJ56: 0.1 | AK56: 0.2 | AL56: 2 | AM56: 0.2 | AN56: 8 | AO56: 10 | AP56: 14 | AQ56: 14 | AR56: 2 | AS56: 8 | AT56: 2 | AU56: 7 | AV56: 13 | AW56: 8 | AX56: 58 | AY56: 5 | AZ56: 11 | BA56: 32 | BB56: 0 | BC56: 10 | BD56: 12 | BE56: 5 | BF56: 4 | BG56: 0 | BH56: 0 | BI56: 0 | BJ56: 0 | BK56: 0 | BL56: 0 | BM56: 0 | BN56: 0 | BO56: 0 | BP56: 0 | BQ56: 0 | BR56: 0 | BS56: 0 | BT56: 0 | BU56: 0 | BV56: 0 | BW56: 0 | BX56: 0 | BY56: 0 | BZ56: 0 | CA56: 0 | CB56: 0 | CC56: 0 | CD56: 0 | CE56: 88.1 | CF56: 0 | CH56: 2 | CI56: 2
B57: Обед
A58: 7/03 | B58: Икра кабачковая | C58: 50 | D58: ="30" -> 30 | E58: 0.9 | F58: 0.6 | G58: 4 | H58: 2.4 | I58: 4.7 | J58: 2.8 | K58: 56 | L58: 34 | M58: 0.22 | N58: 0.98 | O58: 0.22 | P58: 0 | Q58: 2.11 | R58: 0.02 | S58: 0.52 | T58: 0 | U58: 0 | V58: 0.09 | W58: 0.33 | X58: 32.75 | Y58: 108.17 | Z58: 9.33 | AA58: 4.94 | AB58: 8.57 | AC58: 0.22 | AD58: 0 | AE58: 28.3 | AF58: 5.77 | AG58: 0.72 | AH58: 0.01 | AI58: 0.01 | AJ58: 0.19 | AK58: 0.34 | AL58: 1.95 | AM58: 0 | AN58: 3.75 | AO58: 3.24 | AP58: 4.14 | AQ58: 3.95 | AR58: 1.42 | AS58: 2.91 | AT58: 0.65 | AU58: 3.62 | AV58: 4.59 | AW58: 5.5 | AX58: 11.13 | AY58: 1.82 | AZ58: 3.04 | BA58: 17.79 | BB58: 0 | BC58: 3.82 | BD58: 3.82 | BE58: 3.23 | BF58: 1.29 | BG58: 0 | BH58: 0 | BI58: 0 | BJ58: 0 | BK58: 0 | BL58: 0 | BM58: 0 | BN58: 0.08 | BO58: 0 | BP58: 0.06 | BQ58: 0 | BR58: 0.01 | BS58: 0 | BT58: 0 | BU58: 0 | BV58: 0.32 | BW58: 0 | BX58: 0 | BY58: 0.8 | BZ58: 0 | CA58: 0 | CB58: 0 | CC58: 0 | CD58: 0 | CE58: 39.69 | CF58: 4.72 | CH58: 1.2 | CI58: 0.7
A59: 110/04 | B59: Борщ с капустой и картофелем на м/б со сметаной | C59: 180/5 | D59: ="150/5" -> 150/5 | E59: 16.1 | F59: 13 | G59: 17.3 | H59: 14.2 | I59: 10.3 | J59: 8.62 | K59: 258 | L59: 211 | M59: 0.98 | N59: 1.95 | O59: 1.3 | P59: 0 | Q59: 5.56 | R59: 1.78 | S59: 1.28 | T59: 0 | U59: 0 | V59: 0.2 | W59: 0.85 | X59: 78.39 | Y59: 214.87 | Z59: 24.02 | AA59: 13.7 | AB59: 29.96 | AC59: 0.65 | AD59: 7.5 | AE59: 686.34 | AF59: 134.6 | AG59: 1.44 | AH59: 0.03 | AI59: 0.03 | AJ59: 0.34 | AK59: 0.59 | AL59: 4.77 | AM59: 0 | AN59: 25.37 | AO59: 27.34 | AP59: 32.86 | AQ59: 38.76 | AR59: 9.26 | AS59: 25.05 | AT59: 7.69 | AU59: 24.43 | AV59: 27.92 | AW59: 48.78 | AX59: 114.39 | AY59: 9.58 | AZ59: 21.35 | BA59: 138.58 | BB59: 0 | BC59: 23.99 | BD59: 27.67 | BE59: 22.84 | BF59: 8.26 | BG59: 0.09 | BH59: 0.02 | BI59: 0.02 | BJ59: 0.04 | BK59: 0.06 | BL59: 0.18 | BM59: 0 | BN59: 0.19 | BO59: 0 | BP59: 0.12 | BQ59: 0.01 | BR59: 0.02 | BS59: 0 | BT59: 0 | BU59: 0.07 | BV59: 0.72 | BW59: 0 | BX59: 0 | BY59: 1.75 | BZ59: 0 | CA59: 0 | CB59: 0 | CC59: 0 | CD59: 0 | CE59: 176.27 | CF59: 121.89 | CH59: 5.7 | CI59: 4.8
A60: 278/02 | B60: Плов из отварной говядины | C60: 180 | D60: ="150" -> 150 | E60: 16.79 | F60: 13.58 | G60: 17.13 | H60: 13.95 | I60: 34.4 | J60: 29.11 | K60: 358.14 | L60: 295.6715599 | M60: 7.66 | N60: 0.14 | O60: 5.13 | P60: 0 | Q60: 1.64 | R60: 25.93 | S60: 1.54 | T60: 0 | U60: 0 | V60: 0.05 | W60: 1.32 | X60: 138.13 | Y60: 261.54 | Z60: 14.55 | AA60: 35.21 | AB60: 170.12 | AC60: 2.07 | AD60: 27.58 | AE60: 1278.24 | AF60: 310.92 | AG60: 0.53 | AH60: 0.04 | AI60: 0.08 | AJ60: 2.74 | AK60: 6.74 | AL60: 0.15 | AM60: 0 | AN60: 758.37 | AO60: 578 | AP60: 1088.29 | AQ60: 1026.11 | AR60: 317.67 | AS60: 558.81 | AT60: 160.04 | AU60: 599.06 | AV60: 778.18 | AW60: 793.62 | AX60: 1242.87 | AY60: 477.34 | AZ60: 663.88 | BA60: 2249.63 | BB60: 169.6 | BC60: 520.88 | BD60: 577.03 | BE60: 489.42 | BF60: 201.02 | BG60: 0.19 | BH60: 0.04 | BI60: 0.04 | BJ60: 0.1 | BK60: 0.12 | BL60: 0.4 | BM60: 0 | BN60: 1.32 | BO60: 0 | BP60: 0.4 | BQ60: 0 | BR60: 0 | BS60: 0 | BT60: 0 | BU60: 0.15 | BV60: 1.28 | BW60: 0 | BX60: 0 | BY60: 0.11 | BZ60: 0 | CA60: 0 | CB60: 0 | CC60: 0 | CD60: 0 | CE60: 152.74 | CF60: 240.62 | CH60: 0.2 | CI60: 0.1
A61: 648/04 | B61: Кисель | C61: 180 | D61: ="150" -> 150 | E61: 0 | F61: 0 | G61: 0 | H61: 0 | I61: 14.3 | J61: 11.96 | K61: 55 | L61: 45.43927267 | M61: 0 | N61: 0 | O61: 0 | P61: 0 | Q61: 11.96 | R61: 0 | S61: 0 | T61: 0 | U61: 0 | V61: 0 | W61: 0 | X61: 0 | Y61: 0.35 | Z61: 0.27 | AA61: 0 | AB61: 0 | AC61: 0.03 | AD61: 0 | AE61: 0 | AF61: 0 | AG61: 0 | AH61: 0 | AI61: 0 | AJ61: 0 | AK61: 0 | AL61: 0 | AM61: 0 | AN61: 0 | AO61: 0 | AP61: 0 | AQ61: 0 | AR61: 0 | AS61: 0 | AT61: 0 | AU61: 0 | AV61: 0 | AW61: 0 | AX61: 0 | AY61: 0 | AZ61: 0 | BA61: 0 | BB61: 0 | BC61: 0 | BD61: 0 | BE61: 0 | BF61: 0 | BG61: 0 | BH61: 0 | BI61: 0 | BJ61: 0 | BK61: 0 | BL61: 0 | BM61: 0 | BN61: 0 | BO61: 0 | BP61: 0 | BQ61: 0 | BR61: 0 | BS61: 0 | BT61: 0 | BU61: 0 | BV61: 0 | BW61: 0 | BX61: 0 | BY61: 0 | BZ61: 0 | CA61: 0 | CB61: 0 | CC61: 0 | CD61: 0 | CE61: 142.51 | CF61: 0 | CH61: 0 | CI61: 0
A62: - | B62: Хлеб ржаной | C62: 50 | D62: ="35" -> 35 | E62: 3.3 | F62: 2.31 | G62: 0.6 | H62: 0.42 | I62: 20.85 | J62: 14.6 | K62: 96.69 | L62: 67.683 | M62: 0.07 | N62: 0 | O62: 0 | P62: 0 | Q62: 0.42 | R62: 11.27 | S62: 2.91 | T62: 0 | U62: 0 | V62: 0.35 | W62: 0.88 | X62: 213.5 | Y62: 85.75 | Z62: 12.25 | AA62: 16.45 | AB62: 55.3 | AC62: 1.37 | AD62: 0 | AE62: 1.75 | AF62: 0.35 | AG62: 0.49 | AH62: 0.06 | AI62: 0.03 | AJ62: 0.25 | AK62: 0.7 | AL62: 0 | AM62: 0 | AN62: 112.7 | AO62: 86.8 | AP62: 149.45 | AQ62: 78.05 | AR62: 32.55 | AS62: 69.3 | AT62: 28 | AU62: 129.85 | AV62: 103.95 | AW62: 101.85 | AX62: 162.4 | AY62: 43.4 | AZ62: 108.5 | BA62: 545.65 | BB62: 0 | BC62: 184.1 | BD62: 101.85 | BE62: 63 | BF62: 45.5 | BG62: 0 | BH62: 0 | BI62: 0 | BJ62: 0 | BK62: 0 | BL62: 0 | BM62: 0 | BN62: 0.05 | BO62: 0 | BP62: 0 | BQ62: 0.01 | BR62: 0 | BS62: 0 | BT62: 0 | BU62: 0 | BV62: 0.04 | BW62: 0 | BX62: 0 | BY62: 0.17 | BZ62: 0.03 | CA62: 0 | CB62: 0 | CC62: 0 | CD62: 0 | CE62: 16.45 | CF62: 0.29 | CH62: 0 | CI62: 0
B63: Итого за 'Обед' | C63: 645 | D63: 520 | E63: =SUM(E58:E62) -> 37.09 | F63: =SUM(F58:F62) -> 29.49 | G63: =SUM(G58:G62) -> 39.03 | H63: 30.97 | I63: 84.55 | J63: 67.09 | K63: 823.83 | L63: 653.7938326 | M63: 8.93 | N63: 3.07 | O63: 6.65 | P63: 0 | Q63: 21.69 | R63: 39 | S63: 6.25 | T63: 0 | U63: 0 | V63: 0.69 | W63: 3.38 | X63: 462.77 | Y63: 670.68 | Z63: 60.42 | AA63: 70.3 | AB63: 263.95 | AC63: 4.34 | AD63: 35.08 | AE63: 1994.63 | AF63: 451.64 | AG63: 3.18 | AH63: 0.14 | AI63: 0.15 | AJ63: 3.52 | AK63: 8.37 | AL63: 6.87 | AM63: 0 | AN63: 900.19 | AO63: 695.38 | AP63: 1274.74 | AQ63: 1146.87 | AR63: 360.9 | AS63: 656.07 | AT63: 196.38 | AU63: 756.96 | AV63: 914.64 | AW63: 949.75 | AX63: 1530.79 | AY63: 532.14 | AZ63: 796.77 | BA63: 2951.65 | BB63: 169.6 | BC63: 732.79 | BD63: 710.37 | BE63: 578.49 | BF63: 256.07 | BG63: 0.28 | BH63: 0.06 | BI63: 0.06 | BJ63: 0.14 | BK63: 0.18 | BL63: 0.58 | BM63: 0 | BN63: 1.64 | BO63: 0 | BP63: 0.58 | BQ63: 0.02 | BR63: 0.03 | BS63: =SUM(BS58:BS62) -> 0 | BT63: 0 | BU63: 0.22 | BV63: 2.36 | BW63: 0 | BX63: 0 | BY63: 2.83 | BZ63: 0.03 | CA63: 0 | CB63: 0 | CC63: 0 | CD63: 0 | CE63: 527.66 | CF63: 367.52 | CG63: 0 | CH63: 7.1 | CI63: 5.6
B64: Полдник
A65: ="297" -> 297 | B65: Ряженка | C65: 130 | D65: 110 | E65: 3.913 | F65: 3.311 | G65: 4.58 | H65: 3.87 | I65: 4.732 | J65: 4 | K65: 74.81 | L65: 63.298 | M65: 0 | N65: 0 | O65: 0 | P65: 0 | Q65: 3.64 | R65: 0 | S65: 0 | T65: 0 | U65: 0 | V65: 0 | W65: 0 | X65: 0 | Y65: 0 | Z65: 10.56 | AA65: 3.05 | AB65: 0 | AC65: 0.52 | AD65: 0 | AE65: 0 | AF65: 0 | AG65: 0 | AH65: 0.94 | AI65: 5.76 | AJ65: 0 | AK65: 0 | AL65: 0.12 | AM65: 0 | AN65: 0 | AO65: 0 | AP65: 0 | AQ65: 0 | AR65: 0 | AS65: 0 | AT65: 0 | AU65: 0 | AV65: 0 | AW65: 0 | AX65: 0 | AY65: 0 | AZ65: 0 | BA65: 0 | BB65: 0 | BC65: 0 | BD65: 0 | BE65: 0 | BF65: 0 | BG65: 0 | BH65: 0 | BI65: 0 | BJ65: 0 | BK65: 0 | BL65: 0 | BM65: 0 | BN65: 0 | BO65: 0 | BP65: 0 | BQ65: 0 | BR65: 0 | BS65: 0 | BT65: 0 | BU65: 0 | BV65: 0 | BW65: 0 | BX65: 0 | BY65: 0 | BZ65: 0 | CA65: 0 | CB65: 0 | CC65: 0 | CD65: 0 | CE65: 0 | CF65: 0 | CH65: 0.13 | CI65: 0.11
A66: - | B66: Печенье | C66: 23 | D66: ="23" -> 23 | E66: 1.73 | F66: 1.73 | G66: 2.25 | H66: 2.25 | I66: 17.64 | J66: 17.64 | K66: 97.1198 | L66: 97.1198 | M66: 0.48 | N66: 0 | O66: 0 | P66: 0 | Q66: 5.43 | R66: 11.68 | S66: 0.53 | T66: 0 | U66: 0 | V66: 0.12 | W66: 0.23 | X66: 75.9 | Y66: 25.3 | Z66: 6.67 | AA66: 4.6 | AB66: 20.7 | AC66: 0.48 | AD66: 2.3 | AE66: 1.84 | AF66: 2.53 | AG66: 0.81 | AH66: 0.02 | AI66: 0.01 | AJ66: 0.16 | AK66: 0.44 | AL66: 0 | AM66: 0 | AN66: 286.81 | AO66: 212.98 | AP66: 366.62 | AQ66: 329.59 | AR66: 100.74 | AS66: 186.76 | AT66: 54.74 | AU66: 213.44 | AV66: 0 | AW66: 0 | AX66: 0 | AY66: 100.97 | AZ66: 0 | BA66: 0 | BB66: 0 | BC66: 0 | BD66: 0 | BE66: 0 | BF66: 0 | BG66: 0 | BH66: 0 | BI66: 0 | BJ66: 0 | BK66: 0 | BL66: 0 | BM66: 0 | BN66: 0 | BO66: 0 | BP66: 0 | BQ66: 0 | BR66: 0 | BS66: 0 | BT66: 0 | BU66: 0 | BV66: 0 | BW66: 0 | BX66: 0 | BY66: 0 | BZ66: 0 | CA66: 0 | CB66: 0 | CC66: 0 | CD66: 0 | CE66: 1.04 | CF66: 2.61 | CH66: 0 | CI66: 0
B67: Итого за 'Полдник' | C67: 153 | D67: 133 | E67: =SUM(E65:E66) -> 5.643 | F67: =SUM(F65:F66) -> 5.041 | G67: 6.83 | H67: 6.12 | I67: 22.372 | J67: 21.64 | K67: 171.9298 | L67: 160.4178 | M67: 0.48 | N67: 0 | O67: 0 | P67: 0 | Q67: 9.07 | R67: 11.68 | S67: 0.53 | T67: 0 | U67: 0 | V67: 0.12 | W67: 0.23 | X67: 75.9 | Y67: 25.3 | Z67: 17.23 | AA67: 7.65 | AB67: 20.7 | AC67: 1 | AD67: 2.3 | AE67: 1.84 | AF67: 2.53 | AG67: 0.81 | AH67: 0.96 | AI67: 5.77 | AJ67: 0.16 | AK67: 0.44 | AL67: 0.12 | AM67: 0 | AN67: 286.81 | AO67: 212.98 | AP67: 366.62 | AQ67: 329.59 | AR67: 100.74 | AS67: 186.76 | AT67: 54.74 | AU67: 213.44 | AV67: 0 | AW67: 0 | AX67: 0 | AY67: 100.97 | AZ67: 0 | BA67: 0 | BB67: 0 | BC67: 0 | BD67: 0 | BE67: 0 | BF67: 0 | BG67: 0 | BH67: 0 | BI67: 0 | BJ67: 0 | BK67: 0 | BL67: 0 | BM67: 0 | BN67: 0 | BO67: 0 | BP67: 0 | BQ67: 0 | BR67: =SUM(BR65:BR66) -> 0 | BS67: 0 | BT67: 0 | BU67: 0 | BV67: 0 | BW67: 0 | BX67: 0 | BY67: 0 | BZ67: 0 | CA67: 0 | CB67: 0 | CC67: 0 | CD67: 0 | CE67: 1.04 | CF67: 2.61 | CG67: 0 | CH67: 0.13 | CI67: 0.11
B68: Ужин
A69: 386/16 | B69: Апельсины | C69: 70 | D69: ="70" -> 70 | E69: 0.63 | F69: 0.63 | G69: 0.14 | H69: 0.14 | I69: 7.21 | J69: 7.21 | K69: 31.136 | L69: 31.136 | M69: 0 | N69: 0 | O69: 0 | P69: 0 | Q69: 5.67 | R69: 0 | S69: 1.54 | T69: 0 | U69: 0 | V69: 0.91 | W69: 0.35 | X69: 9.1 | Y69: 137.9 | Z69: 23.8 | AA69: 9.1 | AB69: 16.1 | AC69: 0.21 | AD69: 0 | AE69: 35 | AF69: 5.6 | AG69: 0.14 | AH69: 0.03 | AI69: 0.02 | AJ69: 0.14 | AK69: 0.21 | AL69: 42 | AM69: 0 | AN69: 24.5 | AO69: 18.9 | AP69: 14 | AQ69: 25.2 | AR69: 9.1 | AS69: 9.1 | AT69: 4.2 | AU69: 18.9 | AV69: 30.1 | AW69: 39.2 | AX69: 69.3 | AY69: 10.5 | AZ69: 57.4 | BA69: 57.4 | BB69: 0 | BC69: 28 | BD69: 19.6 | BE69: 9.8 | BF69: 6.3 | BG69: 0 | BH69: 0 | BI69: 0 | BJ69: 0 | BK69: 0 | BL69: 0 | BM69: 0 | BN69: 0 | BO69: 0 | BP69: 0 | BQ69: 0 | BR69: 0 | BS69: 0 | BT69: 0 | BU69: 0 | BV69: 0 | BW69: 0 | BX69: 0 | BY69: 0 | BZ69: 0 | CA69: 0 | CB69: 0 | CC69: 0 | CD69: 0 | CE69: 60.76 | CF69: 5.83 | CH69: 42 | CI69: 42
A70: 20/5 | B70: Суфле творожное с молоком сгущенным | C70: 130/20 | D70: ="105/20" -> 105/20 | E70: 20.38 | F70: 16.7 | G70: 14.58 | H70: 12 | I70: 27.27 | J70: 23.6 | K70: 321.5 | L70: 270 | M70: 1045.72 | N70: 1.37 | O70: 0 | P70: 0 | Q70: 9201.74 | R70: 4.54 | S70: 0.23 | T70: 0 | U70: 0 | V70: 81 | W70: 361.32 | X70: 26158.31 | Y70: 56655.82 | Z70: 47687.8 | AA70: 5166.79 | AB70: 33336.97 | AC70: 30.9 | AD70: 3070.18 | AE70: 3867.55 | AF70: 9482.79 | AG70: 41.28 | AH70: 6.26 | AI70: 48.87 | AJ70: 25.95 | AK70: 363.72 | AL70: 32.24 | AM70: 0 | AN70: 80877.98 | AO70: 74543.51 | AP70: 96342.29 | AQ70: 96438.97 | AR70: 29542.62 | AS70: 54364.29 | AT70: 16993.42 | AU70: 57286.27 | AV70: 41906.91 | AW70: 42619.66 | AX70: 93984.92 | AY70: 30474.76 | AZ70: 24898.49 | BA70: 281859.67 | BB70: 1.38 | BC70: 138028.25 | BD70: 74077.8 | BE70: 60508.39 | BF70: 12316.09 | BG70: 0 | BH70: 0 | BI70: 0 | BJ70: 0 | BK70: 0 | BL70: 0 | BM70: 0 | BN70: 0.13 | BO70: 0 | BP70: 0.08 | BQ70: 0.01 | BR70: 0.01 | BS70: 0 | BT70: 0 | BU70: 0 | BV70: 383 | BW70: 0 | BX70: 0 | BY70: 37.28 | BZ70: 9.3 | CA70: 12.39 | CB70: 0 | CC70: 0 | CD70: 0 | CE70: 5400.8 | CF70: 3714.77 | CH70: 0.3 | CI70: 0.3
B71: Чай с лимоном | C71: 180 | D71: ="150" -> 150 | E71: 0.24 | F71: 0.2 | G71: 0.05 | H71: 0.04 | I71: 9.43 | J71: 7.86 | K71: 37.931 | L71: 31.60875 | M71: 0 | N71: 0 | O71: 0 | P71: 0 | Q71: 7.67 | R71: 0 | S71: 0.19 | T71: 0 | U71: 0 | V71: 0.3 | W71: 0.08 | X71: 0.65 | Y71: 8.78 | Z71: 2.33 | AA71: 0.63 | AB71: 1.16 | AC71: 0.05 | AD71: 0 | AE71: 0.53 | AF71: 0.11 | AG71: 0.01 | AH71: 0 | AI71: 0 | AJ71: 0.01 | AK71: 0.01 | AL71: 2.1 | AM71: 0 | AN71: 0.74 | AO71: 0.84 | AP71: 0.68 | AQ71: 1.26 | AR71: 0.32 | AS71: 1.31 | AT71: 0 | AU71: 1.68 | AV71: 0 | AW71: 0 | AX71: 0 | AY71: 0.95 | AZ71: 0 | BA71: 0 | BB71: 0 | BC71: 0 | BD71: 0 | BE71: 0 | BF71: 0 | BG71: 0 | BH71: 0 | BI71: 0 | BJ71: 0 | BK71: 0 | BL71: 0 | BM71: 0 | BN71: 0 | BO71: 0 | BP71: 0 | BQ71: 0 | BR71: 0 | BS71: 0 | BT71: 0 | BU71: 0 | BV71: 0 | BW71: 0 | BX71: 0 | BY71: 0 | BZ71: 0 | CA71: 0 | CB71: 0 | CC71: 0 | CD71: 0 | CE71: 4.68 | CF71: 0.09 | CH71: 2.5 | CI71: 2.1
A72: - | B72: Хлеб пшеничный | C72: 30 | D72: ="30" -> 30 | E72: 1.98 | F72: 1.98 | G72: 0.2 | H72: 0.2 | I72: 14.07 | J72: 14.07 | K72: 67.1703 | L72: 67.1703 | M72: 0 | N72: 0 | O72: 0 | P72: 0 | Q72: 0.33 | R72: 13.68 | S72: 0.06 | T72: 0 | U72: 0 | V72: 0 | W72: 0.54 | X72: 0 | Y72: 0 | Z72: 0 | AA72: 0 | AB72: 0 | AC72: 0 | AD72: 0 | AE72: 0 | AF72: 0 | AG72: 0 | AH72: 0 | AI72: 0 | AJ72: 0 | AK72: 0 | AL72: 0 | AM72: 0 | AN72: 95.79 | AO72: 99.7 | AP72: 152.69 | AQ72: 50.63 | AR72: 30.02 | AS72: 60.03 | AT72: 22.71 | AU72: 108.58 | AV72: 67.34 | AW72: 93.96 | AX72: 77.52 | AY72: 40.72 | AZ72: 72.04 | BA72: 602.39 | BB72: 0 | BC72: 196.27 | BD72: 85.35 | BE72: 56.64 | BF72: 44.89 | BG72: 0 | BH72: 0 | BI72: 0 | BJ72: 0 | BK72: 0 | BL72: 0 | BM72: 0 | BN72: 0.02 | BO72: 0 | BP72: 0 | BQ72: 0 | BR72: 0 | BS72: 0 | BT72: 0 | BU72: 0 | BV72: 0.02 | BW72: 0 | BX72: 0 | BY72: 0.08 | BZ72: 0 | CA72: 0 | CB72: 0 | CC72: 0 | CD72: 0 | CE72: 11.73 | CF72: 0 | CH72: 0 | CI72: 0
B73: Итого за 'Ужин' | C73: 430 | D73: 375 | E73: =SUM(E69:E72) -> 23.23 | F73: =SUM(F69:F72) -> 19.51 | G73: 14.97 | H73: 12.38 | I73: 57.98 | J73: 52.74 | K73: 457.7373 | L73: 399.91505 | M73: 1045.72 | N73: 1.37 | O73: 0 | P73: 0 | Q73: 9215.41 | R73: 18.22 | S73: 2.02 | T73: 0 | U73: 0 | V73: 82.21 | W73: 362.29 | X73: 26168.06 | Y73: 56802.5 | Z73: 47713.93 | AA73: 5176.52 | AB73: 33354.23 | AC73: 31.16 | AD73: 3070.18 | AE73: 3903.08 | AF73: 9488.5 | AG73: 41.43 | AH73: 6.29 | AI73: 48.89 | AJ73: 26.1 | AK73: 363.94 | AL73: 76.34 | AM73: 0 | AN73: 80999.01 | AO73: 74662.95 | AP73: 96509.66 | AQ73: 96516.06 | AR73: 29582.06 | AS73: 54434.73 | AT73: 17020.33 | AU73: 57415.43 | AV73: 42004.35 | AW73: 42752.82 | AX73: 94131.74 | AY73: 30526.93 | AZ73: 25027.93 | BA73: 282519.46 | BB73: 1.38 | BC73: 138252.52 | BD73: 74182.75 | BE73: 60574.83 | BF73: 12367.28 | BG73: 0 | BH73: 0 | BI73: 0 | BJ73: 0 | BK73: 0 | BL73: 0 | BM73: 0 | BN73: 0.15 | BO73: 0 | BP73: 0.08 | BQ73: 0.01 | BR73: =SUM(BR69:BR72) -> 0.01 | BS73: 0 | BT73: 0 | BU73: 0 | BV73: 383.02 | BW73: 0 | BX73: 0 | BY73: 37.36 | BZ73: 9.3 | CA73: 12.39 | CB73: 0 | CC73: 0 | CD73: 0 | CE73: 5477.97 | CF73: 3720.69 | CG73: 0 | CH73: 44.8 | CI73: 44.4
B74: Итого за день | E74: =SUM(E53+E56+E63+E67+E73) -> 79.813 | F74: =SUM(F53+F56+F63+F67+F73) -> 65.471 | G74: 76.13 | H74: 63.29 | I74: 239.182 | J74: 205.1 | K74: 1935.8941 | L74: 1632.019336 | M74: 1063.96 | N74: 4.68 | O74: 11.87 | P74: 0 | Q74: 9275.07 | R74: 100.39 | S74: 12.04 | T74: 0 | U74: 0 | V74: 83.82 | W74: 368.84 | X74: 26983.76 | Y74: 57913.14 | Z74: 48042.38 | AA74: 5301.09 | AB74: 33910.46 | AC74: 39 | AD74: 3190.43 | AE74: 5954.42 | AF74: 10042.51 | AG74: 46.14 | AH74: 7.52 | AI74: 55.07 | AJ74: 30.79 | AK74: 376.17 | AL74: 86.14 | AM74: 0.2 | AN74: 82636.06 | AO74: 76000.81 | AP74: 98790.06 | AQ74: 98406.09 | AR74: 30207.18 | AS74: 55565.98 | AT74: 17402.37 | AU74: 58836.44 | AV74: 43166.89 | AW74: 44002.86 | AX74: 96080.48 | AY74: 31315.43 | AZ74: 26063.26 | BA74: 287116.02 | BB74: 170.98 | BC74: 139742.64 | BD74: 75180.46 | BE74: 61511.11 | BF74: 12764.19 | BG74: 0.59 | BH74: 0.17 | BI74: 0.15 | BJ74: 0.36 | BK74: 0.45 | BL74: 1.52 | BM74: 0.02 | BN74: 4.48 | BO74: 0.01 | BP74: 1.45 | BQ74: 0.04 | BR74: =SUM(BR53+BR56+BR63+BR67+BR73) -> 0.04 | BS74: 0 | BT74: 0.14 | BU74: 0.51 | BV74: 387.67 | BW74: 0 | BX74: 0 | BY74: 40.41 | BZ74: 9.34 | CA74: 12.39 | CB74: 0 | CC74: 0 | CD74: 0 | CE74: 6378.53 | CF74: 4182.84 | CG74: 0 | CH74: 55.03 | CI74: 52.91
B76: 3 ДЕНЬ
B77: Завтрак
A78: 311/04 | B78: Каша пшеничная молочная с маслом сливочным | C78: 180/5 | D78: ="150/5" -> 150/5 | E78: 6.66 | F78: 5.78 | G78: 6.72 | H78: 6.37 | I78: 34 | J78: 29.47 | K78: 213.64 | L78: 190.0381628 | M78: 2.68 | N78: 0.13 | O78: 3.71 | P78: 0 | Q78: 28.17 | R78: 0 | S78: 1.3 | T78: 0 | U78: 0 | V78: 0 | W78: 1.44 | X78: 274.49 | Y78: 185.59 | Z78: 106.46 | AA78: 28.37 | AB78: 142.84 | AC78: 1.45 | AD78: 45.22 | AE78: 24.18 | AF78: 32.65 | AG78: 0.05 | AH78: 0.11 | AI78: 0.14 | AJ78: 0.44 | AK78: 0.01 | AL78: 0.41 | AM78: 0 | AN78: 1.27 | AO78: 1.23 | AP78: 2.3 | AQ78: 1.37 | AR78: 0.54 | AS78: 1.47 | AT78: 1.32 | AU78: 1.27 | AV78: 1.08 | AW78: 0.78 | AX78: 1.76 | AY78: 1.08 | AZ78: 0.74 | BA78: 4.36 | BB78: 0 | BC78: 1.47 | BD78: 1.67 | BE78: 1.27 | BF78: 0.29 | BG78: 0.18 | BH78: 0.04 | BI78: 0.04 | BJ78: 0.09 | BK78: 0.12 | BL78: 0.38 | BM78: 0 | BN78: 1.21 | BO78: 0 | BP78: 0.37 | BQ78: 0 | BR78: 0 | BS78: 0 | BT78: 0.04 | BU78: 0.14 | BV78: 1.11 | BW78: 0 | BX78: 0 | BY78: 0.04 | BZ78: 0 | CA78: 0 | CB78: 0 | CC78: 0 | CD78: 0 | CE78: 0.8 | CF78: 49.25 | CH78: 0.5 | CI78: 0.4
A79: 27/10 | B79: Чай полусладкий | C79: 180 | D79: ="150" -> 150 | E79: 0.18 | F79: 0.15 | G79: 0.04 | H79: 0.04 | I79: 4.53 | J79: 3.78 | K79: 18.157 | L79: 15.130905 | M79: 0 | N79: 0 | O79: 0 | P79: 0 | Q79: 3.7 | R79: 0 | S79: 0.08 | T79: 0 | U79: 0 | V79: 0 | W79: 0.05 | X79: 0.04 | Y79: 0.11 | Z79: 0.11 | AA79: 0 | AB79: 0 | AC79: 0.01 | AD79: 0 | AE79: 0 | AF79: 0 | AG79: 0 | AH79: 0 | AI79: 0 | AJ79: 0 | AK79: 0 | AL79: 0 | AM79: 0 | AN79: 0 | AO79: 0 | AP79: 0 | AQ79: 0 | AR79: 0 | AS79: 0 | AT79: 0 | AU79: 0 | AV79: 0 | AW79: 0 | AX79: 0 | AY79: 0 | AZ79: 0 | BA79: 0 | BB79: 0 | BC79: 0 | BD79: 0 | BE79: 0 | BF79: 0 | BG79: 0 | BH79: 0 | BI79: 0 | BJ79: 0 | BK79: 0 | BL79: 0 | BM79: 0 | BN79: 0 | BO79: 0 | BP79: 0 | BQ79: 0 | BR79: 0 | BS79: 0 | BT79: 0 | BU79: 0 | BV79: 0 | BW79: 0 | BX79: 0 | BY79: 0 | BZ79: 0 | CA79: 0 | CB79: 0 | CC79: 0 | CD79: 0 | CE79: 150.07 | CF79: 0 | CH79: 0 | CI79: 0
A80: ="1/13" -> 1/13 | B80: Бутерброд с маслом | C80: 30/5 | D80: ="25/5" -> 25/5 | E80: 2.32 | F80: 1.94 | G80: 3.9 | H80: 3.85 | I80: 14.14 | J80: 11.79 | K80: 102.04 | L80: 90.542 | M80: 2.36 | N80: 0.11 | O80: 0 | P80: 0 | Q80: 0.34 | R80: 11.4 | S80: 0.05 | T80: 0 | U80: 0 | V80: 0 | W80: 0.52 | X80: 0.75 | Y80: 1.5 | Z80: 1.2 | AA80: 0 | AB80: 1.5 | AC80: 0.01 | AD80: 20 | AE80: 15 | AF80: 22.5 | AG80: 0.05 | AH80: 0 | AI80: 0.01 | AJ80: 0.01 | AK80: 0.01 | AL80: 0 | AM80: 0 | AN80: 93.85 | AO80: 97.55 | AP80: 150.05 | AQ80: 50.75 | AR80: 29.6 | AS80: 59.85 | AT80: 23.9 | AU80: 106.1 | AV80: 66.3 | AW80: 91.3 | AX80: 77.1 | AY80: 40.75 | AZ80: 70.2 | BA80: 584.1 | BB80: 0 | BC80: 190.4 | BD80: 84.45 | BE80: 56.35 | BF80: 43.5 | BG80: 0.13 | BH80: 0.06 | BI80: 0.03 | BJ80: 0.08 | BK80: 0.09 | BL80: 0.4 | BM80: 0 | BN80: 1.13 | BO80: 0 | BP80: 0.34 | BQ80: 0 | BR80: 0 | BS80: 0 | BT80: 0.08 | BU80: 0.12 | BV80: 0.92 | BW80: 0 | BX80: 0 | BY80: 0.14 | BZ80: 0.01 | CA80: 0 | CB80: 0 | CC80: 0 | CD80: 0 | CE80: 11.03 | CF80: 22.5 | CH80: 0 | CI80: 0
B81: Итого за 'Завтрак' | C81: 400 | D81: 335 | E81: =SUM(E78:E80) -> 9.16 | F81: 7.87 | G81: 10.66 | H81: 10.26 | I81: 52.67 | J81: 45.04 | K81: 333.837 | L81: 295.7110678 | M81: 5.04 | N81: 0.24 | O81: 3.71 | P81: 0 | Q81: 32.21 | R81: 11.4 | S81: 1.43 | T81: 0 | U81: 0 | V81: 0 | W81: 2.01 | X81: 275.28 | Y81: 187.2 | Z81: 107.77 | AA81: 28.37 | AB81: 144.34 | AC81: 1.47 | AD81: 65.22 | AE81: 39.18 | AF81: 55.15 | AG81: 0.1 | AH81: 0.11 | AI81: 0.15 | AJ81: 0.45 | AK81: =SUM(AK78:AK80) -> 0.02 | AL81: 0.41 | AM81: 0 | AN81: 95.12 | AO81: 98.78 | AP81: 152.35 | AQ81: 52.12 | AR81: 30.14 | AS81: 61.32 | AT81: 25.22 | AU81: 107.37 | AV81: 67.38 | AW81: 92.08 | AX81: 78.86 | AY81: 41.83 | AZ81: 70.94 | BA81: 588.46 | BB81: 0 | BC81: 191.87 | BD81: 86.12 | BE81: 57.62 | BF81: 43.79 | BG81: 0.31 | BH81: 0.1 | BI81: 0.07 | BJ81: 0.17 | BK81: 0.21 | BL81: 0.78 | BM81: 0 | BN81: 2.34 | BO81: 0 | BP81: 0.71 | BQ81: =SUM(BQ78:BQ80) -> 0 | BR81: 0 | BS81: 0 | BT81: 0.12 | BU81: 0.26 | BV81: 2.03 | BW81: 0 | BX81: 0 | BY81: 0.18 | BZ81: 0.01 | CA81: 0 | CB81: 0 | CC81: 0 | CD81: 0 | CE81: 161.9 | CF81: 71.75 | CG81: 0 | CH81: 0.5 | CI81: 0.4
B82: 10:00
A83: ="-" -> - | B83: Сок | C83: 100 | D83: ="100" -> 100 | E83: 0.5 | F83: 0.5 | G83: 0.1 | H83: 0.1 | I83: 10.3 | J83: 10.3 | K83: 43.24 | L83: 43.24 | M83: 0 | N83: 0 | O83: 0 | P83: 0 | Q83: 9.9 | R83: 0.2 | S83: 0.2 | T83: 0 | U83: 0 | V83: 0.5 | W83: 0.3 | X83: 6 | Y83: 120 | Z83: 7 | AA83: 4 | AB83: 7 | AC83: 1.4 | AD83: 0 | AE83: 0 | AF83: 0 | AG83: 0.1 | AH83: 0.01 | AI83: 0.01 | AJ83: 0.1 | AK83: 0.2 | AL83: 2 | AM83: 0.2 | AN83: 8 | AO83: 10 | AP83: 14 | AQ83: 14 | AR83: 2 | AS83: 8 | AT83: 2 | AU83: 7 | AV83: 13 | AW83: 8 | AX83: 58 | AY83: 5 | AZ83: 11 | BA83: 32 | BB83: 0 | BC83: 10 | BD83: 12 | BE83: 5 | BF83: 4 | BG83: 0 | BH83: 0 | BI83: 0 | BJ83: 0 | BK83: 0 | BL83: 0 | BM83: 0 | BN83: 0 | BO83: 0 | BP83: 0 | BQ83: 0 | BR83: 0 | BS83: 0 | BT83: 0 | BU83: 0 | BV83: 0 | BW83: 0 | BX83: 0 | BY83: 0 | BZ83: 0 | CA83: 0 | CB83: 0 | CC83: 0 | CD83: 0 | CE83: 88.1 | CF83: 0 | CH83: 2 | CI83: 2
B84: Итого за '10:00' | C84: 100 | D84: 100 | E84: 0.5 | F84: 0.5 | G84: 0.1 | H84: 0.1 | I84: 10.3 | J84: 10.3 | K84: 43.24 | L84: 43.24 | M84: 0 | N84: 0 | O84: 0 | P84: 0 | Q84: 9.9 | R84: 0.2 | S84: 0.2 | T84: 0 | U84: 0 | V84: 0.5 | W84: 0.3 | X84: 6 | Y84: 120 | Z84: 7 | AA84: 4 | AB84: 7 | AC84: 1.4 | AD84: 0 | AE84: 0 | AF84: 0 | AG84: 0.1 | AH84: 0.01 | AI84: 0.01 | AJ84: 0.1 | AK84: 0.2 | AL84: 2 | AM84: 0.2 | AN84: 8 | AO84: 10 | AP84: 14 | AQ84: 14 | AR84: 2 | AS84: 8 | AT84: 2 | AU84: 7 | AV84: 13 | AW84: 8 | AX84: 58 | AY84: 5 | AZ84: 11 | BA84: 32 | BB84: 0 | BC84: 10 | BD84: 12 | BE84: 5 | BF84: 4 | BG84: 0 | BH84: 0 | BI84: 0 | BJ84: 0 | BK84: 0 | BL84: 0 | BM84: 0 | BN84: 0 | BO84: 0 | BP84: 0 | BQ84: 0 | BR84: 0 | BS84: 0 | BT84: 0 | BU84: 0 | BV84: 0 | BW84: 0 | BX84: 0 | BY84: 0 | BZ84: 0 | CA84: 0 | CB84: 0 | CC84: 0 | CD84: 0 | CE84: 88.1 | CF84: 0 | CH84: 2 | CI84: 2
B85: Обед
A86: 71/17 | B86: Огурцы свежие порционно | C86: 50 | D86: ="30" -> 30 | E86: 0.4 | F86: 0.24 | G86: 0.05 | H86: 0.03 | I86: 1.25 | J86: 0.75 | K86: 7 | L86: 4.2 | M86: 0.23 | N86: 1.17 | O86: 0 | P86: 0 | Q86: 2.02 | R86: 0.03 | S86: 0.65 | T86: 0 | U86: 0 | V86: 0.03 | W86: 0.44 | X86: 66.94 | Y86: 67.01 | Z86: 10.22 | AA86: 5.79 | AB86: 11.4 | AC86: 0.37 | AD86: 0 | AE86: 2.47 | AF86: 0.59 | AG86: 0.82 | AH86: 0 | AI86: 0.01 | AJ86: 0.04 | AK86: 0.12 | AL86: 0.58 | AM86: 0 | AN86: 14.64 | AO86: 16.57 | AP86: 18.51 | AQ86: 25.41 | AR86: 5.52 | AS86: 14.64 | AT86: 3.59 | AU86: 12.43 | AV86: 11.05 | AW86: 20.16 | AX86: 90.6 | AY86: 3.87 | AZ86: 10.5 | BA86: 75.69 | BB86: 0 | BC86: 12.98 | BD86: 17.4 | BE86: 13.81 | BF86: 4.14 | BG86: 0 | BH86: 0 | BI86: 0 | BJ86: 0 | BK86: 0 | BL86: 0 | BM86: 0 | BN86: 0.11 | BO86: 0 | BP86: 0.07 | BQ86: 0.01 | BR86: 0.01 | BS86: 0 | BT86: 0 | BU86: 0 | BV86: 0.42 | BW86: 0 | BX86: 0 | BY86: 1.04 | BZ86: 0 | CA86: 0 | CB86: 0 | CC86: 0 | CD86: 0 | CE86: 25.52 | CF86: 0.41 | CH86: 2.45 | CI86: 1.47
A87: 140/04 | B87: Суп картофельный с макаронными изделиями с мясными фрикадельками | C87: 180/15 | D87: ="150/15" -> 150/15 | E87: 4.92 | F87: 4.58 | G87: 3.48 | H87: 3.14 | I87: 15.73 | J87: 13.14 | K87: 112.48 | L87: 97.853526 | M87: 1.51 | N87: 0.98 | O87: 0.83 | P87: 0 | Q87: 1.69 | R87: 10.29 | S87: 1.16 | T87: 0 | U87: 0 | V87: 0.12 | W87: 1.73 | X87: 334.31 | Y87: 315.33 | Z87: 14.16 | AA87: 17.36 | AB87: 56.8 | AC87: 0.78 | AD87: 1.88 | AE87: 656.91 | AF87: 125.25 | AG87: 0.84 | AH87: 0.07 | AI87: 0.05 | AJ87: 1.11 | AK87: 1.14 | AL87: 3.98 | AM87: 0 | AN87: 209.59 | AO87: 172.51 | AP87: 312.4 | AQ87: 449.82 | AR87: 87.52 | AS87: 168.65 | AT87: 50.26 | AU87: 179.61 | AV87: 222.98 | AW87: 266.06 | AX87: 345.26 | AY87: 131.72 | AZ87: 188.88 | BA87: 786.21 | BB87: 44.31 | BC87: 182.56 | BD87: 175.03 | BE87: 135.94 | BF87: 61.68 | BG87: 0.05 | BH87: 0.01 | BI87: 0.01 | BJ87: 0.03 | BK87: 0.03 | BL87: 0.11 | BM87: 0 | BN87: 0.13 | BO87: 0 | BP87: 0.07 | BQ87: 0 | BR87: 0.01 | BS87: 0 | BT87: 0 | BU87: 0.04 | BV87: 0.42 | BW87: 0 | BX87: 0 | BY87: 0.93 | BZ87: 0 | CA87: 0 | CB87: 0 | CC87: 0 | CD87: 0 | CE87: 176.79 | CF87: 111.36 | CH87: 4.8 | CI87: 4
A88: 394/04 | B88: Тефтели рыбные в томатно сметанном соусе | C88: 70/15 | D88: ="50/15" -> 50/15 | E88: 7.68 | F88: 5.53 | G88: 6.05 | H88: 4.51 | I88: 11.46 | J88: 8.46 | K88: 129.86 | L88: 95.73025381 | M88: 0.48 | N88: 0.02 | O88: 0.48 | P88: 0 | Q88: 1.26 | R88: 6.54 | S88: 0.67 | T88: 0 | U88: 0 | V88: 0.04 | W88: 0.59 | X88: 62.23 | Y88: 38.31 | Z88: 12.23 | AA88: 4.33 | AB88: 15.03 | AC88: 0.24 | AD88: 4.96 | AE88: 112.74 | AF88: 28.38 | AG88: 0.04 | AH88: 0.02 | AI88: 0.02 | AJ88: 0.16 | AK88: 0.07 | AL88: 1.16 | AM88: 0 | AN88: 3.57 | AO88: 3.24 | AP88: 5.88 | AQ88: 2.14 | AR88: 1.14 | AS88: 2.5 | AT88: 0.93 | AU88: 3.65 | AV88: 2.69 | AW88: 3.02 | AX88: 3.6 | AY88: 1.57 | AZ88: 2.59 | BA88: 22.28 | BB88: 0 | BC88: 6.66 | BD88: 3.74 | BE88: 1.96 | BF88: 1.42 | BG88: 0.03 | BH88: 0.01 | BI88: 0.01 | BJ88: 0.01 | BK88: 0.02 | BL88: 0.06 | BM88: 0 | BN88: 0.2 | BO88: 0 | BP88: 0.06 | BQ88: 0 | BR88: 0 | BS88: 0 | BT88: 0 | BU88: 0.02 | BV88: 0.18 | BW88: 0 | BX88: 0 | BY88: 0.01 | BZ88: 0 | CA88: 0 | CB88: 0 | CC88: 0 | CD88: 0 | CE88: 15.84 | CF88: 23.75 | CH88: 1.5 | CI88: 1.2
A89: 510/04 | B89: Картофельное пюре | C89: 130 | D89: ="120" -> 120 | E89: 2.64 | F89: 2.44 | G89: 4.17 | H89: 3.85 | I89: 18.79 | J89: 17.34 | K89: 122.23 | L89: 112.829315 | M89: 2.69 | N89: 0.11 | O89: 2.69 | P89: 0 | Q89: 2.03 | R89: 14 | S89: 1.31 | T89: 0 | U89: 0 | V89: 0.22 | W89: 1.68 | X89: 162.88 | Y89: 536.56 | Z89: 29.85 | AA89: 22.8 | AB89: 66.84 | AC89: 0.84 | AD89: 17.24 | AE89: 30.81 | AF89: 34.86 | AG89: 0.15 | AH89: 0.09 | AI89: 0.08 | AJ89: 1.08 | AK89: 2 | AL89: 8.3 | AM89: 0 | AN89: 25.15 | AO89: 39.58 | AP89: 50.1 | AQ89: 58.99 | AR89: 10.08 | AS89: 39.78 | AT89: 20.37 | AU89: 40.58 | AV89: 56.82 | AW89: 154.95 | AX89: 68.95 | AY89: 14.38 | AZ89: 40.14 | BA89: 215.74 | BB89: 0 | BC89: 30.13 | BD89: 27.4 | BE89: 29.97 | BF89: 12.78 | BG89: 0.14 | BH89: 0.03 | BI89: 0.03 | BJ89: 0.07 | BK89: 0.09 | BL89: 0.3 | BM89: 0 | BN89: 0.99 | BO89: 0 | BP89: 0.3 | BQ89: 0 | BR89: 0 | BS89: 0 | BT89: 0 | BU89: 0.11 | BV89: 1 | BW89: 0 | BX89: 0 | BY89: 0.12 | BZ89: 0 | CA89: 0 | CB89: 0 | CC89: 0 | CD89: 0 | CE89: 97.35 | CF89: 22.37 | CH89: 9 | CI89: 8.3
A90: 10/10 | B90: Напиток из кураги | C90: 180 | D90: ="150" -> 150 | E90: 0.69 | F90: 0.57 | G90: 0.04 | H90: 0.03 | I90: 14.33 | J90: 11.94 | K90: 54.112 | L90: 45.0932715 | M90: 0.01 | N90: 0 | O90: 0 | P90: 0 | Q90: 9.69 | R90: 0.32 | S90: 1.92 | T90: 0 | U90: 0 | V90: 0.17 | W90: 0.45 | X90: 1.94 | Y90: 191.36 | Z90: 17.59 | AA90: 11.22 | AB90: 15.28 | AC90: 0.36 | AD90: 0 | AE90: 354.38 | AF90: 65.59 | AG90: 0.62 | AH90: 0.01 | AI90: 0.02 | AJ90: 0.29 | AK90: 0.44 | AL90: 0.18 | AM90: 0 | AN90: 0.01 | AO90: 0 | AP90: 0.01 | AQ90: 0.01 | AR90: 0 | AS90: 0.01 | AT90: 0 | AU90: 0.01 | AV90: 0.01 | AW90: 0.01 | AX90: 0.03 | AY90: 0 | AZ90: 0 | BA90: 0.01 | BB90: 0 | BC90: 0.01 | BD90: 0.01 | BE90: 0 | BF90: 0 | BG90: 0 | BH90: 0 | BI90: 0 | BJ90: 0 | BK90: 0 | BL90: 0 | BM90: 0 | BN90: 0 | BO90: 0 | BP90: 0 | BQ90: 0 | BR90: 0 | BS90: 0 | BT90: 0 | BU90: 0 | BV90: 0.01 | BW90: 0 | BX90: 0 | BY90: 0 | BZ90: 0 | CA90: 0 | CB90: 0 | CC90: 0 | CD90: 0 | CE90: 159.75 | CF90: 59.06 | CH90: 0.2 | CI90: 0.2
A91: - | B91: Хлеб ржаной | C91: 50 | D91: ="35" -> 35 | E91: 3.3 | F91: 2.31 | G91: 0.6 | H91: 0.42 | I91: 20.85 | J91: 14.6 | K91: 96.69 | L91: 67.683 | M91: 0.07 | N91: 0 | O91: 0 | P91: 0 | Q91: 0.42 | R91: 11.27 | S91: 2.91 | T91: 0 | U91: 0 | V91: 0.35 | W91: 0.88 | X91: 213.5 | Y91: 85.75 | Z91: 12.25 | AA91: 16.45 | AB91: 55.3 | AC91: 1.37 | AD91: 0 | AE91: 1.75 | AF91: 0.35 | AG91: 0.49 | AH91: 0.06 | AI91: 0.03 | AJ91: 0.25 | AK91: 0.7 | AL91: 0 | AM91: 0 | AN91: 112.7 | AO91: 86.8 | AP91: 149.45 | AQ91: 78.05 | AR91: 32.55 | AS91: 69.3 | AT91: 28 | AU91: 129.85 | AV91: 103.95 | AW91: 101.85 | AX91: 162.4 | AY91: 43.4 | AZ91: 108.5 | BA91: 545.65 | BB91: 0 | BC91: 184.1 | BD91: 101.85 | BE91: 63 | BF91: 45.5 | BG91: 0 | BH91: 0 | BI91: 0 | BJ91: 0 | BK91: 0 | BL91: 0 | BM91: 0 | BN91: 0.05 | BO91: 0 | BP91: 0 | BQ91: 0.01 | BR91: 0 | BS91: 0 | BT91: 0 | BU91: 0 | BV91: 0.04 | BW91: 0 | BX91: 0 | BY91: 0.17 | BZ91: 0.03 | CA91: 0 | CB91: 0 | CC91: 0 | CD91: 0 | CE91: 16.45 | CF91: 0.29 | CH91: 0 | CI91: 0
B92: Итого за 'Обед' | C92: 690 | D92: 565 | E92: =SUM(E86:E91) -> 19.63 | F92: =SUM(F86:F91) -> 15.67 | G92: =SUM(G86:G91) -> 14.39 | H92: 11.98 | I92: 82.41 | J92: 66.23 | K92: 522.372 | L92: 423.3893663 | M92: 4.99 | N92: 2.28 | O92: 4 | P92: 0 | Q92: 17.11 | R92: 42.45 | S92: 8.62 | T92: 0 | U92: 0 | V92: 0.93 | W92: 5.77 | X92: 841.8 | Y92: 1234.32 | Z92: 96.3 | AA92: 77.95 | AB92: 220.65 | AC92: 3.96 | AD92: 24.08 | AE92: 1159.06 | AF92: 255.02 | AG92: 2.96 | AH92: 0.25 | AI92: 0.21 | AJ92: 2.93 | AK92: 4.47 | AL92: 14.2 | AM92: 0 | AN92: 365.66 | AO92: 318.7 | AP92: 536.35 | AQ92: 614.42 | AR92: 136.81 | AS92: 294.88 | AT92: 103.15 | AU92: 366.13 | AV92: 397.5 | AW92: 546.05 | AX92: 670.84 | AY92: 194.94 | AZ92: 350.61 | BA92: 1645.58 | BB92: 44.31 | BC92: 416.44 | BD92: 325.43 | BE92: 244.68 | BF92: 125.52 | BG92: 0.22 | BH92: 0.05 | BI92: 0.05 | BJ92: 0.11 | BK92: 0.14 | BL92: 0.47 | BM92: 0 | BN92: 1.48 | BO92: 0 | BP92: 0.5 | BQ92: 0.02 | BR92: 0.02 | BS92: =SUM(BS86:BS91) -> 0 | BT92: 0 | BU92: 0.17 | BV92: 2.07 | BW92: 0 | BX92: 0 | BY92: 2.27 | BZ92: 0.03 | CA92: 0 | CB92: 0 | CC92: 0 | CD92: 0 | CE92: 491.7 | CF92: 217.24 | CG92: 0 | CH92: 17.95 | CI92: 15.17
B93: Полдник
A94: ="297" -> 297 | B94: Катык | C94: 130 | D94: 110 | E94: 7.33 | F94: 6.204 | G94: 3.198 | H94: 2.706 | I94: 4.264 | J94: 3.608 | K94: 74.3402 | L94: 62.903 | M94: 0 | N94: 0 | O94: 0 | P94: 0 | Q94: 3.28 | R94: 0 | S94: 0 | T94: 0 | U94: 0 | V94: 0 | W94: 0 | X94: 0 | Y94: 0 | Z94: 0 | AA94: 0 | AB94: 0 | AC94: 0 | AD94: 0 | AE94: 0 | AF94: 0 | AG94: 0 | AH94: 0 | AI94: 0 | AJ94: 0 | AK94: 0 | AL94: 0 | AM94: 0 | AN94: 0 | AO94: 0 | AP94: 0 | AQ94: 0 | AR94: 0 | AS94: 0 | AT94: 0 | AU94: 0 | AV94: 0 | AW94: 0 | AX94: 0 | AY94: 0 | AZ94: 0 | BA94: 0 | BB94: 0 | BC94: 0 | BD94: 0 | BE94: 0 | BF94: 0 | BG94: 0 | BH94: 0 | BI94: 0 | BJ94: 0 | BK94: 0 | BL94: 0 | BM94: 0 | BN94: 0 | BO94: 0 | BP94: 0 | BQ94: 0 | BR94: 0 | BS94: 0 | BT94: 0 | BU94: 0 | BV94: 0 | BW94: 0 | BX94: 0 | BY94: 0 | BZ94: 0 | CA94: 0 | CB94: 0 | CC94: 0 | CD94: 0 | CE94: 0 | CF94: 0 | CH94: 0 | CI94: 0
A95: 452 | B95: Булочка домашняя | C95: 50 | D95: ="50" -> 50 | E95: 3.44 | F95: 3.44 | G95: 5.18 | H95: 5.18 | I95: 26.19 | J95: 26.19 | K95: 163.8744 | L95: 163.8743616 | M95: 4.09 | N95: 0.19 | O95: 4.09 | P95: 0 | Q95: 6.2 | R95: 19.01 | S95: 0.98 | T95: 0 | U95: 0 | V95: 0 | W95: 0.5 | X95: 0 | Y95: 34.01 | Z95: 6.83 | AA95: 4.23 | AB95: 24.62 | AC95: 0.36 | AD95: 16.68 | AE95: 18.48 | AF95: 51.12 | AG95: 0.59 | AH95: 0.03 | AI95: 0.02 | AJ95: 0.26 | AK95: 1.06 | AL95: 0 | AM95: 0 | AN95: 148.86 | AO95: 135.08 | AP95: 252.89 | AQ95: 84.09 | AR95: 49.98 | AS95: 99.98 | AT95: 33.36 | AU95: 156.51 | AV95: 105.96 | AW95: 127.12 | AX95: 114.23 | AY95: 64.03 | AZ95: 109.01 | BA95: 940.6 | BB95: 0.12 | BC95: 295 | BD95: 159.36 | BE95: 80.37 | BF95: 62.59 | BG95: 0.22 | BH95: 0.05 | BI95: 0.04 | BJ95: 0.11 | BK95: 0.14 | BL95: 0.45 | BM95: 0 | BN95: 1.45 | BO95: 0 | BP95: 0.44 | BQ95: 0 | BR95: 0 | BS95: 0 | BT95: 0 | BU95: 0.17 | BV95: 1.34 | BW95: 0 | BX95: 0 | BY95: 0.22 | BZ95: 0.01 | CA95: 0 | CB95: 0 | CC95: 0 | CD95: 0 | CE95: 20.89 | CF95: 19.76 | CH95: 0 | CI95: 0
B96: Итого за 'Полдник' | C96: 180 | D96: 160 | E96: =SUM(E94:E95) -> 10.77 | F96: =SUM(F94:F95) -> 9.644 | G96: 8.378 | H96: 7.886 | I96: 30.454 | J96: 29.798 | K96: 238.2146 | L96: 226.7773616 | M96: 4.09 | N96: 0.19 | O96: 4.09 | P96: 0 | Q96: 9.48 | R96: 19.01 | S96: 0.98 | T96: 0 | U96: 0 | V96: 0 | W96: 0.5 | X96: 0 | Y96: 34.01 | Z96: 6.83 | AA96: 4.23 | AB96: 24.62 | AC96: 0.36 | AD96: 16.68 | AE96: 18.48 | AF96: 51.12 | AG96: 0.59 | AH96: 0.03 | AI96: 0.02 | AJ96: 0.26 | AK96: 1.06 | AL96: 0 | AM96: 0 | AN96: 148.86 | AO96: 135.08 | AP96: 252.89 | AQ96: 84.09 | AR96: 49.98 | AS96: 99.98 | AT96: 33.36 | AU96: 156.51 | AV96: 105.96 | AW96: 127.12 | AX96: 114.23 | AY96: 64.03 | AZ96: 109.01 | BA96: 940.6 | BB96: 0.12 | BC96: 295 | BD96: 159.36 | BE96: 80.37 | BF96: 62.59 | BG96: 0.22 | BH96: 0.05 | BI96: 0.04 | BJ96: 0.11 | BK96: 0.14 | BL96: 0.45 | BM96: 0 | BN96: 1.45 | BO96: 0 | BP96: 0.44 | BQ96: 0 | BR96: =SUM(BR94:BR95) -> 0 | BS96: 0 | BT96: 0 | BU96: 0.17 | BV96: 1.34 | BW96: 0 | BX96: 0 | BY96: 0.22 | BZ96: 0.01 | CA96: 0 | CB96: 0 | CC96: 0 | CD96: 0 | CE96: 20.89 | CF96: 19.76 | CG96: 0 | CH96: 0 | CI96: 0
B97: Ужин
A98: 386/16 | B98: Груши | C98: 70 | D98: ="70" -> 70 | E98: 0.28 | F98: 0.28 | G98: 0.21 | H98: 0.21 | I98: 9.17 | J98: 9.17 | K98: 102.04 | L98: 35.483 | M98: 0 | N98: 0 | O98: 0 | P98: 0 | Q98: 6.86 | R98: 0.35 | S98: 1.96 | T98: 0 | U98: 0 | V98: 0.35 | W98: 0.49 | X98: 9.8 | Y98: 108.5 | Z98: 13.3 | AA98: 8.4 | AB98: 11.2 | AC98: 1.61 | AD98: 0 | AE98: 7 | AF98: 1.4 | AG98: 0.28 | AH98: 0.01 | AI98: 0.02 | AJ98: 0.07 | AK98: 0.14 | AL98: 3.5 | AM98: 0 | AN98: 17.5 | AO98: 17.5 | AP98: 16.1 | AQ98: 17.5 | AR98: 3.5 | AS98: 19.6 | AT98: 3.5 | AU98: 21.7 | AV98: 9.8 | AW98: 14.7 | AX98: 98 | AY98: 6.3 | AZ98: 5.6 | BA98: 18.9 | BB98: 0 | BC98: 4.9 | BD98: 11.2 | BE98: 8.4 | BF98: 2.1 | BG98: 0 | BH98: 0 | BI98: 0 | BJ98: 0 | BK98: 0 | BL98: 0 | BM98: 0 | BN98: 0 | BO98: 0 | BP98: 0 | BQ98: 0 | BR98: 0 | BS98: 0 | BT98: 0 | BU98: 0 | BV98: 0 | BW98: 0 | BX98: 0 | BY98: 0 | BZ98: 0 | CA98: 0 | CB98: 0 | CC98: 0 | CD98: 0 | CE98: 59.5 | CF98: 1.17 | CH98: 3.5 | CI98: 3.5
A99: 5/9 | B99: Биточки (котлеты) из мяса кур | C99: 70 | D99: ="50" -> 50 | E99: 13.09 | F99: 9.35 | G99: 10.49 | H99: 7.49 | I99: 8.91 | J99: 6.37 | K99: 181.94 | L99: 129.95783 | M99: 0.38 | N99: 1.82 | O99: 0 | P99: 0 | Q99: 0.33 | R99: 5.51 | S99: 0.52 | T99: 0 | U99: 0 | V99: 0.08 | W99: 0.55 | X99: 105.22 | Y99: 14.95 | Z99: 3.04 | AA99: 2.99 | AB99: 10.4 | AC99: 0.28 | AD99: 1.2 | AE99: 0.56 | AF99: 1.6 | AG99: 1.33 | AH99: 0.01 | AI99: 0.01 | AJ99: 0.04 | AK99: 0.16 | AL99: 0 | AM99: 0 | AN99: 34.62 | AO99: 34.85 | AP99: 54.33 | AQ99: 21.12 | AR99: 11.89 | AS99: 22.41 | AT99: 8.33 | AU99: 37.97 | AV99: 25.29 | AW99: 34.13 | AX99: 31.46 | AY99: 14.78 | AZ99: 25.1 | BA99: 200.13 | BB99: 0.08 | BC99: 64.17 | BD99: 32.21 | BE99: 20.58 | BF99: 15.83 | BG99: 0 | BH99: 0 | BI99: 0 | BJ99: 0 | BK99: 0 | BL99: 0 | BM99: 0 | BN99: 0.14 | BO99: 0 | BP99: 0.09 | BQ99: 0.01 | BR99: 0.01 | BS99: 0 | BT99: 0 | BU99: 0 | BV99: 0.5 | BW99: 0 | BX99: 0 | BY99: 1.26 | BZ99: 0 | CA99: 0 | CB99: 0 | CC99: 0 | CD99: 0 | CE99: 35.71 | CF99: 1.29 | CH99: 0 | CI99: 0
A100: 224/04 | B100: Рагу из овощей | C100: 150 | D100: ="130" -> 130 | E100: 2.6 | F100: 2.23 | G100: 10.2 | H100: 5.66 | I100: 16.25 | J100: 14.05 | K100: 163 | L100: 112.9774703 | M100: 2.05 | N100: 3.44 | O100: 2.05 | P100: 0 | Q100: 5.33 | R100: 7.98 | S100: 2.13 | T100: 0 | U100: 0 | V100: 0.35 | W100: 1.81 | X100: 281.35 | Y100: 401 | Z100: 26.04 | AA100: 19.3 | AB100: 45.97 | AC100: 0.8 | AD100: 5.32 | AE100: 264.86 | AF100: 82.96 | AG100: 2.49 | AH100: 0.06 | AI100: 0.05 | AJ100: 0.79 | AK100: 1.45 | AL100: 6.84 | AM100: 0 | AN100: 39.99 | AO100: 43.54 | AP100: 59.65 | AQ100: 53.74 | AR100: 14.86 | AS100: 40 | AT100: 15.08 | AU100: 47.06 | AV100: 57.48 | AW100: 110.83 | AX100: 98.67 | AY100: 19.83 | AZ100: 41.37 | BA100: 250.93 | BB100: 0 | BC100: 50.62 | BD100: 41.7 | BE100: 35.58 | BF100: 16.33 | BG100: 0.07 | BH100: 0.02 | BI100: 0.01 | BJ100: 0.04 | BK100: 0.05 | BL100: 0.15 | BM100: 0 | BN100: 0.79 | BO100: 0 | BP100: 0.34 | BQ100: 0.01 | BR100: 0.03 | BS100: 0 | BT100: 0 | BU100: 0.06 | BV100: 1.6 | BW100: 0 | BX100: 0 | BY100: 3.14 | BZ100: 0 | CA100: 0 | CB100: 0 | CC100: 0 | CD100: 0 | CE100: 114.45 | CF100: 49.46 | CH100: 7.9 | CI100: 6.8
A101: 31/10 | B101: Чай с молоком | C101: 180 | D101: ="150" -> 150 | E101: 1.46 | F101: 1.21 | G101: 1.46 | H101: 1.21 | I101: 6.6 | J101: 5.5 | K101: 43.985 | L101: 36.653955 | M101: 0.75 | N101: 0 | O101: 0 | P101: 0 | Q101: 5.42 | R101: 0 | S101: 0.08 | T101: 0 | U101: 0 | V101: 0.04 | W101: 0.31 | X101: 18.6 | Y101: 54.31 | Z101: 43.76 | AA101: 4.99 | AB101: 31.39 | AC101: 0.05 | AD101: 7.5 | AE101: 3.38 | AF101: 8.25 | AG101: 0 | AH101: 0.01 | AI101: 0.05 | AJ101: 0.03 | AK101: 0.3 | AL101: 0.2 | AM101: 0 | AN101: 59.9 | AO101: 59.17 | AP101: 101.43 | AQ101: 81.59 | AR101: 27.2 | AS101: 47.78 | AT101: 15.8 | AU101: 53.66 | AV101: 0 | AW101: 0 | AX101: 0 | AY101: 0 | AZ101: 0 | BA101: 0 | BB101: 0 | BC101: 0 | BD101: 0 | BE101: 67.62 | BF101: 9.56 | BG101: 0 | BH101: 0 | BI101: 0 | BJ101: 0 | BK101: 0 | BL101: 0 | BM101: 0 | BN101: 0 | BO101: 0 | BP101: 0 | BQ101: 0 | BR101: 0 | BS101: 0 | BT101: 0 | BU101: 0 | BV101: 0 | BW101: 0 | BX101: 0 | BY101: 0 | BZ101: 0 | CA101: 0 | CB101: 0 | CC101: 0 | CD101: 0 | CE101: 145.72 | CF101: 8.06 | CH101: 0.2 | CI101: 0.2
A102: - | B102: Хлеб пшеничный | C102: 30 | D102: ="30" -> 30 | E102: 1.98 | F102: 1.98 | G102: 0.2 | H102: 0.2 | I102: 14.07 | J102: 14.07 | K102: 67.1703 | L102: 67.1703 | M102: 0 | N102: 0 | O102: 0 | P102: 0 | Q102: 0.33 | R102: 13.68 | S102: 0.06 | T102: 0 | U102: 0 | V102: 0 | W102: 0.54 | X102: 0 | Y102: 0 | Z102: 0 | AA102: 0 | AB102: 0 | AC102: 0 | AD102: 0 | AE102: 0 | AF102: 0 | AG102: 0 | AH102: 0 | AI102: 0 | AJ102: 0 | AK102: 0 | AL102: 0 | AM102: 0 | AN102: 95.79 | AO102: 99.7 | AP102: 152.69 | AQ102: 50.63 | AR102: 30.02 | AS102: 60.03 | AT102: 22.71 | AU102: 108.58 | AV102: 67.34 | AW102: 93.96 | AX102: 77.52 | AY102: 40.72 | AZ102: 72.04 | BA102: 602.39 | BB102: 0 | BC102: 196.27 | BD102: 85.35 | BE102: 56.64 | BF102: 44.89 | BG102: 0 | BH102: 0 | BI102: 0 | BJ102: 0 | BK102: 0 | BL102: 0 | BM102: 0 | BN102: 0.02 | BO102: 0 | BP102: 0 | BQ102: 0 | BR102: 0 | BS102: 0 | BT102: 0 | BU102: 0 | BV102: 0.02 | BW102: 0 | BX102: 0 | BY102: 0.08 | BZ102: 0 | CA102: 0 | CB102: 0 | CC102: 0 | CD102: 0 | CE102: 11.73 | CF102: 0 | CH102: 0 | CI102: 0
B103: Итого за 'Ужин' | C103: 500 | D103: 430 | E103: =SUM(E98:E102) -> 19.41 | F103: =SUM(F98:F102) -> 15.05 | G103: 22.56 | H103: 14.77 | I103: 55 | J103: 49.16 | K103: 558.1353 | L103: 382.2425553 | M103: 3.18 | N103: 5.26 | O103: 2.05 | P103: 0 | Q103: 18.27 | R103: 27.52 | S103: 4.75 | T103: 0 | U103: 0 | V103: 0.82 | W103: 3.7 | X103: 414.97 | Y103: 578.76 | Z103: 86.14 | AA103: 35.68 | AB103: 98.96 | AC103: 2.74 | AD103: 14.02 | AE103: 275.8 | AF103: 94.21 | AG103: 4.1 | AH103: 0.09 | AI103: 0.13 | AJ103: 0.93 | AK103: 2.05 | AL103: 10.54 | AM103: 0 | AN103: 247.8 | AO103: 254.76 | AP103: 384.2 | AQ103: 224.58 | AR103: 87.47 | AS103: 189.82 | AT103: 65.42 | AU103: 268.97 | AV103: 159.91 | AW103: 253.62 | AX103: 305.65 | AY103: 81.63 | AZ103: 144.11 | BA103: 1072.35 | BB103: 0.08 | BC103: 315.96 | BD103: 170.46 | BE103: 188.82 | BF103: 88.71 | BG103: 0.07 | BH103: 0.02 | BI103: 0.01 | BJ103: 0.04 | BK103: 0.05 | BL103: 0.15 | BM103: 0 | BN103: 0.95 | BO103: 0 | BP103: 0.43 | BQ103: 0.02 | BR103: =SUM(BR98:BR102) -> 0.04 | BS103: 0 | BT103: 0 | BU103: 0.06 | BV103: 2.12 | BW103: 0 | BX103: 0 | BY103: 4.48 | BZ103: 0 | CA103: 0 | CB103: 0 | CC103: 0 | CD103: 0 | CE103: 367.11 | CF103: 59.98 | CG103: 0 | CH103: 11.6 | CI103: 10.5
B104: Итого за день | E104: =SUM(E81+E84+E92+E96+E103) -> 59.47 | F104: =SUM(F81+F84+F92+F96+F103) -> 48.734 | G104: 56.088 | H104: 44.996 | I104: 230.834 | J104: 200.528 | K104: 1695.7989 | L104: 1371.360351 | M104: 17.3 | N104: 7.97 | O104: 13.85 | P104: 0 | Q104: 86.97 | R104: 100.58 | S104: 15.98 | T104: 0 | U104: 0 | V104: 2.25 | W104: 12.28 | X104: 1538.05 | Y104: 2154.29 | Z104: 304.04 | AA104: 150.23 | AB104: 495.57 | AC104: 9.93 | AD104: 120 | AE104: 1492.52 | AF104: 455.5 | AG104: 7.85 | AH104: 0.49 | AI104: 0.52 | AJ104: 4.67 | AK104: 7.8 | AL104: 27.15 | AM104: 0.2 | AN104: 865.44 | AO104: 817.32 | AP104: 1339.79 | AQ104: 989.21 | AR104: 306.4 | AS104: 654 | AT104: 229.15 | AU104: 905.98 | AV104: 743.75 | AW104: 1026.87 | AX104: 1227.58 | AY104: 387.43 | AZ104: 685.67 | BA104: 4278.99 | BB104: 44.51 | BC104: 1229.27 | BD104: 753.37 | BE104: 576.49 | BF104: 324.61 | BG104: 0.82 | BH104: 0.22 | BI104: 0.17 | BJ104: 0.43 | BK104: 0.54 | BL104: 1.85 | BM104: 0 | BN104: 6.22 | BO104: 0 | BP104: 2.08 | BQ104: 0.04 | BR104: =SUM(BR81+BR84+BR92+BR96+BR103) -> 0.06 | BS104: 0 | BT104: 0.12 | BU104: 0.66 | BV104: 7.56 | BW104: 0 | BX104: 0 | BY104: 7.15 | BZ104: 0.05 | CA104: 0 | CB104: 0 | CC104: 0 | CD104: 0 | CE104: 1129.7 | CF104: 368.73 | CG104: 0 | CH104: 32.05 | CI104: 28.07
B106: 4 ДЕНЬ
B107: Завтрак
A108: ="26/2" -> 26/2 | B108: Суп молочный с крупой | C108: 180 | D108: ="150" -> 150 | E108: 3.31 | F108: 2.76 | G108: 3.92 | H108: 3.27 | I108: 13.79 | J108: 11.49 | K108: 102.89 | L108: 85.74035233 | M108: 2.08 | N108: 0.03 | O108: 0 | P108: 0 | Q108: 5 | R108: 6.23 | S108: 0.26 | T108: 0 | U108: 0 | V108: 0.08 | W108: 0.91 | X108: 153.35 | Y108: 117.73 | Z108: 89.38 | AA108: 14.31 | AB108: 75.86 | AC108: 0.18 | AD108: 19.67 | AE108: 9.9 | AF108: 21.75 | AG108: 0.05 | AH108: 0.03 | AI108: 0.11 | AJ108: 0.19 | AK108: 0.9 | AL108: 0.39 | AM108: 0 | AN108: 301.1 | AO108: 289.91 | AP108: 501.84 | AQ108: 382.42 | AR108: 133.96 | AS108: 231.92 | AT108: 78.84 | AU108: 269.2 | AV108: 34.81 | AW108: 45.28 | AX108: 48.28 | AY108: 15.39 | AZ108: 28.5 | BA108: 107.46 | BB108: 0 | BC108: 29.65 | BD108: 29.72 | BE108: 323.59 | BF108: 54.24 | BG108: 0.03 | BH108: 0.01 | BI108: 0.01 | BJ108: 0.02 | BK108: 0.02 | BL108: 0.09 | BM108: 0 | BN108: 0.27 | BO108: 0 | BP108: 0.08 | BQ108: 0 | BR108: 0 | BS108: 0 | BT108: 0.02 | BU108: 0.03 | BV108: 0.23 | BW108: 0 | BX108: 0 | BY108: 0.03 | BZ108: 0 | CA108: 0 | CB108: 0 | CC108: 0 | CD108: 0 | CE108: 150.35 | CF108: 21.32 | CH108: 0.5 | CI108: 0.4
A109: ="32/10" -> 32/10 | B109: Кофейный напиток с молоком | C109: 180 | D109: ="150" -> 150 | E109: 3 | F109: 2.5 | G109: 2.93 | H109: 2.44 | I109: 13.93 | J109: 11.6 | K109: 91.54 | L109: 76.28116667 | M109: 1.5 | N109: 0 | O109: 0 | P109: 0 | Q109: 11.6 | R109: 0 | S109: 0 | T109: 0 | U109: 0 | V109: 0.08 | W109: 0.53 | X109: 37.21 | Y109: 108.65 | Z109: 87.54 | AA109: 9.98 | AB109: 62.78 | AC109: 0.1 | AD109: 15 | AE109: 6.75 | AF109: 16.5 | AG109: 0 | AH109: 0.03 | AI109: 0.1 | AJ109: 0.06 | AK109: 0.6 | AL109: 0.39 | AM109: 0 | AN109: 119.81 | AO109: 118.34 | AP109: 202.86 | AQ109: 163.17 | AR109: 54.39 | AS109: 95.55 | AT109: 31.61 | AU109: 107.31 | AV109: 0 | AW109: 0 | AX109: 0 | AY109: 0 | AZ109: 0 | BA109: 0 | BB109: 0 | BC109: 0 | BD109: 0 | BE109: 135.24 | BF109: 19.11 | BG109: 0 | BH109: 0 | BI109: 0 | BJ109: 0 | BK109: 0 | BL109: 0 | BM109: 0 | BN109: 0 | BO109: 0 | BP109: 0 | BQ109: 0 | BR109: 0 | BS109: 0 | BT109: 0 | BU109: 0 | BV109: 0 | BW109: 0 | BX109: 0 | BY109: 0 | BZ109: 0 | CA109: 0 | CB109: 0 | CC109: 0 | CD109: 0 | CE109: 156.48 | CF109: 16.13 | CH109: 0.5 | CI109: 0.4
A110: 3/13 | B110: Бутерброд с маслом и сыром | C110: 30/5/7 | D110: ="25/5/5" -> 25/5/5 | E110: 4.16 | F110: 3.26 | G110: 5.76 | H110: 5.18 | I110: 14.14 | J110: 11.79 | K110: 126.59 | L110: 108.072 | M110: 3.12 | N110: 0.11 | O110: 0 | P110: 0 | Q110: 0.34 | R110: 11.4 | S110: 0.05 | T110: 0 | U110: 0 | V110: 0.1 | W110: 0.74 | X110: 55.75 | Y110: 6.5 | Z110: 51.2 | AA110: 2.75 | AB110: 31.5 | AC110: 0.05 | AD110: 30.5 | AE110: 23.5 | AF110: 34.4 | AG110: 0.07 | AH110: 0 | AI110: 0.03 | AJ110: 0.02 | AK110: 0.35 | AL110: 0.04 | AM110: 0 | AN110: 172.35 | AO110: 156.05 | AP110: 265.05 | AQ110: 129.75 | AR110: 57.6 | AS110: 107.35 | AT110: 58.9 | AU110: 173.1 | AV110: 104.3 | AW110: 134.8 | AX110: 155.1 | AY110: 75.75 | AZ110: 95.7 | BA110: 842.6 | BB110: 0 | BC110: 326.9 | BD110: 148.95 | BE110: 125.85 | BF110: 54.25 | BG110: 0.13 | BH110: 0.07 | BI110: 0.05 | BJ110: 0.13 | BK110: 0.15 | BL110: 0.56 | BM110: 0.02 | BN110: 1.48 | BO110: 0.01 | BP110: 0.42 | BQ110: 0.01 | BR110: 0 | BS110: 0 | BT110: 0.1 | BU110: 0.15 | BV110: 1.18 | BW110: 0 | BX110: 0 | BY110: 0.18 | BZ110: 0.01 | CA110: 0 | CB110: 0 | CC110: 0 | CD110: 0 | CE110: 13.07 | CF110: 34.42 | CH110: 0 | CI110: 0
B111: Итого за 'Завтрак' | C111: 402 | D111: 335 | E111: =SUM(E108:E110) -> 10.47 | F111: 8.52 | G111: 12.61 | H111: 10.89 | I111: 41.86 | J111: 34.88 | K111: 321.02 | L111: 270.093519 | M111: 6.7 | N111: 0.14 | O111: 0 | P111: 0 | Q111: 16.94 | R111: 17.63 | S111: 0.31 | T111: 0 | U111: 0 | V111: 0.26 | W111: 2.18 | X111: 246.31 | Y111: 232.88 | Z111: 228.12 | AA111: 27.04 | AB111: 170.14 | AC111: 0.33 | AD111: 65.17 | AE111: 40.15 | AF111: 72.65 | AG111: 0.12 | AH111: 0.06 | AI111: 0.24 | AJ111: 0.27 | AK111: =SUM(AK108:AK110) -> 1.85 | AL111: 0.82 | AM111: 0 | AN111: 593.26 | AO111: 564.3 | AP111: 969.75 | AQ111: 675.34 | AR111: 245.95 | AS111: 434.82 | AT111: 169.35 | AU111: 549.61 | AV111: 139.11 | AW111: 180.08 | AX111: 203.38 | AY111: 91.14 | AZ111: 124.2 | BA111: 950.06 | BB111: 0 | BC111: 356.55 | BD111: 178.67 | BE111: 584.68 | BF111: 127.6 | BG111: 0.16 | BH111: 0.08 | BI111: 0.06 | BJ111: 0.15 | BK111: 0.17 | BL111: 0.65 | BM111: 0.02 | BN111: 1.75 | BO111: 0.01 | BP111: 0.5 | BQ111: =SUM(BQ108:BQ110) -> 0.01 | BR111: 0 | BS111: 0 | BT111: 0.12 | BU111: 0.18 | BV111: 1.41 | BW111: 0 | BX111: 0 | BY111: 0.21 | BZ111: 0.01 | CA111: 0 | CB111: 0 | CC111: 0 | CD111: 0 | CE111: 319.9 | CF111: 71.87 | CG111: 0 | CH111: 1 | CI111: 0.8
B112: 10:00
A113: ="-" -> - | B113: Сок | C113: 100 | D113: ="100" -> 100 | E113: 0.5 | F113: 0.5 | G113: 0.1 | H113: 0.1 | I113: 10.3 | J113: 10.3 | K113: 43.24 | L113: 43.24 | M113: 0 | N113: 0 | O113: 0 | P113: 0 | Q113: 9.9 | R113: 0.2 | S113: 0.2 | T113: 0 | U113: 0 | V113: 0.5 | W113: 0.3 | X113: 6 | Y113: 120 | Z113: 7 | AA113: 4 | AB113: 7 | AC113: 1.4 | AD113: 0 | AE113: 0 | AF113: 0 | AG113: 0.1 | AH113: 0.01 | AI113: 0.01 | AJ113: 0.1 | AK113: 0.2 | AL113: 2 | AM113: 0.2 | AN113: 8 | AO113: 10 | AP113: 14 | AQ113: 14 | AR113: 2 | AS113: 8 | AT113: 2 | AU113: 7 | AV113: 13 | AW113: 8 | AX113: 58 | AY113: 5 | AZ113: 11 | BA113: 32 | BB113: 0 | BC113: 10 | BD113: 12 | BE113: 5 | BF113: 4 | BG113: 0 | BH113: 0 | BI113: 0 | BJ113: 0 | BK113: 0 | BL113: 0 | BM113: 0 | BN113: 0 | BO113: 0 | BP113: 0 | BQ113: 0 | BR113: 0 | BS113: 0 | BT113: 0 | BU113: 0 | BV113: 0 | BW113: 0 | BX113: 0 | BY113: 0 | BZ113: 0 | CA113: 0 | CB113: 0 | CC113: 0 | CD113: 0 | CE113: 88.1 | CF113: 0 | CH113: 2 | CI113: 2
B114: Итого за '10:00' | C114: 100 | D114: 100 | E114: 0.5 | F114: 0.5 | G114: 0.1 | H114: 0.1 | I114: 10.3 | J114: 10.3 | K114: 43.24 | L114: 43.24 | M114: 0 | N114: 0 | O114: 0 | P114: 0 | Q114: 9.9 | R114: 0.2 | S114: 0.2 | T114: 0 | U114: 0 | V114: 0.5 | W114: 0.3 | X114: 6 | Y114: 120 | Z114: 7 | AA114: 4 | AB114: 7 | AC114: 1.4 | AD114: 0 | AE114: 0 | AF114: 0 | AG114: 0.1 | AH114: 0.01 | AI114: 0.01 | AJ114: 0.1 | AK114: 0.2 | AL114: 2 | AM114: 0.2 | AN114: 8 | AO114: 10 | AP114: 14 | AQ114: 14 | AR114: 2 | AS114: 8 | AT114: 2 | AU114: 7 | AV114: 13 | AW114: 8 | AX114: 58 | AY114: 5 | AZ114: 11 | BA114: 32 | BB114: 0 | BC114: 10 | BD114: 12 | BE114: 5 | BF114: 4 | BG114: 0 | BH114: 0 | BI114: 0 | BJ114: 0 | BK114: 0 | BL114: 0 | BM114: 0 | BN114: 0 | BO114: 0 | BP114: 0 | BQ114: 0 | BR114: 0 | BS114: 0 | BT114: 0 | BU114: 0 | BV114: 0 | BW114: 0 | BX114: 0 | BY114: 0 | BZ114: 0 | CA114: 0 | CB114: 0 | CC114: 0 | CD114: 0 | CE114: 88.1 | CF114: 0 | CH114: 2 | CI114: 2
B115: Обед
A116: 71/17 | B116: Попидоры свежие порционно | C116: 50 | D116: ="30" -> 30 | E116: 0.3 | F116: 0.18 | G116: 0 | H116: 0 | I116: 1.9 | J116: 1.14 | K116: 7 | L116: 4.2 | M116: 0.57 | N116: 2.93 | O116: 0.01 | P116: 0 | Q116: 1 | R116: 1.26 | S116: 0.57 | T116: 0 | U116: 0 | V116: 0.08 | W116: 0.56 | X116: 103.11 | Y116: 68.61 | Z116: 5.64 | AA116: 5.87 | AB116: 14.13 | AC116: 0.18 | AD116: 0 | AE116: 560.21 | AF116: 116.74 | AG116: 2.03 | AH116: 0.02 | AI116: 0.01 | AJ116: 0.18 | AK116: 0.36 | AL116: 0.89 | AM116: 0 | AN116: 4.32 | AO116: 5.1 | AP116: 6.39 | AQ116: 6.88 | AR116: 1.29 | AS116: 4.94 | AT116: 2.04 | AU116: 4.97 | AV116: 7.25 | AW116: 15.11 | AX116: 12.88 | AY116: 1.89 | AZ116: 4.86 | BA116: 30.34 | BB116: 0 | BC116: 4.03 | BD116: 3.95 | BE116: 3.38 | BF116: 1.69 | BG116: 0 | BH116: 0 | BI116: 0 | BJ116: 0 | BK116: 0 | BL116: 0 | BM116: 0 | BN116: 0.25 | BO116: 0 | BP116: 0.16 | BQ116: 0.01 | BR116: 0.03 | BS116: 0 | BT116: 0 | BU116: 0 | BV116: 0.95 | BW116: 0 | BX116: 0 | BY116: 2.67 | BZ116: 0 | CA116: 0 | CB116: 0 | CC116: 0 | CD116: 0 | CE116: 23.84 | CF116: 93.37 | CH116: 1.5 | CI116: 0.9
A117: 124/04 | B117: Щи из свежей капусты с картофелем с куриными фрикадельками со сметаной | C117: 180/15/5 | D117: ="150/15/5" -> 150/15/5 | E117: 5.1 | F117: 4.9 | G117: 7.2 | H117: 6.6 | I117: 7.8 | J117: 6.6 | K117: 114 | L117: 103 | M117: 2.26 | N117: 1.95 | O117: 1.3 | P117: 0 | Q117: 2.75 | R117: 2.61 | S117: 1.16 | T117: 0 | U117: 0 | V117: 0.2 | W117: 1.64 | X117: 332.15 | Y117: 250.69 | Z117: 28.57 | AA117: 15.49 | AB117: 48.85 | AC117: 0.64 | AD117: 9.38 | AE117: 660.15 | AF117: 133.34 | AG117: 1.44 | AH117: 0.04 | AI117: 0.05 | AJ117: 0.94 | AK117: 0.78 | AL117: 7.22 | AM117: 0 | AN117: 192.29 | AO117: 151.28 | AP117: 270.5 | AQ117: 437.27 | AR117: 82.33 | AS117: 153.12 | AT117: 42.22 | AU117: 155.71 | AV117: 209.07 | AW117: 225.11 | AX117: 357.41 | AY117: 124.58 | AZ117: 171.18 | BA117: 626.58 | BB117: 44.31 | BC117: 134.57 | BD117: 155.8 | BE117: 128.07 | BF117: 52.3 | BG117: 0.09 | BH117: 0.02 | BI117: 0.02 | BJ117: 0.04 | BK117: 0.06 | BL117: 0.18 | BM117: 0 | BN117: 0.2 | BO117: 0 | BP117: 0.12 | BQ117: 0.01 | BR117: 0.02 | BS117: 0 | BT117: 0 | BU117: 0.07 | BV117: 0.73 | BW117: 0 | BX117: 0 | BY117: 1.75 | BZ117: 0 | CA117: 0 | CB117: 0 | CC117: 0 | CD117: 0 | CE117: 191.55 | CF117: 119.4 | CH117: 8.7 | CI117: 7.2
A118: 246/04 | B118: Гуляш из отварной говядины | C118: 40/40 | D118: ="35/40" -> 35/40 | E118: 10.72 | F118: 9.48 | G118: 10.74 | H118: 9.82 | I118: 3.5 | J118: 3.42 | K118: 152 | L118: 138.6686153 | M118: 4.01 | N118: 0 | O118: 4.01 | P118: 0 | Q118: 1.58 | R118: 1.28 | S118: 0.56 | T118: 0 | U118: 0 | V118: 0 | W118: 1.18 | X118: 177.07 | Y118: 141.27 | Z118: 10.67 | AA118: 14.8 | AB118: 82.58 | AC118: 1.34 | AD118: 0 | AE118: 1107.8 | AF118: 0 | AG118: 0.23 | AH118: 0.02 | AI118: 0.05 | AJ118: 1.94 | AK118: 4.63 | AL118: 0.24 | AM118: 0 | AN118: 499.66 | AO118: 377.52 | AP118: 713.53 | AQ118: 767.11 | AR118: 214.83 | AS118: 387.66 | AT118: 101.38 | AU118: 383.8 | AV118: 524.28 | AW118: 503.52 | AX118: 854.98 | AY118: 342.76 | AZ118: 452.35 | BA118: 1483.54 | BB118: 140 | BC118: 330.69 | BD118: 376.56 | BE118: 317.66 | BF118: 125.04 | BG118: 0 | BH118: 0 | BI118: 0 | BJ118: 0 | BK118: 0 | BL118: 0 | BM118: 0 | BN118: 0 | BO118: 0 | BP118: 0 | BQ118: 0 | BR118: 0 | BS118: 0 | BT118: 0 | BU118: 0 | BV118: 0 | BW118: 0 | BX118: 0 | BY118: 0 | BZ118: 0 | CA118: 0 | CB118: 0 | CC118: 0 | CD118: 0 | CE118: 36.42 | CF118: 184.63 | CH118: 0.2 | CI118: 0.2
A119: 107/01 | B119: Пюре гороховое | C119: 130 | D119: ="120" -> 120 | E119: 13.07 | F119: 12.07 | G119: 3.34 | H119: 3.08 | I119: 37.59 | J119: 34.7 | K119: 221.03 | L119: 204.0284631 | M119: 1.36 | N119: 0.06 | O119: 1.74 | P119: 0 | Q119: 2.72 | R119: 25.59 | S119: 6.38 | T119: 0 | U119: 0 | V119: 0 | W119: 2.14 | X119: 195.53 | Y119: 518.95 | Z119: 68.88 | AA119: 61.09 | AB119: 184.36 | AC119: 3.98 | AD119: 13.62 | AE119: 14.17 | AF119: 16.27 | AG119: 0.44 | AH119: 0.41 | AI119: 0.08 | AJ119: 1.12 | AK119: 3.9 | AL119: 0 | AM119: 0 | AN119: 594.48 | AO119: 641.5 | AP119: 971.28 | AQ119: 912.05 | AR119: 120.79 | AS119: 494.61 | AT119: 153.5 | AU119: 594.48 | AV119: 535.59 | AW119: 950.58 | AX119: 1310.31 | AY119: 270.99 | AZ119: 558.95 | BA119: 1867.78 | BB119: 0 | BC119: 388.77 | BD119: 492.94 | BE119: 406.32 | BF119: 147.14 | BG119: 0.09 | BH119: 0.02 | BI119: 0.02 | BJ119: 0.04 | BK119: 0.06 | BL119: 0.18 | BM119: 0 | BN119: 0.69 | BO119: 0 | BP119: 0.2 | BQ119: 0.01 | BR119: 0 | BS119: 0 | BT119: 0.02 | BU119: 0.07 | BV119: 0.74 | BW119: 0 | BX119: 0 | BY119: 0.55 | BZ119: 0.07 | CA119: 0 | CB119: 0 | CC119: 0 | CD119: 0 | CE119: 8.77 | CF119: 15.98 | CH119: 0 | CI119: 0
A120: 6/10 | B120: Напиток из сухофруктов | C120: 180 | D120: ="150" -> 150 | E120: 0.92 | F120: 0.76 | G120: 0.05 | H120: 0.04 | I120: 16.46 | J120: 13.72 | K120: 62.115 | L120: 51.76212 | M120: 0.02 | N120: 0 | O120: 0 | P120: 0 | Q120: 10.72 | R120: 0.43 | S120: 2.57 | T120: 0 | U120: 0 | V120: 0.23 | W120: 0.6 | X120: 2.56 | Y120: 255.09 | Z120: 23.39 | AA120: 14.96 | AB120: 20.37 | AC120: 0.48 | AD120: 0 | AE120: 472.5 | AF120: 87.45 | AG120: 0.83 | AH120: 0.01 | AI120: 0.03 | AJ120: 0.38 | AK120: 0.59 | AL120: 0.24 | AM120: 0 | AN120: 0.01 | AO120: 0.01 | AP120: 0.01 | AQ120: 0.01 | AR120: 0 | AS120: 0.01 | AT120: 0 | AU120: 0.01 | AV120: 0.01 | AW120: 0.01 | AX120: 0.04 | AY120: 0 | AZ120: 0.01 | BA120: 0.02 | BB120: 0 | BC120: 0.01 | BD120: 0.01 | BE120: 0 | BF120: 0 | BG120: 0 | BH120: 0 | BI120: 0 | BJ120: 0 | BK120: 0 | BL120: 0 | BM120: 0 | BN120: 0 | BO120: 0 | BP120: 0 | BQ120: 0 | BR120: 0 | BS120: 0 | BT120: 0 | BU120: 0 | BV120: 0.01 | BW120: 0 | BX120: 0 | BY120: 0 | BZ120: 0 | CA120: 0 | CB120: 0 | CC120: 0 | CD120: 0 | CE120: 160.5 | CF120: 78.75 | CH120: 0.3 | CI120: 0.2
A121: - | B121: Хлеб ржаной | C121: 50 | D121: ="35" -> 35 | E121: 3.3 | F121: 2.31 | G121: 0.6 | H121: 0.42 | I121: 20.85 | J121: 14.6 | K121: 96.69 | L121: 67.683 | M121: 0.07 | N121: 0 | O121: 0 | P121: 0 | Q121: 0.42 | R121: 11.27 | S121: 2.91 | T121: 0 | U121: 0 | V121: 0.35 | W121: 0.88 | X121: 213.5 | Y121: 85.75 | Z121: 12.25 | AA121: 16.45 | AB121: 55.3 | AC121: 1.37 | AD121: 0 | AE121: 1.75 | AF121: 0.35 | AG121: 0.49 | AH121: 0.06 | AI121: 0.03 | AJ121: 0.25 | AK121: 0.7 | AL121: 0 | AM121: 0 | AN121: 112.7 | AO121: 86.8 | AP121: 149.45 | AQ121: 78.05 | AR121: 32.55 | AS121: 69.3 | AT121: 28 | AU121: 129.85 | AV121: 103.95 | AW121: 101.85 | AX121: 162.4 | AY121: 43.4 | AZ121: 108.5 | BA121: 545.65 | BB121: 0 | BC121: 184.1 | BD121: 101.85 | BE121: 63 | BF121: 45.5 | BG121: 0 | BH121: 0 | BI121: 0 | BJ121: 0 | BK121: 0 | BL121: 0 | BM121: 0 | BN121: 0.05 | BO121: 0 | BP121: 0 | BQ121: 0.01 | BR121: 0 | BS121: 0 | BT121: 0 | BU121: 0 | BV121: 0.04 | BW121: 0 | BX121: 0 | BY121: 0.17 | BZ121: 0.03 | CA121: 0 | CB121: 0 | CC121: 0 | CD121: 0 | CE121: 16.45 | CF121: 0.29 | CH121: 0 | CI121: 0
B122: Итого за 'Обед' | C122: 690 | D122: 580 | E122: =SUM(E116:E121) -> 33.41 | F122: =SUM(F116:F121) -> 29.7 | G122: =SUM(G116:G121) -> 21.93 | H122: 19.96 | I122: 88.1 | J122: 74.18 | K122: 652.835 | L122: 569.3421983 | M122: 8.29 | N122: 4.94 | O122: 7.06 | P122: 0 | Q122: 19.19 | R122: 42.44 | S122: 14.15 | T122: 0 | U122: 0 | V122: 0.86 | W122: 7 | X122: 1023.92 | Y122: 1320.36 | Z122: 149.4 | AA122: 128.66 | AB122: 405.59 | AC122: 7.99 | AD122: 23 | AE122: 2816.58 | AF122: 354.15 | AG122: 5.46 | AH122: 0.56 | AI122: 0.25 | AJ122: 4.81 | AK122: 10.96 | AL122: 8.59 | AM122: 0 | AN122: 1403.46 | AO122: 1262.21 | AP122: 2111.16 | AQ122: 2201.37 | AR122: 451.79 | AS122: 1109.64 | AT122: 327.14 | AU122: 1268.82 | AV122: 1380.15 | AW122: 1796.18 | AX122: 2698.02 | AY122: 783.62 | AZ122: 1295.85 | BA122: 4553.91 | BB122: 184.31 | BC122: 1042.17 | BD122: 1131.11 | BE122: 918.43 | BF122: 371.67 | BG122: 0.18 | BH122: 0.04 | BI122: 0.04 | BJ122: 0.08 | BK122: 0.12 | BL122: 0.36 | BM122: 0 | BN122: 1.19 | BO122: 0 | BP122: 0.48 | BQ122: 0.04 | BR122: 0.05 | BS122: =SUM(BS116:BS121) -> 0 | BT122: 0.02 | BU122: 0.14 | BV122: 2.47 | BW122: 0 | BX122: 0 | BY122: 5.14 | BZ122: 0.1 | CA122: 0 | CB122: 0 | CC122: 0 | CD122: 0 | CE122: 437.53 | CF122: 492.42 | CG122: 0 | CH122: 10.7 | CI122: 8.5
B123: Полдник
A124: 297 | B124: Кефир | C124: 130 | D124: 110 | E124: 3.77 | F124: 3.19 | G124: 4.16 | H124: 3.52 | I124: 5.2 | J124: 4.4 | K124: 75.79 | L124: 64.13 | M124: 2 | N124: 0 | O124: 0 | P124: 0 | Q124: 4 | R124: 0 | S124: 0 | T124: 0 | U124: 0 | V124: 0.9 | W124: 0.7 | X124: 50 | Y124: 146 | Z124: 120 | AA124: 14 | AB124: 95 | AC124: 0.1 | AD124: 20 | AE124: 10 | AF124: 22 | AG124: 0 | AH124: 0.03 | AI124: 0.17 | AJ124: 0.1 | AK124: 0.8 | AL124: 0.7 | AM124: 0 | AN124: 135 | AO124: 160 | AP124: 277 | AQ124: 240 | AR124: 71 | AS124: 110 | AT124: 43 | AU124: 141 | AV124: 106 | AW124: 105 | AX124: 216 | AY124: 78 | AZ124: 46 | BA124: 506 | BB124: 0 | BC124: 272 | BD124: 185 | BE124: 155 | BF124: 20 | BG124: 0.1 | BH124: 0.07 | BI124: 0.04 | BJ124: 0.08 | BK124: 0.09 | BL124: 0.45 | BM124: 0.03 | BN124: 0.56 | BO124: 0.02 | BP124: 0.31 | BQ124: 0.04 | BR124: 0 | BS124: 0 | BT124: 0.04 | BU124: 0.08 | BV124: 0.69 | BW124: 0.01 | BX124: 0 | BY124: 0.02 | BZ124: 0.03 | CA124: 0.08 | CB124: 0 | CC124: 0 | CD124: 0 | CE124: 88.3 | CF124: 21.67 | CH124: 0.91 | CI124: 0.77
B125: Вафли | C125: 16 | D125: ="16" -> 16 | E125: 0.42 | F125: 0.42 | G125: 0.46 | H125: 0.46 | I125: 11.71 | J125: 11.71 | K125: 50.1135 | L125: 50.113504 | M125: 0.03 | N125: 0 | O125: 0 | P125: 0 | Q125: 11.25 | R125: 0 | S125: 0.45 | T125: 0 | U125: 0 | V125: 0.19 | W125: 0.05 | X125: 7.84 | Y125: 19.71 | Z125: 2.25 | AA125: 1.39 | AB125: 5.01 | AC125: 0.21 | AD125: 0.19 | AE125: 0.64 | AF125: 0.48 | AG125: 0.11 | AH125: 0 | AI125: 0.01 | AJ125: 0.05 | AK125: 0.11 | AL125: 0 | AM125: 0 | AN125: 0 | AO125: 0 | AP125: 0 | AQ125: 0 | AR125: 0 | AS125: 0 | AT125: 0 | AU125: 0 | AV125: 0 | AW125: 0 | AX125: 0 | AY125: 0 | AZ125: 0 | BA125: 0 | BB125: 0 | BC125: 0 | BD125: 0 | BE125: 0 | BF125: 0 | BG125: 0 | BH125: 0 | BI125: 0 | BJ125: 0 | BK125: 0 | BL125: 0 | BM125: 0 | BN125: 0 | BO125: 0 | BP125: 0 | BQ125: 0 | BR125: 0 | BS125: 0 | BT125: 0 | BU125: 0 | BV125: 0 | BW125: 0 | BX125: 0 | BY125: 0 | BZ125: 0 | CA125: 0 | CB125: 0 | CC125: 0 | CD125: 0 | CE125: 1.92 | CF125: 0.3 | CH125: 0 | CI125: 0
B126: Итого за 'Полдник' | C126: 146 | D126: 126 | E126: =SUM(E124:E125) -> 4.19 | F126: 3.61 | G126: 4.62 | H126: 3.98 | I126: 16.91 | J126: 16.11 | K126: 125.9035 | L126: 114.243504 | M126: 2.03 | N126: 0 | O126: 0 | P126: 0 | Q126: 15.25 | R126: 0 | S126: 0.45 | T126: 0 | U126: 0 | V126: 1.09 | W126: 0.75 | X126: 57.84 | Y126: 165.71 | Z126: 122.25 | AA126: 15.39 | AB126: 100.01 | AC126: 0.31 | AD126: 20.19 | AE126: 10.64 | AF126: 22.48 | AG126: 0.11 | AH126: 0.03 | AI126: 0.18 | AJ126: 0.15 | AK126: =SUM(AK124:AK125) -> 0.91 | AL126: 0.7 | AM126: 0 | AN126: 135 | AO126: 160 | AP126: 277 | AQ126: 240 | AR126: 71 | AS126: 110 | AT126: 43 | AU126: 141 | AV126: 106 | AW126: 105 | AX126: 216 | AY126: 78 | AZ126: 46 | BA126: 506 | BB126: 0 | BC126: 272 | BD126: 185 | BE126: 155 | BF126: 20 | BG126: 0.1 | BH126: 0.07 | BI126: 0.04 | BJ126: 0.08 | BK126: 0.09 | BL126: 0.45 | BM126: 0.03 | BN126: 0.56 | BO126: 0.02 | BP126: 0.31 | BQ126: =SUM(BQ124:BQ125) -> 0.04 | BR126: 0 | BS126: 0 | BT126: 0.04 | BU126: 0.08 | BV126: 0.69 | BW126: 0.01 | BX126: 0 | BY126: 0.02 | BZ126: 0.03 | CA126: 0.08 | CB126: 0 | CC126: 0 | CD126: 0 | CE126: 90.22 | CF126: 21.97 | CG126: 0 | CH126: 0.91 | CI126: 0.77
B127: Ужин
A128: 386/16 | B128: Яблоки | C128: 70 | D128: ="70" -> 70 | E128: 0.28 | F128: 0.28 | G128: 0.28 | H128: 0.28 | I128: 6.9 | J128: 6.9 | K128: 34.076 | L128: 34.076 | M128: 0.07 | N128: 0 | O128: 0 | P128: 0 | Q128: 6.3 | R128: 0.56 | S128: 1.26 | T128: 0 | U128: 0 | V128: 0.56 | W128: 0.35 | X128: 18.2 | Y128: 194.6 | Z128: 11.2 | AA128: 6.3 | AB128: 7.7 | AC128: 1.54 | AD128: 0 | AE128: 21 | AF128: 3.5 | AG128: 0.14 | AH128: 0.02 | AI128: 0.01 | AJ128: 0.21 | AK128: 0.28 | AL128: 7 | AM128: 0 | AN128: 8.4 | AO128: 9.1 | AP128: 13.3 | AQ128: 12.6 | AR128: 2.1 | AS128: 7.7 | AT128: 2.1 | AU128: 6.3 | AV128: 11.9 | AW128: 7 | AX128: 54.6 | AY128: 4.9 | AZ128: 9.8 | BA128: 29.4 | BB128: 0 | BC128: 9.1 | BD128: 11.2 | BE128: 4.2 | BF128: 3.5 | BG128: 0 | BH128: 0 | BI128: 0 | BJ128: 0 | BK128: 0 | BL128: 0 | BM128: 0 | BN128: 0 | BO128: 0 | BP128: 0 | BQ128: 0 | BR128: 0 | BS128: 0 | BT128: 0 | BU128: 0 | BV128: 0 | BW128: 0 | BX128: 0 | BY128: 0 | BZ128: 0 | CA128: 0 | CB128: 0 | CC128: 0 | CD128: 0 | CE128: 60.41 | CF128: 3.5 | CH128: 7 | CI128: 7
A129: ="27/10" -> 27/10 | B129: Чай полусладкий | C129: 180 | D129: ="150" -> 150 | E129: 0.18 | F129: 0.15 | G129: 0.04 | H129: 0.04 | I129: 4.53 | J129: 3.78 | K129: 18.157 | L129: 15.130905 | M129: 0 | N129: 0 | O129: 0 | P129: 0 | Q129: 3.7 | R129: 0 | S129: 0.08 | T129: 0 | U129: 0 | V129: 0 | W129: 0.05 | X129: 0.04 | Y129: 0.11 | Z129: 0.11 | AA129: 0 | AB129: 0 | AC129: 0.01 | AD129: 0 | AE129: 0 | AF129: 0 | AG129: 0 | AH129: 0 | AI129: 0 | AJ129: 0 | AK129: 0 | AL129: 0 | AM129: 0 | AN129: 0 | AO129: 0 | AP129: 0 | AQ129: 0 | AR129: 0 | AS129: 0 | AT129: 0 | AU129: 0 | AV129: 0 | AW129: 0 | AX129: 0 | AY129: 0 | AZ129: 0 | BA129: 0 | BB129: 0 | BC129: 0 | BD129: 0 | BE129: 0 | BF129: 0 | BG129: 0 | BH129: 0 | BI129: 0 | BJ129: 0 | BK129: 0 | BL129: 0 | BM129: 0 | BN129: 0 | BO129: 0 | BP129: 0 | BQ129: 0 | BR129: 0 | BS129: 0 | BT129: 0 | BU129: 0 | BV129: 0 | BW129: 0 | BX129: 0 | BY129: 0 | BZ129: 0 | CA129: 0 | CB129: 0 | CC129: 0 | CD129: 0 | CE129: 150.07 | CF129: 0 | CH129: 0 | CI129: 0
A130: ="18/5" -> 18/5 | B130: Пудинг из творога с изюмом с сгущенным молоком | C130: 90/15 | D130: 70/15 | E130: 14.35 | F130: 11.3 | G130: 9.45 | H130: 7.5 | I130: 28.63 | J130: 23.3 | K130: 253.69 | L130: 203 | M130: 5.23 | N130: 0.96 | O130: 0 | P130: 0 | Q130: 19.54 | R130: 4.87 | S130: 1.15 | T130: 0 | U130: 0 | V130: 0.88 | W130: 1.43 | X130: 147.1 | Y130: 183.8 | Z130: 135.49 | AA130: 21.63 | AB130: 160.21 | AC130: 0.71 | AD130: 31.58 | AE130: 26.58 | AF130: 61.75 | AG130: 0.38 | AH130: 0.04 | AI130: 0.19 | AJ130: 0.31 | AK130: 2.86 | AL130: 0.14 | AM130: 0 | AN130: 545.63 | AO130: 458.53 | AP130: 807.45 | AQ130: 636.9 | AR130: 241.11 | AS130: 411.59 | AT130: 134.76 | AU130: 483.31 | AV130: 83.68 | AW130: 93.56 | AX130: 155.23 | AY130: 273.57 | AZ130: 58.12 | BA130: 510.75 | BB130: 0.46 | BC130: 206.57 | BD130: 133.37 | BE130: 522.25 | BF130: 67.17 | BG130: 0.05 | BH130: 0.02 | BI130: 0.01 | BJ130: 0.03 | BK130: 0.03 | BL130: 0.15 | BM130: 0 | BN130: 0.49 | BO130: 0 | BP130: 0.18 | BQ130: 0 | BR130: 0.01 | BS130: 0 | BT130: 0.03 | BU130: 0.04 | BV130: 1.01 | BW130: 0 | BX130: 0 | BY130: 0.88 | BZ130: 0.02 | CA130: 0.01 | CB130: 0 | CC130: 0 | CD130: 0 | CE130: 48.43 | CF130: 36.01 | CH130: 0.2 | CI130: 0.1
A131: - | B131: Хлеб пшеничный | C131: 30 | D131: ="30" -> 30 | E131: 1.98 | F131: 1.98 | G131: 0.2 | H131: 0.2 | I131: 14.07 | J131: 14.07 | K131: 67.1703 | L131: 67.1703 | M131: 0 | N131: 0 | O131: 0 | P131: 0 | Q131: 0.33 | R131: 13.68 | S131: 0.06 | T131: 0 | U131: 0 | V131: 0 | W131: 0.54 | X131: 0 | Y131: 0 | Z131: 0 | AA131: 0 | AB131: 0 | AC131: 0 | AD131: 0 | AE131: 0 | AF131: 0 | AG131: 0 | AH131: 0 | AI131: 0 | AJ131: 0 | AK131: 0 | AL131: 0 | AM131: 0 | AN131: 95.79 | AO131: 99.7 | AP131: 152.69 | AQ131: 50.63 | AR131: 30.02 | AS131: 60.03 | AT131: 22.71 | AU131: 108.58 | AV131: 67.34 | AW131: 93.96 | AX131: 77.52 | AY131: 40.72 | AZ131: 72.04 | BA131: 602.39 | BB131: 0 | BC131: 196.27 | BD131: 85.35 | BE131: 56.64 | BF131: 44.89 | BG131: 0 | BH131: 0 | BI131: 0 | BJ131: 0 | BK131: 0 | BL131: 0 | BM131: 0 | BN131: 0.02 | BO131: 0 | BP131: 0 | BQ131: 0 | BR131: 0 | BS131: 0 | BT131: 0 | BU131: 0 | BV131: 0.02 | BW131: 0 | BX131: 0 | BY131: 0.08 | BZ131: 0 | CA131: 0 | CB131: 0 | CC131: 0 | CD131: 0 | CE131: 11.73 | CF131: 0 | CH131: 0 | CI131: 0
B132: Итого за 'Ужин' | C132: 385 | D132: 335 | E132: =SUM(E128:E131) -> 16.79 | F132: =SUM(F128:F131) -> 13.71 | G132: 9.97 | H132: 8.02 | I132: 54.13 | J132: 48.05 | K132: 373.0933 | L132: 319.377205 | M132: 5.3 | N132: 0.96 | O132: 0 | P132: 0 | Q132: 29.87 | R132: 19.11 | S132: 2.55 | T132: 0 | U132: 0 | V132: 1.44 | W132: 2.37 | X132: 165.34 | Y132: 378.51 | Z132: 146.8 | AA132: 27.93 | AB132: 167.91 | AC132: 2.26 | AD132: 31.58 | AE132: 47.58 | AF132: 65.25 | AG132: 0.52 | AH132: 0.06 | AI132: 0.2 | AJ132: 0.52 | AK132: 3.14 | AL132: 7.14 | AM132: 0 | AN132: 649.82 | AO132: 567.33 | AP132: 973.44 | AQ132: 700.13 | AR132: 273.23 | AS132: 479.32 | AT132: 159.57 | AU132: 598.19 | AV132: 162.92 | AW132: 194.52 | AX132: 287.35 | AY132: 319.19 | AZ132: 139.96 | BA132: 1142.54 | BB132: 0.46 | BC132: 411.94 | BD132: 229.92 | BE132: 583.09 | BF132: 115.56 | BG132: 0.05 | BH132: 0.02 | BI132: 0.01 | BJ132: 0.03 | BK132: 0.03 | BL132: 0.15 | BM132: 0 | BN132: 0.51 | BO132: 0 | BP132: 0.18 | BQ132: 0 | BR132: =SUM(BR128:BR131) -> 0.01 | BS132: 0 | BT132: 0.03 | BU132: 0.04 | BV132: 1.03 | BW132: 0 | BX132: 0 | BY132: 0.96 | BZ132: 0.02 | CA132: 0.01 | CB132: 0 | CC132: 0 | CD132: 0 | CE132: 270.64 | CF132: 39.51 | CG132: 0 | CH132: 7.2 | CI132: 7.1
B133: Итого за день | E133: =SUM(E111+E114+E122+E126+E132) -> 65.36 | F133: =SUM(F111+F114+F122+F126+F132) -> 56.04 | G133: 49.23 | H133: 42.95 | I133: 211.3 | J133: 183.52 | K133: 1516.0918 | L133: 1316.296426 | M133: 22.32 | N133: 6.04 | O133: 7.06 | P133: 0 | Q133: 91.15 | R133: 79.38 | S133: 17.66 | T133: 0 | U133: 0 | V133: 4.15 | W133: 12.6 | X133: 1499.41 | Y133: 2217.46 | Z133: 653.57 | AA133: 203.02 | AB133: 850.65 | AC133: 12.29 | AD133: 139.94 | AE133: 2914.95 | AF133: 514.53 | AG133: 6.31 | AH133: 0.72 | AI133: 0.88 | AJ133: 5.85 | AK133: 17.06 | AL133: 19.25 | AM133: 0.2 | AN133: 2789.54 | AO133: 2563.84 | AP133: 4345.35 | AQ133: 3830.84 | AR133: 1043.97 | AS133: 2141.78 | AT133: 701.06 | AU133: 2564.62 | AV133: 1801.18 | AW133: 2283.78 | AX133: 3462.75 | AY133: 1276.95 | AZ133: 1617.01 | BA133: 7184.51 | BB133: 184.77 | BC133: 2092.66 | BD133: 1736.7 | BE133: 2246.2 | BF133: 638.83 | BG133: 0.49 | BH133: 0.21 | BI133: 0.15 | BJ133: 0.34 | BK133: 0.41 | BL133: 1.61 | BM133: 0.05 | BN133: 4.01 | BO133: 0.03 | BP133: 1.47 | BQ133: 0.09 | BR133: =SUM(BR111+BR114+BR122+BR126+BR132) -> 0.06 | BS133: 0 | BT133: 0.21 | BU133: 0.44 | BV133: 5.6 | BW133: 0.01 | BX133: 0 | BY133: 6.33 | BZ133: 0.16 | CA133: 0.09 | CB133: 0 | CC133: 0 | CD133: 0 | CE133: 1206.39 | CF133: 625.77 | CG133: 0 | CH133: 21.81 | CI133: 19.17
B135: 5 ДЕНЬ
B136: Завтрак
A137: 302/04 | B137: Каша овсяная "Геркулес" молочная с маслом сливочным | C137: 180/5 | D137: ="150/5" -> 150/5 | E137: 7.22 | F137: 6.02 | G137: 9.15 | H137: 8.3 | I137: 32.96 | J137: 27.48 | K137: 239.33 | L137: 205.5438876 | M137: 4.62 | N137: 0.13 | O137: 4.55 | P137: 0 | Q137: 7.59 | R137: 18.08 | S137: 1.81 | T137: 0 | U137: 0 | V137: 0.07 | W137: 1.68 | X137: 264.42 | Y137: 214.37 | Z137: 102.39 | AA137: 48.25 | AB137: 153.3 | AC137: 1.24 | AD137: 44.27 | AE137: 23.08 | AF137: 48.89 | AG137: 0.58 | AH137: 0.13 | AI137: 0.12 | AJ137: 0.29 | AK137: 2.13 | AL137: 0.15 | AM137: 0 | AN137: 180.55 | AO137: 128.64 | AP137: 205.59 | AQ137: 135.83 | AR137: 39.6 | AS137: 123.12 | AT137: 63.75 | AU137: 173.19 | AV137: 156.66 | AW137: 236.4 | AX137: 295.01 | AY137: 79.19 | AZ137: 326.95 | BA137: 627.98 | BB137: 0 | BC137: 206.68 | BD137: 166.21 | BE137: 143.09 | BF137: 90.57 | BG137: 0.18 | BH137: 0.04 | BI137: 0.04 | BJ137: 0.09 | BK137: 0.12 | BL137: 0.39 | BM137: 0 | BN137: 1.63 | BO137: 0 | BP137: 0.39 | BQ137: 0 | BR137: 0 | BS137: 0 | BT137: 0.04 | BU137: 0.14 | BV137: 1.8 | BW137: 0 | BX137: 0 | BY137: 0.77 | BZ137: 0.02 | CA137: 0 | CB137: 0 | CC137: 0 | CD137: 0 | CE137: 119.24 | CF137: 48.11 | CH137: 0.2 | CI137: 0.2
A138: 36/10 | B138: Какао с молоком | C138: 180 | D138: ="150" -> 150 | E138: 2.86 | F138: 2.39 | G138: 2.77 | H138: 2.31 | I138: 14.4 | J138: 12 | K138: 90.617 | L138: 75.514569 | M138: 1.64 | N138: 0 | O138: 0 | P138: 0 | Q138: 11.41 | R138: 0.11 | S138: 0.48 | T138: 0 | U138: 0 | V138: 0.13 | W138: 0.63 | X138: 37.79 | Y138: 116.52 | Z138: 81.13 | AA138: 14.68 | AB138: 67.27 | AC138: 0.38 | AD138: 9 | AE138: 6.24 | AF138: 16.55 | AG138: 0 | AH138: 0.02 | AI138: 0.09 | AJ138: 0.08 | AK138: 0.7 | AL138: 0.39 | AM138: 0 | AN138: 114.92 | AO138: 113.51 | AP138: 194.58 | AQ138: 156.51 | AR138: 52.17 | AS138: 91.65 | AT138: 30.32 | AU138: 102.93 | AV138: 0 | AW138: 0 | AX138: 0 | AY138: 0 | AZ138: 0 | BA138: 0 | BB138: 0 | BC138: 0 | BD138: 0 | BE138: 129.72 | BF138: 18.33 | BG138: 0 | BH138: 0 | BI138: 0 | BJ138: 0 | BK138: 0 | BL138: 0 | BM138: 0 | BN138: 0 | BO138: 0 | BP138: 0 | BQ138: 0 | BR138: 0 | BS138: 0 | BT138: 0 | BU138: 0 | BV138: 0 | BW138: 0 | BX138: 0 | BY138: 0 | BZ138: 0 | CA138: 0 | CB138: 0 | CC138: 0 | CD138: 0 | CE138: 150.38 | CF138: 10.04 | CH138: 0.5 | CI138: 0.4
A139: ="1/13" -> 1/13 | B139: Бутерброд с маслом | C139: 30/5 | D139: ="25/5" -> 25/5 | E139: 2.32 | F139: 1.94 | G139: 3.9 | H139: 3.85 | I139: 14.14 | J139: 11.79 | K139: 102.04 | L139: 90.542 | M139: 2.36 | N139: 0.11 | O139: 0 | P139: 0 | Q139: 0.34 | R139: 11.4 | S139: 0.05 | T139: 0 | U139: 0 | V139: 0 | W139: 0.52 | X139: 0.75 | Y139: 1.5 | Z139: 1.2 | AA139: 0 | AB139: 1.5 | AC139: 0.01 | AD139: 20 | AE139: 15 | AF139: 22.5 | AG139: 0.05 | AH139: 0 | AI139: 0.01 | AJ139: 0.01 | AK139: 0.01 | AL139: 0 | AM139: 0 | AN139: 93.85 | AO139: 97.55 | AP139: 150.05 | AQ139: 50.75 | AR139: 29.6 | AS139: 59.85 | AT139: 23.9 | AU139: 106.1 | AV139: 66.3 | AW139: 91.3 | AX139: 77.1 | AY139: 40.75 | AZ139: 70.2 | BA139: 584.1 | BB139: 0 | BC139: 190.4 | BD139: 84.45 | BE139: 56.35 | BF139: 43.5 | BG139: 0.13 | BH139: 0.06 | BI139: 0.03 | BJ139: 0.08 | BK139: 0.09 | BL139: 0.4 | BM139: 0 | BN139: 1.13 | BO139: 0 | BP139: 0.34 | BQ139: 0 | BR139: 0 | BS139: 0 | BT139: 0.08 | BU139: 0.12 | BV139: 0.92 | BW139: 0 | BX139: 0 | BY139: 0.14 | BZ139: 0.01 | CA139: 0 | CB139: 0 | CC139: 0 | CD139: 0 | CE139: 11.03 | CF139: 22.5 | CH139: 0 | CI139: 0
B140: Итого за 'Завтрак' | C140: 400 | D140: 335 | E140: =SUM(E137:E139) -> 12.4 | F140: 10.35 | G140: 15.82 | H140: 14.46 | I140: 61.5 | J140: 51.27 | K140: 431.987 | L140: 371.6004566 | M140: 8.62 | N140: 0.24 | O140: 4.55 | P140: 0 | Q140: 19.34 | R140: 29.59 | S140: 2.34 | T140: 0 | U140: 0 | V140: 0.2 | W140: 2.83 | X140: 302.96 | Y140: 332.39 | Z140: 184.72 | AA140: 62.93 | AB140: 222.07 | AC140: 1.63 | AD140: 73.27 | AE140: 44.32 | AF140: 87.94 | AG140: 0.63 | AH140: 0.15 | AI140: 0.22 | AJ140: 0.38 | AK140: =SUM(AK137:AK139) -> 2.84 | AL140: 0.54 | AM140: 0 | AN140: 389.32 | AO140: 339.7 | AP140: 550.22 | AQ140: 343.09 | AR140: 121.37 | AS140: 274.62 | AT140: 117.97 | AU140: 382.22 | AV140: 222.96 | AW140: 327.7 | AX140: 372.11 | AY140: 119.94 | AZ140: 397.15 | BA140: 1212.08 | BB140: 0 | BC140: 397.08 | BD140: 250.66 | BE140: 329.16 | BF140: 152.4 | BG140: 0.31 | BH140: 0.1 | BI140: 0.07 | BJ140: 0.17 | BK140: 0.21 | BL140: 0.79 | BM140: 0 | BN140: 2.76 | BO140: 0 | BP140: 0.73 | BQ140: =SUM(BQ137:BQ139) -> 0 | BR140: 0 | BS140: 0 | BT140: 0.12 | BU140: 0.26 | BV140: 2.72 | BW140: 0 | BX140: 0 | BY140: 0.91 | BZ140: 0.03 | CA140: 0 | CB140: 0 | CC140: 0 | CD140: 0 | CE140: 280.65 | CF140: 80.65 | CG140: 0 | CH140: 0.7 | CI140: 0.6
B141: 10:00
A142: ="-" -> - | B142: Сок | C142: 100 | D142: ="100" -> 100 | E142: 0.5 | F142: 0.5 | G142: 0.1 | H142: 0.1 | I142: 10.3 | J142: 10.3 | K142: 43.24 | L142: 43.24 | M142: 0 | N142: 0 | O142: 0 | P142: 0 | Q142: 9.9 | R142: 0.2 | S142: 0.2 | T142: 0 | U142: 0 | V142: 0.5 | W142: 0.3 | X142: 6 | Y142: 120 | Z142: 7 | AA142: 4 | AB142: 7 | AC142: 1.4 | AD142: 0 | AE142: 0 | AF142: 0 | AG142: 0.1 | AH142: 0.01 | AI142: 0.01 | AJ142: 0.1 | AK142: 0.2 | AL142: 2 | AM142: 0.2 | AN142: 8 | AO142: 10 | AP142: 14 | AQ142: 14 | AR142: 2 | AS142: 8 | AT142: 2 | AU142: 7 | AV142: 13 | AW142: 8 | AX142: 58 | AY142: 5 | AZ142: 11 | BA142: 32 | BB142: 0 | BC142: 10 | BD142: 12 | BE142: 5 | BF142: 4 | BG142: 0 | BH142: 0 | BI142: 0 | BJ142: 0 | BK142: 0 | BL142: 0 | BM142: 0 | BN142: 0 | BO142: 0 | BP142: 0 | BQ142: 0 | BR142: 0 | BS142: 0 | BT142: 0 | BU142: 0 | BV142: 0 | BW142: 0 | BX142: 0 | BY142: 0 | BZ142: 0 | CA142: 0 | CB142: 0 | CC142: 0 | CD142: 0 | CE142: 88.1 | CF142: 0 | CH142: 2 | CI142: 2
B143: Итого за '10:00' | C143: 100 | D143: 100 | E143: 0.5 | F143: 0.5 | G143: 0.1 | H143: 0.1 | I143: 10.3 | J143: 10.3 | K143: 43.24 | L143: 43.24 | M143: 0 | N143: 0 | O143: 0 | P143: 0 | Q143: 9.9 | R143: 0.2 | S143: 0.2 | T143: 0 | U143: 0 | V143: 0.5 | W143: 0.3 | X143: 6 | Y143: 120 | Z143: 7 | AA143: 4 | AB143: 7 | AC143: 1.4 | AD143: 0 | AE143: 0 | AF143: 0 | AG143: 0.1 | AH143: 0.01 | AI143: 0.01 | AJ143: 0.1 | AK143: 0.2 | AL143: 2 | AM143: 0.2 | AN143: 8 | AO143: 10 | AP143: 14 | AQ143: 14 | AR143: 2 | AS143: 8 | AT143: 2 | AU143: 7 | AV143: 13 | AW143: 8 | AX143: 58 | AY143: 5 | AZ143: 11 | BA143: 32 | BB143: 0 | BC143: 10 | BD143: 12 | BE143: 5 | BF143: 4 | BG143: 0 | BH143: 0 | BI143: 0 | BJ143: 0 | BK143: 0 | BL143: 0 | BM143: 0 | BN143: 0 | BO143: 0 | BP143: 0 | BQ143: 0 | BR143: 0 | BS143: 0 | BT143: 0 | BU143: 0 | BV143: 0 | BW143: 0 | BX143: 0 | BY143: 0 | BZ143: 0 | CA143: 0 | CB143: 0 | CC143: 0 | CD143: 0 | CE143: 88.1 | CF143: 0 | CH143: 2 | CI143: 2
B144: Обед
A145: 7/03 | B145: Икра кабачковая | C145: 50 | D145: ="30" -> 30 | E145: 0.9 | F145: 0.6 | G145: 4 | H145: 2.4 | I145: 4.7 | J145: 2.8 | K145: 56 | L145: 34 | M145: 0.22 | N145: 0.98 | O145: 0.22 | P145: 0 | Q145: 2.11 | R145: 0.02 | S145: 0.52 | T145: 0 | U145: 0 | V145: 0.09 | W145: 0.33 | X145: 32.75 | Y145: 108.17 | Z145: 9.33 | AA145: 4.94 | AB145: 8.57 | AC145: 0.22 | AD145: 0 | AE145: 28.3 | AF145: 5.77 | AG145: 0.72 | AH145: 0.01 | AI145: 0.01 | AJ145: 0.19 | AK145: 0.34 | AL145: 1.95 | AM145: 0 | AN145: 3.75 | AO145: 3.24 | AP145: 4.14 | AQ145: 3.95 | AR145: 1.42 | AS145: 2.91 | AT145: 0.65 | AU145: 3.62 | AV145: 4.59 | AW145: 5.5 | AX145: 11.13 | AY145: 1.82 | AZ145: 3.04 | BA145: 17.79 | BB145: 0 | BC145: 3.82 | BD145: 3.82 | BE145: 3.23 | BF145: 1.29 | BG145: 0 | BH145: 0 | BI145: 0 | BJ145: 0 | BK145: 0 | BL145: 0 | BM145: 0 | BN145: 0.08 | BO145: 0 | BP145: 0.06 | BQ145: 0 | BR145: 0.01 | BS145: 0 | BT145: 0 | BU145: 0 | BV145: 0.32 | BW145: 0 | BX145: 0 | BY145: 0.8 | BZ145: 0 | CA145: 0 | CB145: 0 | CC145: 0 | CD145: 0 | CE145: 39.69 | CF145: 4.72 | CH145: 1.2 | CI145: 0.7
A146: 148/04 | B146: Суп- лапша домашняя с мясными фрикадельками | C146: 180/15 | D146: ="150/15" -> 150/15 | E146: 4.61 | F146: 4.31 | G146: 4.89 | H146: 4.28 | I146: 9.2 | J146: 7.69 | K146: 98.28 | L146: 85.72454861 | M146: 1.64 | N146: 1.95 | O146: 0.38 | P146: 0 | Q146: 1.04 | R146: 6.01 | S146: 0.64 | T146: 0 | U146: 0 | V146: 0.03 | W146: 0.99 | X146: 105.79 | Y146: 62.56 | Z146: 9.52 | AA146: 7.54 | AB146: 36.53 | AC146: 0.41 | AD146: 3.83 | AE146: 577.76 | AF146: 123.9 | AG146: 1.37 | AH146: 0.02 | AI146: 0.03 | AJ146: 0.6 | AK146: 0.16 | AL146: 0.38 | AM146: 0 | AN146: 163.27 | AO146: 123.67 | AP146: 231.89 | AQ146: 391.43 | AR146: 70.83 | AS146: 126.73 | AT146: 33.69 | AU146: 126.04 | AV146: 170.2 | AW146: 164.52 | AX146: 281.67 | AY146: 108.73 | AZ146: 143.66 | BA146: 484.22 | BB146: 42.5 | BC146: 106.69 | BD146: 127.47 | BE146: 103.08 | BF146: 42.19 | BG146: 0 | BH146: 0 | BI146: 0 | BJ146: 0 | BK146: 0 | BL146: 0 | BM146: 0 | BN146: 0.17 | BO146: 0 | BP146: 0.11 | BQ146: 0.01 | BR146: 0.02 | BS146: 0 | BT146: 0 | BU146: 0 | BV146: 0.63 | BW146: 0 | BX146: 0 | BY146: 1.77 | BZ146: 0 | CA146: 0 | CB146: 0 | CC146: 0 | CD146: 0 | CE146: 170.64 | CF146: 100.12 | CH146: 0.5 | CI146: 0.4
A147: 163/03 | B147: Котлета "Здоровье" | C147: 70 | D147: ="50" -> 50 | E147: 10.63 | F147: 7.59 | G147: 9.26 | H147: 6.61 | I147: 6.87 | J147: 4.91 | K147: 152.36 | L147: 108.831 | M147: 1.9 | N147: 0.08 | O147: 1.9 | P147: 0 | Q147: 1.15 | R147: 3.27 | S147: 0.49 | T147: 0 | U147: 0 | V147: 0.07 | W147: 1.52 | X147: 0 | Y147: 153.43 | Z147: 20.62 | AA147: 15.51 | AB147: 82.44 | AC147: 0.74 | AD147: 25.33 | AE147: 624.92 | AF147: 152.3 | AG147: 0.19 | AH147: 0.03 | AI147: 0.08 | AJ147: 1.48 | AK147: 0.51 | AL147: 0.21 | AM147: 0 | AN147: 32.53 | AO147: 25.39 | AP147: 44.93 | AQ147: 37.28 | AR147: 16.94 | AS147: 25.86 | AT147: 8.98 | AU147: 27.28 | AV147: 30.34 | AW147: 32.7 | AX147: 55.42 | AY147: 14.35 | AZ147: 17.89 | BA147: 83.31 | BB147: 0.53 | BC147: 17.61 | BD147: 38.11 | BE147: 19.86 | BF147: 11.99 | BG147: 0.11 | BH147: 0.02 | BI147: 0.02 | BJ147: 0.05 | BK147: 0.07 | BL147: 0.22 | BM147: 0 | BN147: 0.7 | BO147: 0 | BP147: 0.21 | BQ147: 0 | BR147: 0 | BS147: 0 | BT147: 0 | BU147: 0.08 | BV147: 0.65 | BW147: 0 | BX147: 0 | BY147: 0.03 | BZ147: 0 | CA147: 0 | CB147: 0 | CC147: 0 | CD147: 0 | CE147: 44.45 | CF147: 129.48 | CH147: 0.3 | CI147: 0.2
A148: 224/04 | B148: Рагу из овощей | C148: 150 | D148: ="130" -> 130 | E148: 2.6 | F148: 2.23 | G148: 10.2 | H148: 5.66 | I148: 16.25 | J148: 14.05 | K148: 163 | L148: 112.9774703 | M148: 2.05 | N148: 3.44 | O148: 2.05 | P148: 0 | Q148: 5.33 | R148: 7.98 | S148: 2.13 | T148: 0 | U148: 0 | V148: 0.35 | W148: 1.81 | X148: 281.35 | Y148: 401 | Z148: 26.04 | AA148: 19.3 | AB148: 45.97 | AC148: 0.8 | AD148: 5.32 | AE148: 264.86 | AF148: 82.96 | AG148: 2.49 | AH148: 0.06 | AI148: 0.05 | AJ148: 0.79 | AK148: 1.45 | AL148: 6.84 | AM148: 0 | AN148: 39.99 | AO148: 43.54 | AP148: 59.65 | AQ148: 53.74 | AR148: 14.86 | AS148: 40 | AT148: 15.08 | AU148: 47.06 | AV148: 57.48 | AW148: 110.83 | AX148: 98.67 | AY148: 19.83 | AZ148: 41.37 | BA148: 250.93 | BB148: 0 | BC148: 50.62 | BD148: 41.7 | BE148: 35.58 | BF148: 16.33 | BG148: 0.07 | BH148: 0.02 | BI148: 0.01 | BJ148: 0.04 | BK148: 0.05 | BL148: 0.15 | BM148: 0 | BN148: 0.79 | BO148: 0 | BP148: 0.34 | BQ148: 0.01 | BR148: 0.03 | BS148: 0 | BT148: 0 | BU148: 0.06 | BV148: 1.6 | BW148: 0 | BX148: 0 | BY148: 3.14 | BZ148: 0 | CA148: 0 | CB148: 0 | CC148: 0 | CD148: 0 | CE148: 114.45 | CF148: 49.46 | CH148: 7.9 | CI148: 6.8
A149: 631/04 | B149: Напиток из свежих плодов | C149: 180 | D149: ="150" -> 150 | E149: 0.14 | F149: 0.11 | G149: 0.13 | H149: 0.11 | I149: 16.06 | J149: 13.38 | K149: 62.593 | L149: 52.161135 | M149: 0.03 | N149: 0 | O149: 0.03 | P149: 0 | Q149: 12.67 | R149: 0.22 | S149: 0.49 | T149: 0 | U149: 0 | V149: 0.24 | W149: 0.16 | X149: 0.11 | Y149: 73.69 | Z149: 4.52 | AA149: 2.35 | AB149: 2.87 | AC149: 0.6 | AD149: 0 | AE149: 7.2 | AF149: 1.5 | AG149: 0.06 | AH149: 0.01 | AI149: 0 | AJ149: 0.07 | AK149: 0.12 | AL149: 1.2 | AM149: 0 | AN149: 3.38 | AO149: 3.67 | AP149: 5.36 | AQ149: 5.08 | AR149: 0.85 | AS149: 3.1 | AT149: 0.85 | AU149: 2.54 | AV149: 4.79 | AW149: 2.82 | AX149: 22 | AY149: 1.97 | AZ149: 3.95 | BA149: 11.84 | BB149: 0 | BC149: 3.67 | BD149: 4.51 | BE149: 1.69 | BF149: 1.41 | BG149: 0 | BH149: 0 | BI149: 0 | BJ149: 0 | BK149: 0 | BL149: 0 | BM149: 0 | BN149: 0 | BO149: 0 | BP149: 0 | BQ149: 0 | BR149: 0 | BS149: 0 | BT149: 0 | BU149: 0 | BV149: 0 | BW149: 0 | BX149: 0 | BY149: 0 | BZ149: 0 | CA149: 0 | CB149: 0 | CC149: 0 | CD149: 0 | CE149: 154.91 | CF149: 1.2 | CH149: 1.4 | CI149: 1.2
A150: - | B150: Хлеб ржаной | C150: 50 | D150: ="35" -> 35 | E150: 3.3 | F150: 2.31 | G150: 0.6 | H150: 0.42 | I150: 20.85 | J150: 14.6 | K150: 96.69 | L150: 67.683 | M150: 0.07 | N150: 0 | O150: 0 | P150: 0 | Q150: 0.42 | R150: 11.27 | S150: 2.91 | T150: 0 | U150: 0 | V150: 0.35 | W150: 0.88 | X150: 213.5 | Y150: 85.75 | Z150: 12.25 | AA150: 16.45 | AB150: 55.3 | AC150: 1.37 | AD150: 0 | AE150: 1.75 | AF150: 0.35 | AG150: 0.49 | AH150: 0.06 | AI150: 0.03 | AJ150: 0.25 | AK150: 0.7 | AL150: 0 | AM150: 0 | AN150: 112.7 | AO150: 86.8 | AP150: 149.45 | AQ150: 78.05 | AR150: 32.55 | AS150: 69.3 | AT150: 28 | AU150: 129.85 | AV150: 103.95 | AW150: 101.85 | AX150: 162.4 | AY150: 43.4 | AZ150: 108.5 | BA150: 545.65 | BB150: 0 | BC150: 184.1 | BD150: 101.85 | BE150: 63 | BF150: 45.5 | BG150: 0 | BH150: 0 | BI150: 0 | BJ150: 0 | BK150: 0 | BL150: 0 | BM150: 0 | BN150: 0.05 | BO150: 0 | BP150: 0 | BQ150: 0.01 | BR150: 0 | BS150: 0 | BT150: 0 | BU150: 0 | BV150: 0.04 | BW150: 0 | BX150: 0 | BY150: 0.17 | BZ150: 0.03 | CA150: 0 | CB150: 0 | CC150: 0 | CD150: 0 | CE150: 16.45 | CF150: 0.29 | CH150: 0 | CI150: 0
B151: Итого за 'Обед' | C151: 695 | D151: 560 | E151: =SUM(E145:E150) -> 22.18 | F151: =SUM(F145:F150) -> 17.15 | G151: =SUM(G145:G150) -> 29.08 | H151: 19.48 | I151: 73.93 | J151: 57.43 | K151: 628.923 | L151: 461.3771539 | M151: 5.91 | N151: 6.45 | O151: 4.58 | P151: 0 | Q151: 22.72 | R151: 28.77 | S151: 7.18 | T151: 0 | U151: 0 | V151: 1.13 | W151: 5.69 | X151: 633.5 | Y151: 884.6 | Z151: 82.28 | AA151: 66.09 | AB151: 231.68 | AC151: 4.14 | AD151: 34.48 | AE151: 1504.79 | AF151: 366.78 | AG151: 5.32 | AH151: 0.19 | AI151: 0.2 | AJ151: 3.38 | AK151: 3.28 | AL151: 10.58 | AM151: 0 | AN151: 355.62 | AO151: 286.31 | AP151: 495.42 | AQ151: 569.53 | AR151: 137.45 | AS151: 267.9 | AT151: 87.25 | AU151: 336.39 | AV151: 371.35 | AW151: 418.22 | AX151: 631.29 | AY151: 190.1 | AZ151: 318.41 | BA151: 1393.74 | BB151: 43.03 | BC151: 366.51 | BD151: 317.46 | BE151: 226.44 | BF151: 118.71 | BG151: 0.18 | BH151: 0.04 | BI151: 0.03 | BJ151: 0.09 | BK151: 0.12 | BL151: 0.37 | BM151: 0 | BN151: 1.79 | BO151: 0 | BP151: 0.72 | BQ151: 0.03 | BR151: 0.06 | BS151: =SUM(BS145:BS150) -> 0 | BT151: 0 | BU151: 0.14 | BV151: 3.24 | BW151: 0 | BX151: 0 | BY151: 5.91 | BZ151: 0.03 | CA151: 0 | CB151: 0 | CC151: 0 | CD151: 0 | CE151: 540.59 | CF151: 285.27 | CG151: 0 | CH151: 11.3 | CI151: 9.3
B152: Полдник
A153: ="297" -> 297 | B153: Ряженка | C153: 130 | D153: 110 | E153: 3.913 | F153: 3.311 | G153: 4.58 | H153: 3.87 | I153: 4.732 | J153: 4 | K153: 74.81 | L153: 63.298 | M153: 0 | N153: 0 | O153: 0 | P153: 0 | Q153: 3.64 | R153: 0 | S153: 0 | T153: 0 | U153: 0 | V153: 0 | W153: 0 | X153: 0 | Y153: 0 | Z153: 10.56 | AA153: 3.05 | AB153: 0 | AC153: 0.52 | AD153: 0 | AE153: 0 | AF153: 0 | AG153: 0 | AH153: 0.94 | AI153: 5.76 | AJ153: 0 | AK153: 0 | AL153: 0.12 | AM153: 0 | AN153: 0 | AO153: 0 | AP153: 0 | AQ153: 0 | AR153: 0 | AS153: 0 | AT153: 0 | AU153: 0 | AV153: 0 | AW153: 0 | AX153: 0 | AY153: 0 | AZ153: 0 | BA153: 0 | BB153: 0 | BC153: 0 | BD153: 0 | BE153: 0 | BF153: 0 | BG153: 0 | BH153: 0 | BI153: 0 | BJ153: 0 | BK153: 0 | BL153: 0 | BM153: 0 | BN153: 0 | BO153: 0 | BP153: 0 | BQ153: 0 | BR153: 0 | BS153: 0 | BT153: 0 | BU153: 0 | BV153: 0 | BW153: 0 | BX153: 0 | BY153: 0 | BZ153: 0 | CA153: 0 | CB153: 0 | CC153: 0 | CD153: 0 | CE153: 0 | CF153: 0 | CH153: 0.13 | CI153: 0.11
A154: 87/10 | B154: Плюшка новомосковская | C154: 50 | D154: ="50" -> 50 | E154: 3.9 | F154: 3.9 | G154: 2.94 | H154: 2.94 | I154: 26.7 | J154: 26.7 | K154: 148.0563 | L154: 148.0563437 | M154: 1.9 | N154: 0.08 | O154: 1.9 | P154: 0 | Q154: 3.73 | R154: 21.84 | S154: 1.13 | T154: 0 | U154: 0 | V154: 0 | W154: 0.77 | X154: 217.41 | Y154: 44.37 | Z154: 12.07 | AA154: 5.57 | AB154: 31.87 | AC154: 0.42 | AD154: 13.54 | AE154: 10.8 | AF154: 24.8 | AG154: 0.57 | AH154: 0.04 | AI154: 0.02 | AJ154: 0.34 | AK154: 1.13 | AL154: 0.02 | AM154: 0 | AN154: 164.91 | AO154: 149.53 | AP154: 279.91 | AQ154: 92.83 | AR154: 55.36 | AS154: 110.27 | AT154: 36.05 | AU154: 173.36 | AV154: 117.33 | AW154: 141.16 | AX154: 126.19 | AY154: 70.48 | AZ154: 120.86 | BA154: 1043.63 | BB154: 0.14 | BC154: 327.13 | BD154: 176.33 | BE154: 88.55 | BF154: 69.53 | BG154: 0.11 | BH154: 0.02 | BI154: 0.02 | BJ154: 0.05 | BK154: 0.07 | BL154: 0.22 | BM154: 0 | BN154: 0.73 | BO154: 0 | BP154: 0.21 | BQ154: 0 | BR154: 0 | BS154: 0 | BT154: 0 | BU154: 0.08 | BV154: 0.67 | BW154: 0 | BX154: 0 | BY154: 0.2 | BZ154: 0.01 | CA154: 0 | CB154: 0 | CC154: 0 | CD154: 0 | CE154: 23.37 | CF154: 15.34 | CH154: 0 | CI154: 0
B155: Итого за 'Полдник' | C155: 180 | D155: 160 | E155: =SUM(E153:E154) -> 7.813 | F155: =SUM(F153:F154) -> 7.211 | G155: 7.52 | H155: 6.81 | I155: 31.432 | J155: 30.7 | K155: 222.8663 | L155: 211.3543437 | M155: 1.9 | N155: 0.08 | O155: 1.9 | P155: 0 | Q155: 7.37 | R155: 21.84 | S155: 1.13 | T155: 0 | U155: 0 | V155: 0 | W155: 0.77 | X155: 217.41 | Y155: 44.37 | Z155: 22.63 | AA155: 8.62 | AB155: 31.87 | AC155: 0.94 | AD155: 13.54 | AE155: 10.8 | AF155: 24.8 | AG155: 0.57 | AH155: 0.98 | AI155: 5.78 | AJ155: 0.34 | AK155: 1.13 | AL155: 0.14 | AM155: 0 | AN155: 164.91 | AO155: 149.53 | AP155: 279.91 | AQ155: 92.83 | AR155: 55.36 | AS155: 110.27 | AT155: 36.05 | AU155: 173.36 | AV155: 117.33 | AW155: 141.16 | AX155: 126.19 | AY155: 70.48 | AZ155: 120.86 | BA155: 1043.63 | BB155: 0.14 | BC155: 327.13 | BD155: 176.33 | BE155: 88.55 | BF155: 69.53 | BG155: 0.11 | BH155: 0.02 | BI155: 0.02 | BJ155: 0.05 | BK155: 0.07 | BL155: 0.22 | BM155: 0 | BN155: 0.73 | BO155: 0 | BP155: 0.21 | BQ155: 0 | BR155: =SUM(BR153:BR154) -> 0 | BS155: 0 | BT155: 0 | BU155: 0.08 | BV155: 0.67 | BW155: 0 | BX155: 0 | BY155: 0.2 | BZ155: 0.01 | CA155: 0 | CB155: 0 | CC155: 0 | CD155: 0 | CE155: 23.37 | CF155: 15.34 | CG155: 0 | CH155: 0.13 | CI155: 0.11
B156: Ужин
A157: 386/16 | B157: Апельсины | C157: 70 | D157: ="70" -> 70 | E157: 0.63 | F157: 0.63 | G157: 0.14 | H157: 0.14 | I157: 7.21 | J157: 7.21 | K157: 31.136 | L157: 31.136 | M157: 0 | N157: 0 | O157: 0 | P157: 0 | Q157: 5.67 | R157: 0 | S157: 1.54 | T157: 0 | U157: 0 | V157: 0.91 | W157: 0.35 | X157: 9.1 | Y157: 137.9 | Z157: 23.8 | AA157: 9.1 | AB157: 16.1 | AC157: 0.21 | AD157: 0 | AE157: 35 | AF157: 5.6 | AG157: 0.14 | AH157: 0.03 | AI157: 0.02 | AJ157: 0.14 | AK157: 0.21 | AL157: 42 | AM157: 0 | AN157: 24.5 | AO157: 18.9 | AP157: 14 | AQ157: 25.2 | AR157: 9.1 | AS157: 9.1 | AT157: 4.2 | AU157: 18.9 | AV157: 30.1 | AW157: 39.2 | AX157: 69.3 | AY157: 10.5 | AZ157: 57.4 | BA157: 57.4 | BB157: 0 | BC157: 28 | BD157: 19.6 | BE157: 9.8 | BF157: 6.3 | BG157: 0 | BH157: 0 | BI157: 0 | BJ157: 0 | BK157: 0 | BL157: 0 | BM157: 0 | BN157: 0 | BO157: 0 | BP157: 0 | BQ157: 0 | BR157: 0 | BS157: 0 | BT157: 0 | BU157: 0 | BV157: 0 | BW157: 0 | BX157: 0 | BY157: 0 | BZ157: 0 | CA157: 0 | CB157: 0 | CC157: 0 | CD157: 0 | CE157: 60.76 | CF157: 5.83 | CH157: 42 | CI157: 42
A158: 208/02 | B158: Суфле рыбное | C158: 70 | D158: ="60" -> 60 | E158: 9.41 | F158: 8.06 | G158: 8.38 | H158: 7.18 | I158: 1.96 | J158: 1.68 | K158: 120.81 | L158: 103.5546812 | M158: 3.5 | N158: 1.52 | O158: 3.84 | P158: 0 | Q158: 0.47 | R158: 1.16 | S158: 0.06 | T158: 0 | U158: 0 | V158: 0.01 | W158: 0.16 | X158: 0.22 | Y158: 22.29 | Z158: 13.08 | AA158: 2.01 | AB158: 20.96 | AC158: 0.2 | AD158: 35.1 | AE158: 21.75 | AF158: 56.36 | AG158: 1.08 | AH158: 0.01 | AI158: 0.04 | AJ158: 0.03 | AK158: 0.41 | AL158: 0.02 | AM158: 0 | AN158: 63.77 | AO158: 50.81 | AP158: 92.6 | AQ158: 68.97 | AR158: 32.9 | AS158: 49.85 | AT158: 17.62 | AU158: 55.96 | AV158: 56.66 | AW158: 62.92 | AX158: 93.73 | AY158: 28.59 | AZ158: 36.18 | BA158: 184.61 | BB158: 0.97 | BC158: 46.98 | BD158: 75.62 | BE158: 39.19 | BF158: 24.36 | BG158: 0.22 | BH158: 0.05 | BI158: 0.04 | BJ158: 0.11 | BK158: 0.14 | BL158: 0.45 | BM158: 0 | BN158: 1.29 | BO158: 0 | BP158: 0.43 | BQ158: 0.01 | BR158: 0.01 | BS158: 0 | BT158: 0 | BU158: 0.16 | BV158: 1.53 | BW158: 0 | BX158: 0 | BY158: 1.32 | BZ158: 0 | CA158: 0 | CB158: 0 | CC158: 0 | CD158: 0 | CE158: 24.11 | CF158: 38.72 | CH158: 0 | CI158: 0
A159: 205/01 | B159: Макаронные изделия, отварные с овощами | C159: 130 | D159: ="120" -> 120 | E159: 3.56 | F159: 3.29 | G159: 4.49 | H159: 4.14 | I159: 21.91 | J159: 20.23 | K159: 140.61 | L159: 129.7918212 | M159: 0.6 | N159: 3.12 | O159: 1.93 | P159: 0 | Q159: 2.5 | R159: 16.19 | S159: 1.53 | T159: 0 | U159: 0 | V159: 0.12 | W159: 0.47 | X159: 3.43 | Y159: 84.85 | Z159: 11.3 | AA159: 10.41 | AB159: 33.7 | AC159: 0.58 | AD159: 0 | AE159: 1197.62 | AF159: 271.2 | AG159: 2.21 | AH159: 0.04 | AI159: 0.02 | AJ159: 0.35 | AK159: 0.27 | AL159: 0.48 | AM159: 0 | AN159: 6.09 | AO159: 5.09 | AP159: 6.91 | AQ159: 5.56 | AR159: 1.46 | AS159: 4.89 | AT159: 1.87 | AU159: 4.64 | AV159: 6.57 | AW159: 5.53 | AX159: 17.62 | AY159: 2.45 | AZ159: 4.03 | BA159: 31.55 | BB159: 0 | BC159: 4.65 | BD159: 5.14 | BE159: 3.05 | BF159: 1.66 | BG159: 0.11 | BH159: 0.02 | BI159: 0.02 | BJ159: 0.05 | BK159: 0.07 | BL159: 0.22 | BM159: 0 | BN159: 0.24 | BO159: 0 | BP159: 0.16 | BQ159: 0.01 | BR159: 0.03 | BS159: 0 | BT159: 0 | BU159: 0.08 | BV159: 0.9 | BW159: 0 | BX159: 0 | BY159: 2.56 | BZ159: 0 | CA159: 0 | CB159: 0 | CC159: 0 | CD159: 0 | CE159: 24.35 | CF159: 199.6 | CH159: 0.5 | CI159: 0.5
B160: Чай с лимоном | C160: 180 | D160: ="150" -> 150 | E160: 0.24 | F160: 0.2 | G160: 0.05 | H160: 0.04 | I160: 9.43 | J160: 7.86 | K160: 37.931 | L160: 31.60875 | M160: 0 | N160: 0 | O160: 0 | P160: 0 | Q160: 7.67 | R160: 0 | S160: 0.19 | T160: 0 | U160: 0 | V160: 0.3 | W160: 0.08 | X160: 0.65 | Y160: 8.78 | Z160: 2.33 | AA160: 0.63 | AB160: 1.16 | AC160: 0.05 | AD160: 0 | AE160: 0.53 | AF160: 0.11 | AG160: 0.01 | AH160: 0 | AI160: 0 | AJ160: 0.01 | AK160: 0.01 | AL160: 2.1 | AM160: 0 | AN160: 0.74 | AO160: 0.84 | AP160: 0.68 | AQ160: 1.26 | AR160: 0.32 | AS160: 1.31 | AT160: 0 | AU160: 1.68 | AV160: 0 | AW160: 0 | AX160: 0 | AY160: 0.95 | AZ160: 0 | BA160: 0 | BB160: 0 | BC160: 0 | BD160: 0 | BE160: 0 | BF160: 0 | BG160: 0 | BH160: 0 | BI160: 0 | BJ160: 0 | BK160: 0 | BL160: 0 | BM160: 0 | BN160: 0 | BO160: 0 | BP160: 0 | BQ160: 0 | BR160: 0 | BS160: 0 | BT160: 0 | BU160: 0 | BV160: 0 | BW160: 0 | BX160: 0 | BY160: 0 | BZ160: 0 | CA160: 0 | CB160: 0 | CC160: 0 | CD160: 0 | CE160: 4.68 | CF160: 0.09 | CH160: 2.5 | CI160: 2.1
A161: - | B161: Хлеб пшеничный | C161: 30 | D161: ="30" -> 30 | E161: 1.98 | F161: 1.98 | G161: 0.2 | H161: 0.2 | I161: 14.07 | J161: 14.07 | K161: 67.1703 | L161: 67.1703 | M161: 0 | N161: 0 | O161: 0 | P161: 0 | Q161: 0.33 | R161: 13.68 | S161: 0.06 | T161: 0 | U161: 0 | V161: 0 | W161: 0.54 | X161: 0 | Y161: 0 | Z161: 0 | AA161: 0 | AB161: 0 | AC161: 0 | AD161: 0 | AE161: 0 | AF161: 0 | AG161: 0 | AH161: 0 | AI161: 0 | AJ161: 0 | AK161: 0 | AL161: 0 | AM161: 0 | AN161: 95.79 | AO161: 99.7 | AP161: 152.69 | AQ161: 50.63 | AR161: 30.02 | AS161: 60.03 | AT161: 22.71 | AU161: 108.58 | AV161: 67.34 | AW161: 93.96 | AX161: 77.52 | AY161: 40.72 | AZ161: 72.04 | BA161: 602.39 | BB161: 0 | BC161: 196.27 | BD161: 85.35 | BE161: 56.64 | BF161: 44.89 | BG161: 0 | BH161: 0 | BI161: 0 | BJ161: 0 | BK161: 0 | BL161: 0 | BM161: 0 | BN161: 0.02 | BO161: 0 | BP161: 0 | BQ161: 0 | BR161: 0 | BS161: 0 | BT161: 0 | BU161: 0 | BV161: 0.02 | BW161: 0 | BX161: 0 | BY161: 0.08 | BZ161: 0 | CA161: 0 | CB161: 0 | CC161: 0 | CD161: 0 | CE161: 11.73 | CF161: 0 | CH161: 0 | CI161: 0
B162: Итого за 'Ужин' | C162: 410 | D162: 360 | E162: =SUM(E157:E161) -> 15.82 | F162: =SUM(F157:F161) -> 14.16 | G162: 13.26 | H162: 11.7 | I162: 54.58 | J162: 51.05 | K162: 397.6573 | L162: 363.2615524 | M162: 4.1 | N162: 4.64 | O162: 5.77 | P162: 0 | Q162: 16.64 | R162: 31.03 | S162: 3.38 | T162: 0 | U162: 0 | V162: 1.34 | W162: 1.6 | X162: 13.4 | Y162: 253.82 | Z162: 50.51 | AA162: 22.15 | AB162: 71.92 | AC162: 1.04 | AD162: 35.1 | AE162: 1254.9 | AF162: 333.27 | AG162: 3.44 | AH162: 0.08 | AI162: 0.08 | AJ162: 0.53 | AK162: 0.9 | AL162: 44.6 | AM162: 0 | AN162: 190.89 | AO162: 175.34 | AP162: 266.88 | AQ162: 151.62 | AR162: 73.8 | AS162: 125.18 | AT162: 46.4 | AU162: 189.76 | AV162: 160.67 | AW162: 201.61 | AX162: 258.17 | AY162: 83.21 | AZ162: 169.65 | BA162: 875.95 | BB162: 0.97 | BC162: 275.9 | BD162: 185.71 | BE162: 108.68 | BF162: 77.21 | BG162: 0.33 | BH162: 0.07 | BI162: 0.06 | BJ162: 0.16 | BK162: 0.21 | BL162: 0.67 | BM162: 0 | BN162: 1.55 | BO162: 0 | BP162: 0.59 | BQ162: 0.02 | BR162: =SUM(BR157:BR161) -> 0.04 | BS162: 0 | BT162: 0 | BU162: 0.24 | BV162: 2.45 | BW162: 0 | BX162: 0 | BY162: 3.96 | BZ162: 0 | CA162: 0 | CB162: 0 | CC162: 0 | CD162: 0 | CE162: 125.63 | CF162: 244.24 | CG162: 0 | CH162: 45 | CI162: 44.6
B163: Итого за день | E163: =SUM(E140+E143+E151+E155+E162) -> 58.713 | F163: =SUM(F140+F143+F151+F155+F162) -> 49.371 | G163: 65.78 | H163: 52.55 | I163: 231.742 | J163: 200.75 | K163: 1724.6736 | L163: 1450.833507 | M163: 20.53 | N163: 11.41 | O163: 16.8 | P163: 0 | Q163: 75.97 | R163: 111.43 | S163: 14.23 | T163: 0 | U163: 0 | V163: 3.17 | W163: 11.19 | X163: 1173.27 | Y163: 1635.18 | Z163: 347.14 | AA163: 163.79 | AB163: 564.54 | AC163: 9.15 | AD163: 156.39 | AE163: 2814.81 | AF163: 812.79 | AG163: 10.06 | AH163: 1.41 | AI163: 6.29 | AJ163: 4.73 | AK163: 8.35 | AL163: 57.86 | AM163: 0.2 | AN163: 1108.74 | AO163: 960.88 | AP163: 1606.43 | AQ163: 1171.07 | AR163: 389.98 | AS163: 785.97 | AT163: 289.67 | AU163: 1088.73 | AV163: 885.31 | AW163: 1096.69 | AX163: 1445.76 | AY163: 468.73 | AZ163: 1017.07 | BA163: 4557.4 | BB163: 44.14 | BC163: 1376.62 | BD163: 942.16 | BE163: 757.83 | BF163: 421.85 | BG163: 0.93 | BH163: 0.23 | BI163: 0.18 | BJ163: 0.47 | BK163: 0.61 | BL163: 2.05 | BM163: 0 | BN163: 6.83 | BO163: 0 | BP163: 2.25 | BQ163: 0.05 | BR163: =SUM(BR140+BR143+BR151+BR155+BR162) -> 0.1 | BS163: 0 | BT163: 0.12 | BU163: 0.72 | BV163: 9.08 | BW163: 0 | BX163: 0 | BY163: 10.98 | BZ163: 0.07 | CA163: 0 | CB163: 0 | CC163: 0 | CD163: 0 | CE163: 1058.34 | CF163: 625.5 | CG163: 0 | CH163: 59.13 | CI163: 56.61
B165: 2 НЕДЕЛЯ
B166: 1 ДЕНЬ
B167: Завтрак
A168: 311/04 | B168: Каша пшенная молочная с маслом сливочным | C168: 180/5 | D168: ="150/5" -> 150/5 | E168: 6.53 | F168: 5.44 | G168: 8.23 | H168: 7.53 | I168: 31.19 | J168: 26 | K168: 223.19 | L168: 192.097729 | M168: 4.43 | N168: 0.13 | O168: 4.43 | P168: 0 | Q168: 7.54 | R168: 17.49 | S168: 0.97 | T168: 0 | U168: 0 | V168: 0.08 | W168: 1.46 | X168: 261.68 | Y168: 171.1 | Z168: 95.67 | AA168: 32.14 | AB168: 120.55 | AC168: 0.87 | AD168: 52.18 | AE168: 34.2 | AF168: 58.49 | AG168: 0.22 | AH168: 0.11 | AI168: 0.11 | AJ168: 0.4 | AK168: 1.99 | AL168: 0.16 | AM168: 0 | AN168: 136.69 | AO168: 125.12 | AP168: 444.28 | AQ168: 84.35 | AR168: 85.82 | AS168: 116.72 | AT168: 53.18 | AU168: 168.38 | AV168: 310.81 | AW168: 123.24 | AX168: 189.04 | AY168: 75.99 | AZ168: 87.17 | BA168: 643.99 | BB168: 0 | BC168: 234.85 | BD168: 203.35 | BE168: 119.4 | BF168: 52.16 | BG168: 0.18 | BH168: 0.04 | BI168: 0.04 | BJ168: 0.09 | BK168: 0.12 | BL168: 0.39 | BM168: 0 | BN168: 1.28 | BO168: 0 | BP168: 0.38 | BQ168: 0.01 | BR168: 0 | BS168: 0 | BT168: 0 | BU168: 0.14 | BV168: 1.26 | BW168: 0 | BX168: 0 | BY168: 0.57 | BZ168: 0.01 | CA168: 0 | CB168: 0 | CC168: 0 | CD168: 0 | CE168: 122.01 | CF168: 57.88 | CH168: 0.2 | CI168: 0.2
A169: 209/15 | B169: Яйцо отварное | C169: 20 | D169: 20 | E169: 2.4 | F169: 2.4 | G169: 2.2 | H169: 2.2 | I169: 0.1 | J169: 0.1 | K169: 30 | L169: 30 | CH169: 0 | CI169: 0
A170: ="31/10" -> 31/10 | B170: Чай с молоком | C170: 180 | D170: ="150" -> 150 | E170: 1.46 | F170: 1.21 | G170: 1.46 | H170: 1.21 | I170: 6.6 | J170: 5.5 | K170: 43.985 | L170: 36.653955 | M170: 0.75 | N170: 0 | O170: 0 | P170: 0 | Q170: 5.42 | R170: 0 | S170: 0.08 | T170: 0 | U170: 0 | V170: 0.04 | W170: 0.31 | X170: 18.6 | Y170: 54.31 | Z170: 43.76 | AA170: 4.99 | AB170: 31.39 | AC170: 0.05 | AD170: 7.5 | AE170: 3.38 | AF170: 8.25 | AG170: 0 | AH170: 0.01 | AI170: 0.05 | AJ170: 0.03 | AK170: 0.3 | AL170: 0.2 | AM170: 0 | AN170: 59.9 | AO170: 59.17 | AP170: 101.43 | AQ170: 81.59 | AR170: 27.2 | AS170: 47.78 | AT170: 15.8 | AU170: 53.66 | AV170: 0 | AW170: 0 | AX170: 0 | AY170: 0 | AZ170: 0 | BA170: 0 | BB170: 0 | BC170: 0 | BD170: 0 | BE170: 67.62 | BF170: 9.56 | BG170: 0 | BH170: 0 | BI170: 0 | BJ170: 0 | BK170: 0 | BL170: 0 | BM170: 0 | BN170: 0 | BO170: 0 | BP170: 0 | BQ170: 0 | BR170: 0 | BS170: 0 | BT170: 0 | BU170: 0 | BV170: 0 | BW170: 0 | BX170: 0 | BY170: 0 | BZ170: 0 | CA170: 0 | CB170: 0 | CC170: 0 | CD170: 0 | CE170: 145.72 | CF170: 8.06 | CH170: 0.2 | CI170: 0.2
A171: 3/13 | B171: Бутерброд с маслом и сыром | C171: 30/5/7 | D171: ="25/5/5" -> 25/5/5 | E171: 4.16 | F171: 3.26 | G171: 5.76 | H171: 5.18 | I171: 14.14 | J171: 11.79 | K171: 126.59 | L171: 108.072 | M171: 3.12 | N171: 0.11 | O171: 0 | P171: 0 | Q171: 0.34 | R171: 11.4 | S171: 0.05 | T171: 0 | U171: 0 | V171: 0.1 | W171: 0.74 | X171: 55.75 | Y171: 6.5 | Z171: 51.2 | AA171: 2.75 | AB171: 31.5 | AC171: 0.05 | AD171: 30.5 | AE171: 23.5 | AF171: 34.4 | AG171: 0.07 | AH171: 0 | AI171: 0.03 | AJ171: 0.02 | AK171: 0.35 | AL171: 0.04 | AM171: 0 | AN171: 172.35 | AO171: 156.05 | AP171: 265.05 | AQ171: 129.75 | AR171: 57.6 | AS171: 107.35 | AT171: 58.9 | AU171: 173.1 | AV171: 104.3 | AW171: 134.8 | AX171: 155.1 | AY171: 75.75 | AZ171: 95.7 | BA171: 842.6 | BB171: 0 | BC171: 326.9 | BD171: 148.95 | BE171: 125.85 | BF171: 54.25 | BG171: 0.13 | BH171: 0.07 | BI171: 0.05 | BJ171: 0.13 | BK171: 0.15 | BL171: 0.56 | BM171: 0.02 | BN171: 1.48 | BO171: 0.01 | BP171: 0.42 | BQ171: 0.01 | BR171: 0 | BS171: 0 | BT171: 0.1 | BU171: 0.15 | BV171: 1.18 | BW171: 0 | BX171: 0 | BY171: 0.18 | BZ171: 0.01 | CA171: 0 | CB171: 0 | CC171: 0 | CD171: 0 | CE171: 13.07 | CF171: 34.42 | CH171: 0 | CI171: 0
B172: Итого за 'Завтрак' | C172: 427 | D172: 360 | E172: =SUM(E168:E171) -> 14.55 | F172: =SUM(F168:F171) -> 12.31 | G172: =SUM(G168:G171) -> 17.65 | H172: 16.12 | I172: 52.03 | J172: 43.39 | K172: 423.765 | L172: 366.823684 | M172: 8.3 | N172: 0.24 | O172: 4.43 | P172: 0 | Q172: 13.3 | R172: 28.89 | S172: 1.1 | T172: 0 | U172: 0 | V172: 0.22 | W172: 2.51 | X172: 336.03 | Y172: 231.91 | Z172: 190.63 | AA172: 39.88 | AB172: 183.44 | AC172: 0.97 | AD172: 90.18 | AE172: 61.08 | AF172: 101.14 | AG172: 0.29 | AH172: 0.12 | AI172: 0.19 | AJ172: 0.45 | AK172: 2.64 | AL172: 0.4 | AM172: 0 | AN172: 368.94 | AO172: 340.34 | AP172: 810.76 | AQ172: 295.69 | AR172: 170.62 | AS172: 271.85 | AT172: 127.88 | AU172: 395.14 | AV172: 415.11 | AW172: 258.04 | AX172: 344.14 | AY172: 151.74 | AZ172: 182.87 | BA172: 1486.59 | BB172: 0 | BC172: 561.75 | BD172: 352.3 | BE172: 312.87 | BF172: 115.97 | BG172: 0.31 | BH172: 0.11 | BI172: 0.09 | BJ172: 0.22 | BK172: 0.27 | BL172: 0.95 | BM172: 0.02 | BN172: 2.76 | BO172: 0.01 | BP172: 0.8 | BQ172: 0.02 | BR172: 0 | BS172: =SUM(BS168:BS171) -> 0 | BT172: 0.1 | BU172: 0.29 | BV172: 2.44 | BW172: 0 | BX172: 0 | BY172: 0.75 | BZ172: 0.02 | CA172: 0 | CB172: 0 | CC172: 0 | CD172: 0 | CE172: 280.8 | CF172: 100.36 | CG172: 0 | CH172: 0.4 | CI172: 0.4
B173: 10:00
A174: ="-" -> - | B174: Сок | C174: 100 | D174: ="100" -> 100 | E174: 0.5 | F174: 0.5 | G174: 0.1 | H174: 0.1 | I174: 10.3 | J174: 10.3 | K174: 43.24 | L174: 43.24 | M174: 0 | N174: 0 | O174: 0 | P174: 0 | Q174: 9.9 | R174: 0.2 | S174: 0.2 | T174: 0 | U174: 0 | V174: 0.5 | W174: 0.3 | X174: 6 | Y174: 120 | Z174: 7 | AA174: 4 | AB174: 7 | AC174: 1.4 | AD174: 0 | AE174: 0 | AF174: 0 | AG174: 0.1 | AH174: 0.01 | AI174: 0.01 | AJ174: 0.1 | AK174: 0.2 | AL174: 2 | AM174: 0.2 | AN174: 8 | AO174: 10 | AP174: 14 | AQ174: 14 | AR174: 2 | AS174: 8 | AT174: 2 | AU174: 7 | AV174: 13 | AW174: 8 | AX174: 58 | AY174: 5 | AZ174: 11 | BA174: 32 | BB174: 0 | BC174: 10 | BD174: 12 | BE174: 5 | BF174: 4 | BG174: 0 | BH174: 0 | BI174: 0 | BJ174: 0 | BK174: 0 | BL174: 0 | BM174: 0 | BN174: 0 | BO174: 0 | BP174: 0 | BQ174: 0 | BR174: 0 | BS174: 0 | BT174: 0 | BU174: 0 | BV174: 0 | BW174: 0 | BX174: 0 | BY174: 0 | BZ174: 0 | CA174: 0 | CB174: 0 | CC174: 0 | CD174: 0 | CE174: 88.1 | CF174: 0 | CH174: 2 | CI174: 2
B175: Итого за '10:00' | C175: 100 | D175: 100 | E175: 0.5 | F175: 0.5 | G175: 0.1 | H175: 0.1 | I175: 10.3 | J175: 10.3 | K175: 43.24 | L175: 43.24 | M175: 0 | N175: 0 | O175: 0 | P175: 0 | Q175: 9.9 | R175: 0.2 | S175: 0.2 | T175: 0 | U175: 0 | V175: 0.5 | W175: 0.3 | X175: 6 | Y175: 120 | Z175: 7 | AA175: 4 | AB175: 7 | AC175: 1.4 | AD175: 0 | AE175: 0 | AF175: 0 | AG175: 0.1 | AH175: 0.01 | AI175: 0.01 | AJ175: 0.1 | AK175: 0.2 | AL175: 2 | AM175: 0.2 | AN175: 8 | AO175: 10 | AP175: 14 | AQ175: 14 | AR175: 2 | AS175: 8 | AT175: 2 | AU175: 7 | AV175: 13 | AW175: 8 | AX175: 58 | AY175: 5 | AZ175: 11 | BA175: 32 | BB175: 0 | BC175: 10 | BD175: 12 | BE175: 5 | BF175: 4 | BG175: 0 | BH175: 0 | BI175: 0 | BJ175: 0 | BK175: 0 | BL175: 0 | BM175: 0 | BN175: 0 | BO175: 0 | BP175: 0 | BQ175: 0 | BR175: 0 | BS175: 0 | BT175: 0 | BU175: 0 | BV175: 0 | BW175: 0 | BX175: 0 | BY175: 0 | BZ175: 0 | CA175: 0 | CB175: 0 | CC175: 0 | CD175: 0 | CE175: 88.1 | CF175: 0 | CH175: 2 | CI175: 2
B176: Обед
A177: № 49 | B177: Салат "Летний" | C177: 50 | D177: ="30" -> 30 | E177: 0.95 | F177: 0.57 | G177: 2.6 | H177: 1.6 | I177: 5.1 | J177: 3.1 | K177: 47 | L177: 28.2 | M177: 0.27 | N177: 1.37 | O177: 0 | P177: 0 | Q177: 1.33 | R177: 1.13 | S177: 0.52 | T177: 0 | U177: 0 | V177: 0.08 | W177: 0.57 | X177: 115.56 | Y177: 84.41 | Z177: 7.22 | AA177: 6.25 | AB177: 12.96 | AC177: 0.26 | AD177: 0 | AE177: 568.42 | AF177: 96.67 | AG177: 0.97 | AH177: 0.02 | AI177: 0.01 | AJ177: 0.17 | AK177: 0.24 | AL177: 2.97 | AM177: 0 | AN177: 7.6 | AO177: 8.82 | AP177: 10.47 | AQ177: 12.69 | AR177: 2.57 | AS177: 8.19 | AT177: 2.76 | AU177: 7.65 | AV177: 9.34 | AW177: 18.84 | AX177: 34.64 | AY177: 2.68 | AZ177: 7.06 | BA177: 46.56 | BB177: 0 | BC177: 6.93 | BD177: 7.98 | BE177: 6.58 | BF177: 2.58 | BG177: 0 | BH177: 0 | BI177: 0 | BJ177: 0 | BK177: 0 | BL177: 0 | BM177: 0 | BN177: 0.13 | BO177: 0 | BP177: 0.09 | BQ177: 0.01 | BR177: 0.01 | BS177: 0 | BT177: 0 | BU177: 0 | BV177: 0.5 | BW177: 0 | BX177: 0 | BY177: 1.22 | BZ177: 0 | CA177: 0 | CB177: 0 | CC177: 0 | CD177: 0 | CE177: 24.16 | CF177: 94.74 | CH177: 30 | CI177: 18
A178: 132/04 | B178: Рассольник ленинградский с мясными фрикадельками со сметаной | C178: 180/15/5 | D178: ="150/15/5" -> 150/15/5 | E178: 4.44 | F178: 4.18 | G178: 5.55 | H178: 4.98 | I178: 12.67 | J178: 10.61 | K178: 117.1 | L178: 102.9232035 | M178: 2.29 | N178: 1.95 | O178: 2.05 | P178: 0 | Q178: 1.55 | R178: 7.96 | S178: 1.11 | T178: 0 | U178: 0 | V178: 0.22 | W178: 1.52 | X178: 122.6 | Y178: 289.64 | Z178: 15.85 | AA178: 17.08 | AB178: 59.67 | AC178: 0.69 | AD178: 5.63 | AE178: 588.48 | AF178: 133.7 | AG178: 1.47 | AH178: 0.05 | AI178: 0.05 | AJ178: 1.05 | AK178: 1.11 | AL178: 4.04 | AM178: 0 | AN178: 184.86 | AO178: 150.46 | AP178: 267.92 | AQ178: 425.9 | AR178: 78.69 | AS178: 150.25 | AT178: 45.58 | AU178: 156.94 | AV178: 204.26 | AW178: 240.45 | AX178: 328.72 | AY178: 119.37 | AZ178: 169.52 | BA178: 669.61 | BB178: 42.5 | BC178: 147.12 | BD178: 151.22 | BE178: 122.56 | BF178: 52.62 | BG178: 0.08 | BH178: 0.02 | BI178: 0.02 | BJ178: 0.04 | BK178: 0.05 | BL178: 0.17 | BM178: 0 | BN178: 0.2 | BO178: 0 | BP178: 0.12 | BQ178: 0.01 | BR178: 0.02 | BS178: 0 | BT178: 0 | BU178: 0.06 | BV178: 0.69 | BW178: 0 | BX178: 0 | BY178: 1.82 | BZ178: 0 | CA178: 0 | CB178: 0 | CC178: 0 | CD178: 0 | CE178: 185.77 | CF178: 103.71 | CH178: 4.8 | CI178: 4
A179: 388/04 | B179: Биточки рыбные | C179: 70 | D179: ="50" -> 50 | E179: 8.11 | F179: 5.79 | G179: 5.42 | H179: 3.87 | I179: 9.59 | J179: 6.85 | K179: 119.35 | L179: 85.24899894 | M179: 0.79 | N179: 2.6 | O179: 0.86 | P179: 0 | Q179: 0.26 | R179: 6.13 | S179: 0.46 | T179: 0 | U179: 0 | V179: 0.06 | W179: 0.52 | X179: 174.75 | Y179: 31.34 | Z179: 15.68 | AA179: 5.45 | AB179: 19.7 | AC179: 0.28 | AD179: 0.94 | AE179: 0.83 | AF179: 2.86 | AG179: 1.97 | AH179: 0.02 | AI179: 0.02 | AJ179: 0.17 | AK179: 0.6 | AL179: 0.03 | AM179: 0 | AN179: 0 | AO179: 0 | AP179: 0 | AQ179: 0 | AR179: 0 | AS179: 0 | AT179: 0 | AU179: 0 | AV179: 0 | AW179: 0 | AX179: 0 | AY179: 0 | AZ179: 0 | BA179: 0 | BB179: 0 | BC179: 0 | BD179: 0 | BE179: 0 | BF179: 0 | BG179: 0 | BH179: 0 | BI179: 0 | BJ179: 0 | BK179: 0 | BL179: 0 | BM179: 0 | BN179: 0.22 | BO179: 0 | BP179: 0.14 | BQ179: 0.01 | BR179: 0.02 | BS179: 0 | BT179: 0 | BU179: 0 | BV179: 0.83 | BW179: 0 | BX179: 0 | BY179: 2.36 | BZ179: 0 | CA179: 0 | CB179: 0 | CC179: 0 | CD179: 0 | CE179: 17 | CF179: 1.07 | CH179: 0 | CI179: 0
A180: 520/04 | B180: Картофельное пюре | C180: 130 | D180: ="120" -> 120 | E180: 2.64 | F180: 2.44 | G180: 4.17 | H180: 3.85 | I180: 18.79 | J180: 17.34 | K180: 122.23 | L180: 112.829315 | M180: 2.69 | N180: 0.11 | O180: 2.69 | P180: 0 | Q180: 2.03 | R180: 14 | S180: 1.31 | T180: 0 | U180: 0 | V180: 0.22 | W180: 1.68 | X180: 162.88 | Y180: 536.56 | Z180: 29.85 | AA180: 22.8 | AB180: 66.84 | AC180: 0.84 | AD180: 17.24 | AE180: 30.81 | AF180: 34.86 | AG180: 0.15 | AH180: 0.09 | AI180: 0.08 | AJ180: 1.08 | AK180: 2 | AL180: 8.3 | AM180: 0 | AN180: 25.15 | AO180: 39.58 | AP180: 50.1 | AQ180: 58.99 | AR180: 10.08 | AS180: 39.78 | AT180: 20.37 | AU180: 40.58 | AV180: 56.82 | AW180: 154.95 | AX180: 68.95 | AY180: 14.38 | AZ180: 40.14 | BA180: 215.74 | BB180: 0 | BC180: 30.13 | BD180: 27.4 | BE180: 29.97 | BF180: 12.78 | BG180: 0.14 | BH180: 0.03 | BI180: 0.03 | BJ180: 0.07 | BK180: 0.09 | BL180: 0.3 | BM180: 0 | BN180: 0.99 | BO180: 0 | BP180: 0.3 | BQ180: 0 | BR180: 0 | BS180: 0 | BT180: 0 | BU180: 0.11 | BV180: 1 | BW180: 0 | BX180: 0 | BY180: 0.12 | BZ180: 0 | CA180: 0 | CB180: 0 | CC180: 0 | CD180: 0 | CE180: 97.35 | CF180: 22.37 | CH180: 9 | CI180: 8.3
A181: 10/10 | B181: Напиток из кураги | C181: 180 | D181: ="150" -> 150 | E181: 0.69 | F181: 0.57 | G181: 0.04 | H181: 0.03 | I181: 14.33 | J181: 11.94 | K181: 54.112 | L181: 45.0932715 | M181: 0.01 | N181: 0 | O181: 0 | P181: 0 | Q181: 9.69 | R181: 0.32 | S181: 1.92 | T181: 0 | U181: 0 | V181: 0.17 | W181: 0.45 | X181: 1.94 | Y181: 191.36 | Z181: 17.59 | AA181: 11.22 | AB181: 15.28 | AC181: 0.36 | AD181: 0 | AE181: 354.38 | AF181: 65.59 | AG181: 0.62 | AH181: 0.01 | AI181: 0.02 | AJ181: 0.29 | AK181: 0.44 | AL181: 0.18 | AM181: 0 | AN181: 0.01 | AO181: 0 | AP181: 0.01 | AQ181: 0.01 | AR181: 0 | AS181: 0.01 | AT181: 0 | AU181: 0.01 | AV181: 0.01 | AW181: 0.01 | AX181: 0.03 | AY181: 0 | AZ181: 0 | BA181: 0.01 | BB181: 0 | BC181: 0.01 | BD181: 0.01 | BE181: 0 | BF181: 0 | BG181: 0 | BH181: 0 | BI181: 0 | BJ181: 0 | BK181: 0 | BL181: 0 | BM181: 0 | BN181: 0 | BO181: 0 | BP181: 0 | BQ181: 0 | BR181: 0 | BS181: 0 | BT181: 0 | BU181: 0 | BV181: 0.01 | BW181: 0 | BX181: 0 | BY181: 0 | BZ181: 0 | CA181: 0 | CB181: 0 | CC181: 0 | CD181: 0 | CE181: 159.75 | CF181: 59.06 | CH181: 0.2 | CI181: 0.2
A182: - | B182: Хлеб ржаной | C182: 50 | D182: ="35" -> 35 | E182: 3.3 | F182: 2.31 | G182: 0.6 | H182: 0.42 | I182: 20.85 | J182: 14.6 | K182: 96.69 | L182: 67.683 | M182: 0.07 | N182: 0 | O182: 0 | P182: 0 | Q182: 0.42 | R182: 11.27 | S182: 2.91 | T182: 0 | U182: 0 | V182: 0.35 | W182: 0.88 | X182: 213.5 | Y182: 85.75 | Z182: 12.25 | AA182: 16.45 | AB182: 55.3 | AC182: 1.37 | AD182: 0 | AE182: 1.75 | AF182: 0.35 | AG182: 0.49 | AH182: 0.06 | AI182: 0.03 | AJ182: 0.25 | AK182: 0.7 | AL182: 0 | AM182: 0 | AN182: 112.7 | AO182: 86.8 | AP182: 149.45 | AQ182: 78.05 | AR182: 32.55 | AS182: 69.3 | AT182: 28 | AU182: 129.85 | AV182: 103.95 | AW182: 101.85 | AX182: 162.4 | AY182: 43.4 | AZ182: 108.5 | BA182: 545.65 | BB182: 0 | BC182: 184.1 | BD182: 101.85 | BE182: 63 | BF182: 45.5 | BG182: 0 | BH182: 0 | BI182: 0 | BJ182: 0 | BK182: 0 | BL182: 0 | BM182: 0 | BN182: 0.05 | BO182: 0 | BP182: 0 | BQ182: 0.01 | BR182: 0 | BS182: 0 | BT182: 0 | BU182: 0 | BV182: 0.04 | BW182: 0 | BX182: 0 | BY182: 0.17 | BZ182: 0.03 | CA182: 0 | CB182: 0 | CC182: 0 | CD182: 0 | CE182: 16.45 | CF182: 0.29 | CH182: 0 | CI182: 0
B183: Итого за 'Обед' | C183: 680 | D183: 555 | E183: =SUM(E177:E182) -> 20.13 | F183: =SUM(F177:F182) -> 15.86 | G183: =SUM(G177:G182) -> 18.38 | H183: 14.75 | I183: 81.33 | J183: 64.44 | K183: 556.482 | L183: 441.977789 | M183: 6.12 | N183: 6.03 | O183: 5.6 | P183: 0 | Q183: 15.28 | R183: 40.81 | S183: 8.23 | T183: 0 | U183: 0 | V183: 1.1 | W183: 5.62 | X183: 791.23 | Y183: 1219.06 | Z183: 98.44 | AA183: 79.25 | AB183: 229.75 | AC183: 3.8 | AD183: 23.81 | AE183: 1544.67 | AF183: 334.03 | AG183: 5.67 | AH183: 0.25 | AI183: 0.21 | AJ183: 3.01 | AK183: 5.09 | AL183: 15.52 | AM183: 0 | AN183: 330.32 | AO183: 285.66 | AP183: 477.95 | AQ183: 575.64 | AR183: 123.89 | AS183: 267.53 | AT183: 96.71 | AU183: 335.03 | AV183: 374.38 | AW183: 516.1 | AX183: 594.74 | AY183: 179.83 | AZ183: 325.22 | BA183: 1477.57 | BB183: 42.5 | BC183: 368.29 | BD183: 288.46 | BE183: 222.11 | BF183: 113.48 | BG183: 0.22 | BH183: 0.05 | BI183: 0.05 | BJ183: 0.11 | BK183: 0.14 | BL183: 0.47 | BM183: 0 | BN183: 1.59 | BO183: 0 | BP183: 0.65 | BQ183: 0.04 | BR183: 0.05 | BS183: =SUM(BS177:BS182) -> 0 | BT183: 0 | BU183: 0.17 | BV183: 3.07 | BW183: 0 | BX183: 0 | BY183: 5.69 | BZ183: 0.03 | CA183: 0 | CB183: 0 | CC183: 0 | CD183: 0 | CE183: 500.48 | CF183: 281.24 | CG183: 0 | CH183: 44 | CI183: 30.5
B184: Полдник
A185: ="297" -> 297 | B185: Катык | C185: 130 | D185: 110 | E185: 7.33 | F185: 6.204 | G185: 3.198 | H185: 2.706 | I185: 4.264 | J185: 3.608 | K185: 74.3402 | L185: 62.903 | M185: 0 | N185: 0 | O185: 0 | P185: 0 | Q185: 3.28 | R185: 0 | S185: 0 | T185: 0 | U185: 0 | V185: 0 | W185: 0 | X185: 0 | Y185: 0 | Z185: 0 | AA185: 0 | AB185: 0 | AC185: 0 | AD185: 0 | AE185: 0 | AF185: 0 | AG185: 0 | AH185: 0 | AI185: 0 | AJ185: 0 | AK185: 0 | AL185: 0 | AM185: 0 | AN185: 0 | AO185: 0 | AP185: 0 | AQ185: 0 | AR185: 0 | AS185: 0 | AT185: 0 | AU185: 0 | AV185: 0 | AW185: 0 | AX185: 0 | AY185: 0 | AZ185: 0 | BA185: 0 | BB185: 0 | BC185: 0 | BD185: 0 | BE185: 0 | BF185: 0 | BG185: 0 | BH185: 0 | BI185: 0 | BJ185: 0 | BK185: 0 | BL185: 0 | BM185: 0 | BN185: 0 | BO185: 0 | BP185: 0 | BQ185: 0 | BR185: 0 | BS185: 0 | BT185: 0 | BU185: 0 | BV185: 0 | BW185: 0 | BX185: 0 | BY185: 0 | BZ185: 0 | CA185: 0 | CB185: 0 | CC185: 0 | CD185: 0 | CE185: 0 | CF185: 0 | CH185: 0 | CI185: 0
A186: 773/04 | B186: Булочка "Веснушка" | C186: 50 | D186: ="50" -> 50 | E186: 3.91 | F186: 3.91 | G186: 2.84 | H186: 2.84 | I186: 27.96 | J186: 27.96 | K186: 151.9565 | L186: 151.9564758 | M186: 1.82 | N186: 0.08 | O186: 1.82 | P186: 0 | Q186: 4.71 | R186: 22.06 | S186: 1.19 | T186: 0 | U186: 0 | V186: 0 | W186: 0.65 | X186: 157.65 | Y186: 40.24 | Z186: 7.92 | AA186: 5.16 | AB186: 29.35 | AC186: 0.42 | AD186: 12.98 | AE186: 10.26 | AF186: 23.76 | AG186: 0.57 | AH186: 0.04 | AI186: 0.02 | AJ186: 0.34 | AK186: 1.12 | AL186: 0 | AM186: 0 | AN186: 166.87 | AO186: 151.26 | AP186: 283.14 | AQ186: 94.1 | AR186: 56.07 | AS186: 111.6 | AT186: 36.49 | AU186: 175.36 | AV186: 118.78 | AW186: 142.89 | AX186: 127.92 | AY186: 71.31 | AZ186: 122.24 | BA186: 1054.89 | BB186: 0.14 | BC186: 330.6 | BD186: 178.46 | BE186: 89.62 | BF186: 70.34 | BG186: 0.11 | BH186: 0.02 | BI186: 0.02 | BJ186: 0.05 | BK186: 0.07 | BL186: 0.22 | BM186: 0 | BN186: 0.73 | BO186: 0 | BP186: 0.21 | BQ186: 0 | BR186: 0 | BS186: 0 | BT186: 0 | BU186: 0.08 | BV186: 0.67 | BW186: 0 | BX186: 0 | BY186: 0.2 | BZ186: 0.01 | CA186: 0 | CB186: 0 | CC186: 0 | CD186: 0 | CE186: 20.97 | CF186: 14.69 | CH186: 0 | CI186: 0
B187: Итого за 'Полдник' | C187: 180 | D187: 160 | E187: =SUM(E185:E186) -> 11.24 | F187: =SUM(F185:F186) -> 10.114 | G187: 6.038 | H187: 5.546 | I187: 32.224 | J187: 31.568 | K187: 226.2967 | L187: 214.8594758 | M187: 1.82 | N187: 0.08 | O187: 1.82 | P187: 0 | Q187: 7.99 | R187: 22.06 | S187: 1.19 | T187: 0 | U187: 0 | V187: 0 | W187: 0.65 | X187: 157.65 | Y187: 40.24 | Z187: 7.92 | AA187: 5.16 | AB187: 29.35 | AC187: 0.42 | AD187: 12.98 | AE187: 10.26 | AF187: 23.76 | AG187: 0.57 | AH187: 0.04 | AI187: 0.02 | AJ187: 0.34 | AK187: 1.12 | AL187: 0 | AM187: 0 | AN187: 166.87 | AO187: 151.26 | AP187: 283.14 | AQ187: 94.1 | AR187: 56.07 | AS187: 111.6 | AT187: 36.49 | AU187: 175.36 | AV187: 118.78 | AW187: 142.89 | AX187: 127.92 | AY187: 71.31 | AZ187: 122.24 | BA187: 1054.89 | BB187: 0.14 | BC187: 330.6 | BD187: 178.46 | BE187: 89.62 | BF187: 70.34 | BG187: 0.11 | BH187: 0.02 | BI187: 0.02 | BJ187: 0.05 | BK187: 0.07 | BL187: 0.22 | BM187: 0 | BN187: 0.73 | BO187: 0 | BP187: 0.21 | BQ187: 0 | BR187: =SUM(BR185:BR186) -> 0 | BS187: 0 | BT187: 0 | BU187: 0.08 | BV187: 0.67 | BW187: 0 | BX187: 0 | BY187: 0.2 | BZ187: 0.01 | CA187: 0 | CB187: 0 | CC187: 0 | CD187: 0 | CE187: 20.97 | CF187: 14.69 | CG187: 0 | CH187: 0 | CI187: 0
B188: Ужин
A189: 386/16 | B189: Яблоки | C189: 70 | D189: ="70" -> 70 | E189: 0.28 | F189: 0.28 | G189: 0.28 | H189: 0.28 | I189: 6.9 | J189: 6.9 | K189: 34.076 | L189: 34.076 | M189: 0.07 | N189: 0 | O189: 0 | P189: 0 | Q189: 6.3 | R189: 0.56 | S189: 1.26 | T189: 0 | U189: 0 | V189: 0.56 | W189: 0.35 | X189: 18.2 | Y189: 194.6 | Z189: 11.2 | AA189: 6.3 | AB189: 7.7 | AC189: 1.54 | AD189: 0 | AE189: 21 | AF189: 3.5 | AG189: 0.14 | AH189: 0.02 | AI189: 0.01 | AJ189: 0.21 | AK189: 0.28 | AL189: 7 | AM189: 0 | AN189: 8.4 | AO189: 9.1 | AP189: 13.3 | AQ189: 12.6 | AR189: 2.1 | AS189: 7.7 | AT189: 2.1 | AU189: 6.3 | AV189: 11.9 | AW189: 7 | AX189: 54.6 | AY189: 4.9 | AZ189: 9.8 | BA189: 29.4 | BB189: 0 | BC189: 9.1 | BD189: 11.2 | BE189: 4.2 | BF189: 3.5 | BG189: 0 | BH189: 0 | BI189: 0 | BJ189: 0 | BK189: 0 | BL189: 0 | BM189: 0 | BN189: 0 | BO189: 0 | BP189: 0 | BQ189: 0 | BR189: 0 | BS189: 0 | BT189: 0 | BU189: 0 | BV189: 0 | BW189: 0 | BX189: 0 | BY189: 0 | BZ189: 0 | CA189: 0 | CB189: 0 | CC189: 0 | CD189: 0 | CE189: 60.41 | CF189: 3.5 | CH189: 7 | CI189: 7
A190: 463 | B190: Капуста, тушенная с мясным фаршем | C190: 200 | D190: ="180" -> 180 | E190: 13.1 | F190: 12.65 | G190: 11.8 | H190: 11.13 | I190: 13.6 | J190: 11.82 | K190: 206 | L190: 192.3694162 | M190: 7.49 | N190: 0.15 | O190: 7.49 | P190: 0 | Q190: 6.63 | R190: 2.27 | S190: 2.91 | T190: 0 | U190: 0 | V190: 0.42 | W190: 1.58 | X190: 0 | Y190: 551.83 | Z190: 71.6 | AA190: 33.65 | AB190: 143.2 | AC190: 2.17 | AD190: 34.96 | AE190: 41.8 | AF190: 43.57 | AG190: 0.5 | AH190: 0.07 | AI190: 0.12 | AJ190: 3.14 | AK190: 6.28 | AL190: 21.33 | AM190: 0 | AN190: 0 | AO190: 0 | AP190: 890.01 | AQ190: 925.92 | AR190: 268.53 | AS190: 493.17 | AT190: 128.36 | AU190: 509.05 | AV190: 676.3 | AW190: 673.81 | AX190: 1170.09 | AY190: 418.04 | AZ190: 566.7 | BA190: 2079.66 | BB190: 152.7 | BC190: 470.09 | BD190: 505.54 | BE190: 421.2 | BF190: 169.16 | BG190: 0.22 | BH190: 0.06 | BI190: 0.04 | BJ190: 0.11 | BK190: 0.18 | BL190: 1.16 | BM190: 0.01 | BN190: 29.77 | BO190: 0.01 | BP190: 33.28 | BQ190: 1.57 | BR190: 0.06 | BS190: 0 | BT190: 0 | BU190: 1.37 | BV190: 42.38 | BW190: 0.03 | BX190: 0 | BY190: 7.99 | BZ190: 0.03 | CA190: 0.01 | CB190: 0 | CC190: 0 | CD190: 0 | CE190: 171.23 | CF190: 41.93 | CH190: 24.6 | CI190: 21.3
A191: 27/10 | B191: Чай полусладкий | C191: 180 | D191: ="150" -> 150 | E191: 0.18 | F191: 0.15 | G191: 0.04 | H191: 0.04 | I191: 4.53 | J191: 3.78 | K191: 18.157 | L191: 15.130905 | M191: 0 | N191: 0 | O191: 0 | P191: 0 | Q191: 3.7 | R191: 0 | S191: 0.08 | T191: 0 | U191: 0 | V191: 0 | W191: 0.05 | X191: 0.04 | Y191: 0.11 | Z191: 0.11 | AA191: 0 | AB191: 0 | AC191: 0.01 | AD191: 0 | AE191: 0 | AF191: 0 | AG191: 0 | AH191: 0 | AI191: 0 | AJ191: 0 | AK191: 0 | AL191: 0 | AM191: 0 | AN191: 0 | AO191: 0 | AP191: 0 | AQ191: 0 | AR191: 0 | AS191: 0 | AT191: 0 | AU191: 0 | AV191: 0 | AW191: 0 | AX191: 0 | AY191: 0 | AZ191: 0 | BA191: 0 | BB191: 0 | BC191: 0 | BD191: 0 | BE191: 0 | BF191: 0 | BG191: 0 | BH191: 0 | BI191: 0 | BJ191: 0 | BK191: 0 | BL191: 0 | BM191: 0 | BN191: 0 | BO191: 0 | BP191: 0 | BQ191: 0 | BR191: 0 | BS191: 0 | BT191: 0 | BU191: 0 | BV191: 0 | BW191: 0 | BX191: 0 | BY191: 0 | BZ191: 0 | CA191: 0 | CB191: 0 | CC191: 0 | CD191: 0 | CE191: 150.07 | CF191: 0 | CH191: 0 | CI191: 0
A192: - | B192: Хлеб пшеничный | C192: 30 | D192: ="30" -> 30 | E192: 1.98 | F192: 1.98 | G192: 0.2 | H192: 0.2 | I192: 14.07 | J192: 14.07 | K192: 67.1703 | L192: 67.1703 | M192: 0 | N192: 0 | O192: 0 | P192: 0 | Q192: 0.33 | R192: 13.68 | S192: 0.06 | T192: 0 | U192: 0 | V192: 0 | W192: 0.54 | X192: 0 | Y192: 0 | Z192: 0 | AA192: 0 | AB192: 0 | AC192: 0 | AD192: 0 | AE192: 0 | AF192: 0 | AG192: 0 | AH192: 0 | AI192: 0 | AJ192: 0 | AK192: 0 | AL192: 0 | AM192: 0 | AN192: 95.79 | AO192: 99.7 | AP192: 152.69 | AQ192: 50.63 | AR192: 30.02 | AS192: 60.03 | AT192: 22.71 | AU192: 108.58 | AV192: 67.34 | AW192: 93.96 | AX192: 77.52 | AY192: 40.72 | AZ192: 72.04 | BA192: 602.39 | BB192: 0 | BC192: 196.27 | BD192: 85.35 | BE192: 56.64 | BF192: 44.89 | BG192: 0 | BH192: 0 | BI192: 0 | BJ192: 0 | BK192: 0 | BL192: 0 | BM192: 0 | BN192: 0.02 | BO192: 0 | BP192: 0 | BQ192: 0 | BR192: 0 | BS192: 0 | BT192: 0 | BU192: 0 | BV192: 0.02 | BW192: 0 | BX192: 0 | BY192: 0.08 | BZ192: 0 | CA192: 0 | CB192: 0 | CC192: 0 | CD192: 0 | CE192: 11.73 | CF192: 0 | CH192: 0 | CI192: 0
B193: Итого за 'Ужин' | C193: 480 | D193: 430 | E193: =SUM(E189:E192) -> 15.54 | F193: =SUM(F189:F192) -> 15.06 | G193: 12.32 | H193: 11.65 | I193: 39.1 | J193: 36.57 | K193: 325.4033 | L193: 308.7466212 | M193: 7.56 | N193: 0.15 | O193: 7.49 | P193: 0 | Q193: 16.96 | R193: 16.51 | S193: 4.31 | T193: 0 | U193: 0 | V193: 0.98 | W193: 2.52 | X193: 18.24 | Y193: 746.54 | Z193: 82.91 | AA193: 39.95 | AB193: 150.9 | AC193: 3.72 | AD193: 34.96 | AE193: 62.8 | AF193: 47.07 | AG193: 0.64 | AH193: 0.09 | AI193: 0.13 | AJ193: 3.35 | AK193: 6.56 | AL193: 28.33 | AM193: 0 | AN193: 104.19 | AO193: 108.8 | AP193: 1056 | AQ193: 989.15 | AR193: 300.65 | AS193: 560.9 | AT193: 153.17 | AU193: 623.93 | AV193: 755.54 | AW193: 774.77 | AX193: 1302.21 | AY193: 463.66 | AZ193: 648.54 | BA193: 2711.45 | BB193: 152.7 | BC193: 675.46 | BD193: 602.09 | BE193: 482.04 | BF193: 217.55 | BG193: 0.22 | BH193: 0.06 | BI193: 0.04 | BJ193: 0.11 | BK193: 0.18 | BL193: 1.16 | BM193: 0.01 | BN193: 29.79 | BO193: 0.01 | BP193: 33.28 | BQ193: 1.57 | BR193: =SUM(BR189:BR192) -> 0.06 | BS193: 0 | BT193: 0 | BU193: 1.37 | BV193: 42.4 | BW193: 0.03 | BX193: 0 | BY193: 8.07 | BZ193: 0.03 | CA193: 0.01 | CB193: 0 | CC193: 0 | CD193: 0 | CE193: 393.44 | CF193: 45.43 | CG193: 0 | CH193: 31.6 | CI193: 28.3
B194: Итого за день | E194: =SUM(E172+E175+E183+E187+E193) -> 61.96 | F194: =SUM(F172+F175+F183+F187+F193) -> 53.844 | G194: 54.488 | H194: 48.166 | I194: 214.984 | J194: 186.268 | K194: 1575.187 | L194: 1375.64757 | M194: 23.8 | N194: 6.5 | O194: 19.34 | P194: 0 | Q194: 63.43 | R194: 108.47 | S194: 15.03 | T194: 0 | U194: 0 | V194: 2.8 | W194: 11.6 | X194: 1309.15 | Y194: 2357.75 | Z194: 386.9 | AA194: 168.24 | AB194: 600.44 | AC194: 10.31 | AD194: 161.93 | AE194: 1678.81 | AF194: 506 | AG194: 7.27 | AH194: 0.51 | AI194: 0.56 | AJ194: 7.25 | AK194: 15.61 | AL194: 46.25 | AM194: 0.2 | AN194: 978.32 | AO194: 896.06 | AP194: 2641.85 | AQ194: 1968.58 | AR194: 653.23 | AS194: 1219.88 | AT194: 416.25 | AU194: 1536.46 | AV194: 1676.81 | AW194: 1699.8 | AX194: 2427.01 | AY194: 871.54 | AZ194: 1289.87 | BA194: 6762.5 | BB194: 195.34 | BC194: 1946.1 | BD194: 1433.31 | BE194: 1111.64 | BF194: 521.34 | BG194: 0.86 | BH194: 0.24 | BI194: 0.2 | BJ194: 0.49 | BK194: 0.66 | BL194: 2.8 | BM194: 0.03 | BN194: 34.87 | BO194: 0.02 | BP194: 34.94 | BQ194: 1.63 | BR194: =SUM(BR172+BR175+BR183+BR187+BR193) -> 0.11 | BS194: 0 | BT194: 0.1 | BU194: 1.91 | BV194: 48.58 | BW194: 0.03 | BX194: 0 | BY194: 14.71 | BZ194: 0.09 | CA194: 0.01 | CB194: 0 | CC194: 0 | CD194: 0 | CE194: 1283.79 | CF194: 441.72 | CG194: 0 | CH194: 78 | CI194: 61.2
B196: 2 ДЕНЬ
B197: Завтрак
A198: 160/04 | B198: Суп молочный с макаронными изделиями | C198: 180 | D198: ="150" -> 150 | E198: 3.95 | F198: 3.29 | G198: 3.74 | H198: 3.12 | I198: 14.79 | J198: 12.32 | K198: 107.74 | L198: 89.7856716 | M198: 2.17 | N198: 0.03 | O198: 2.17 | P198: 0 | Q198: 4.52 | R198: 7.39 | S198: 0.4 | T198: 0 | U198: 0 | V198: 0.08 | W198: 0.77 | X198: 107.27 | Y198: 109.55 | Z198: 81.95 | AA198: 10.84 | AB198: 68.12 | AC198: 0.24 | AD198: 13.25 | AE198: 9.65 | AF198: 24.34 | AG198: 0.19 | AH198: 0.04 | AI198: 0.09 | AJ198: 0.18 | AK198: 0.95 | AL198: 0.39 | AM198: 0 | AN198: 53.99 | AO198: 49.35 | AP198: 92.46 | AQ198: 28.85 | AR198: 17.61 | AS198: 35.76 | AT198: 11.7 | AU198: 57.37 | AV198: 37.92 | AW198: 45.75 | AX198: 39.21 | AY198: 23.03 | AZ198: 40.1 | BA198: 352.26 | BB198: 0 | BC198: 111 | BD198: 57.46 | BE198: 28.83 | BF198: 22.85 | BG198: 0.04 | BH198: 0.01 | BI198: 0.01 | BJ198: 0.02 | BK198: 0.03 | BL198: 0.08 | BM198: 0 | BN198: 0.28 | BO198: 0 | BP198: 0.08 | BQ198: 0 | BR198: 0 | BS198: 0 | BT198: 0 | BU198: 0.03 | BV198: 0.24 | BW198: 0 | BX198: 0 | BY198: 0.06 | BZ198: 0 | CA198: 0 | CB198: 0 | CC198: 0 | CD198: 0 | CE198: 131.05 | CF198: 14.86 | CH198: 0.5 | CI198: 0.4
A199: ="32/10" -> 32/10 | B199: Кофейный напиток с молоком | C199: 180 | D199: ="150" -> 150 | E199: 3 | F199: 2.5 | G199: 2.93 | H199: 2.44 | I199: 13.93 | J199: 11.6 | K199: 91.54 | L199: 76.28116667 | M199: 1.5 | N199: 0 | O199: 0 | P199: 0 | Q199: 11.6 | R199: 0 | S199: 0 | T199: 0 | U199: 0 | V199: 0.08 | W199: 0.53 | X199: 37.21 | Y199: 108.65 | Z199: 87.54 | AA199: 9.98 | AB199: 62.78 | AC199: 0.1 | AD199: 15 | AE199: 6.75 | AF199: 16.5 | AG199: 0 | AH199: 0.03 | AI199: 0.1 | AJ199: 0.06 | AK199: 0.6 | AL199: 0.39 | AM199: 0 | AN199: 119.81 | AO199: 118.34 | AP199: 202.86 | AQ199: 163.17 | AR199: 54.39 | AS199: 95.55 | AT199: 31.61 | AU199: 107.31 | AV199: 0 | AW199: 0 | AX199: 0 | AY199: 0 | AZ199: 0 | BA199: 0 | BB199: 0 | BC199: 0 | BD199: 0 | BE199: 135.24 | BF199: 19.11 | BG199: 0 | BH199: 0 | BI199: 0 | BJ199: 0 | BK199: 0 | BL199: 0 | BM199: 0 | BN199: 0 | BO199: 0 | BP199: 0 | BQ199: 0 | BR199: 0 | BS199: 0 | BT199: 0 | BU199: 0 | BV199: 0 | BW199: 0 | BX199: 0 | BY199: 0 | BZ199: 0 | CA199: 0 | CB199: 0 | CC199: 0 | CD199: 0 | CE199: 156.48 | CF199: 16.13 | CH199: 0.5 | CI199: 0.4
A200: ="1/13" -> 1/13 | B200: Бутерброд с маслом | C200: 30/5 | D200: ="25/5" -> 25/5 | E200: 2.32 | F200: 1.94 | G200: 3.9 | H200: 3.85 | I200: 14.14 | J200: 11.79 | K200: 102.04 | L200: 90.542 | M200: 2.36 | N200: 0.11 | O200: 0 | P200: 0 | Q200: 0.34 | R200: 11.4 | S200: 0.05 | T200: 0 | U200: 0 | V200: 0 | W200: 0.52 | X200: 0.75 | Y200: 1.5 | Z200: 1.2 | AA200: 0 | AB200: 1.5 | AC200: 0.01 | AD200: 20 | AE200: 15 | AF200: 22.5 | AG200: 0.05 | AH200: 0 | AI200: 0.01 | AJ200: 0.01 | AK200: 0.01 | AL200: 0 | AM200: 0 | AN200: 93.85 | AO200: 97.55 | AP200: 150.05 | AQ200: 50.75 | AR200: 29.6 | AS200: 59.85 | AT200: 23.9 | AU200: 106.1 | AV200: 66.3 | AW200: 91.3 | AX200: 77.1 | AY200: 40.75 | AZ200: 70.2 | BA200: 584.1 | BB200: 0 | BC200: 190.4 | BD200: 84.45 | BE200: 56.35 | BF200: 43.5 | BG200: 0.13 | BH200: 0.06 | BI200: 0.03 | BJ200: 0.08 | BK200: 0.09 | BL200: 0.4 | BM200: 0 | BN200: 1.13 | BO200: 0 | BP200: 0.34 | BQ200: 0 | BR200: 0 | BS200: 0 | BT200: 0.08 | BU200: 0.12 | BV200: 0.92 | BW200: 0 | BX200: 0 | BY200: 0.14 | BZ200: 0.01 | CA200: 0 | CB200: 0 | CC200: 0 | CD200: 0 | CE200: 11.03 | CF200: 22.5 | CH200: 0 | CI200: 0
B201: Итого за 'Завтрак' | C201: 395 | D201: 330 | E201: =SUM(E198:E200) -> 9.27 | F201: 7.73 | G201: 10.57 | H201: 9.41 | I201: 42.86 | J201: 35.71 | K201: 301.32 | L201: 256.6088383 | M201: 6.03 | N201: 0.14 | O201: 2.17 | P201: 0 | Q201: 16.46 | R201: 18.79 | S201: 0.45 | T201: 0 | U201: 0 | V201: 0.16 | W201: 1.82 | X201: 145.23 | Y201: 219.7 | Z201: 170.69 | AA201: 20.82 | AB201: 132.4 | AC201: 0.35 | AD201: 48.25 | AE201: 31.4 | AF201: 63.34 | AG201: 0.24 | AH201: 0.07 | AI201: 0.2 | AJ201: 0.25 | AK201: =SUM(AK198:AK200) -> 1.56 | AL201: 0.78 | AM201: 0 | AN201: 267.65 | AO201: 265.24 | AP201: 445.37 | AQ201: 242.77 | AR201: 101.6 | AS201: 191.16 | AT201: 67.21 | AU201: 270.78 | AV201: 104.22 | AW201: 137.05 | AX201: 116.31 | AY201: 63.78 | AZ201: 110.3 | BA201: 936.36 | BB201: 0 | BC201: 301.4 | BD201: 141.91 | BE201: 220.42 | BF201: 85.46 | BG201: 0.17 | BH201: 0.07 | BI201: 0.04 | BJ201: 0.1 | BK201: 0.12 | BL201: 0.48 | BM201: 0 | BN201: 1.41 | BO201: 0 | BP201: 0.42 | BQ201: =SUM(BQ198:BQ200) -> 0 | BR201: 0 | BS201: 0 | BT201: 0.08 | BU201: 0.15 | BV201: 1.16 | BW201: 0 | BX201: 0 | BY201: 0.2 | BZ201: 0.01 | CA201: 0 | CB201: 0 | CC201: 0 | CD201: 0 | CE201: 298.56 | CF201: 53.49 | CG201: 0 | CH201: 1 | CI201: 0.8
B202: 10:00
A203: ="-" -> - | B203: Сок | C203: 100 | D203: ="100" -> 100 | E203: 0.5 | F203: 0.5 | G203: 0.1 | H203: 0.1 | I203: 10.3 | J203: 10.3 | K203: 43.24 | L203: 43.24 | M203: 0 | N203: 0 | O203: 0 | P203: 0 | Q203: 9.9 | R203: 0.2 | S203: 0.2 | T203: 0 | U203: 0 | V203: 0.5 | W203: 0.3 | X203: 6 | Y203: 120 | Z203: 7 | AA203: 4 | AB203: 7 | AC203: 1.4 | AD203: 0 | AE203: 0 | AF203: 0 | AG203: 0.1 | AH203: 0.01 | AI203: 0.01 | AJ203: 0.1 | AK203: 0.2 | AL203: 2 | AM203: 0.2 | AN203: 8 | AO203: 10 | AP203: 14 | AQ203: 14 | AR203: 2 | AS203: 8 | AT203: 2 | AU203: 7 | AV203: 13 | AW203: 8 | AX203: 58 | AY203: 5 | AZ203: 11 | BA203: 32 | BB203: 0 | BC203: 10 | BD203: 12 | BE203: 5 | BF203: 4 | BG203: 0 | BH203: 0 | BI203: 0 | BJ203: 0 | BK203: 0 | BL203: 0 | BM203: 0 | BN203: 0 | BO203: 0 | BP203: 0 | BQ203: 0 | BR203: 0 | BS203: 0 | BT203: 0 | BU203: 0 | BV203: 0 | BW203: 0 | BX203: 0 | BY203: 0 | BZ203: 0 | CA203: 0 | CB203: 0 | CC203: 0 | CD203: 0 | CE203: 88.1 | CF203: 0 | CH203: 2 | CI203: 2
B204: Итого за '10:00' | C204: 100 | D204: 100 | E204: 0.5 | F204: 0.5 | G204: 0.1 | H204: 0.1 | I204: 10.3 | J204: 10.3 | K204: 43.24 | L204: 43.24 | M204: 0 | N204: 0 | O204: 0 | P204: 0 | Q204: 9.9 | R204: 0.2 | S204: 0.2 | T204: 0 | U204: 0 | V204: 0.5 | W204: 0.3 | X204: 6 | Y204: 120 | Z204: 7 | AA204: 4 | AB204: 7 | AC204: 1.4 | AD204: 0 | AE204: 0 | AF204: 0 | AG204: 0.1 | AH204: 0.01 | AI204: 0.01 | AJ204: 0.1 | AK204: 0.2 | AL204: 2 | AM204: 0.2 | AN204: 8 | AO204: 10 | AP204: 14 | AQ204: 14 | AR204: 2 | AS204: 8 | AT204: 2 | AU204: 7 | AV204: 13 | AW204: 8 | AX204: 58 | AY204: 5 | AZ204: 11 | BA204: 32 | BB204: 0 | BC204: 10 | BD204: 12 | BE204: 5 | BF204: 4 | BG204: 0 | BH204: 0 | BI204: 0 | BJ204: 0 | BK204: 0 | BL204: 0 | BM204: 0 | BN204: 0 | BO204: 0 | BP204: 0 | BQ204: 0 | BR204: 0 | BS204: 0 | BT204: 0 | BU204: 0 | BV204: 0 | BW204: 0 | BX204: 0 | BY204: 0 | BZ204: 0 | CA204: 0 | CB204: 0 | CC204: 0 | CD204: 0 | CE204: 88.1 | CF204: 0 | CH204: 2 | CI204: 2
B205: Обед
A206: 7/03 | B206: Икра кабачковая | C206: 50 | D206: ="30" -> 30 | E206: 0.9 | F206: 0.6 | G206: 4 | H206: 2.4 | I206: 4.7 | J206: 2.8 | K206: 56 | L206: 34 | M206: 0.22 | N206: 0.98 | O206: 0.22 | P206: 0 | Q206: 2.11 | R206: 0.02 | S206: 0.52 | T206: 0 | U206: 0 | V206: 0.09 | W206: 0.33 | X206: 32.75 | Y206: 108.17 | Z206: 9.33 | AA206: 4.94 | AB206: 8.57 | AC206: 0.22 | AD206: 0 | AE206: 28.3 | AF206: 5.77 | AG206: 0.72 | AH206: 0.01 | AI206: 0.01 | AJ206: 0.19 | AK206: 0.34 | AL206: 1.95 | AM206: 0 | AN206: 3.75 | AO206: 3.24 | AP206: 4.14 | AQ206: 3.95 | AR206: 1.42 | AS206: 2.91 | AT206: 0.65 | AU206: 3.62 | AV206: 4.59 | AW206: 5.5 | AX206: 11.13 | AY206: 1.82 | AZ206: 3.04 | BA206: 17.79 | BB206: 0 | BC206: 3.82 | BD206: 3.82 | BE206: 3.23 | BF206: 1.29 | BG206: 0 | BH206: 0 | BI206: 0 | BJ206: 0 | BK206: 0 | BL206: 0 | BM206: 0 | BN206: 0.08 | BO206: 0 | BP206: 0.06 | BQ206: 0 | BR206: 0.01 | BS206: 0 | BT206: 0 | BU206: 0 | BV206: 0.32 | BW206: 0 | BX206: 0 | BY206: 0.8 | BZ206: 0 | CA206: 0 | CB206: 0 | CC206: 0 | CD206: 0 | CE206: 39.69 | CF206: 4.72 | CH206: 1.2 | CI206: 0.7
A207: 138/04 | B207: Суп картофельный с крупой с рыбными фрикадельками | C207: 180/15 | D207: ="150/15" -> 150/15 | E207: 3.63 | F207: 3.24 | G207: 2.1 | H207: 1.73 | I207: 12.64 | J207: 10.77 | K207: 82.567 | L207: 70.39410399 | M207: 0.28 | N207: 0.98 | O207: 0.79 | P207: 0 | Q207: 1.59 | R207: 8.15 | S207: 1.03 | T207: 0 | U207: 0 | V207: 0.13 | W207: 1.58 | X207: 318.31 | Y207: 250.44 | Z207: 10.86 | AA207: 13.37 | AB207: 35.13 | AC207: 0.51 | AD207: 1.1 | AE207: 583.74 | AF207: 124.28 | AG207: 0.77 | AH207: 0.05 | AI207: 0.03 | AJ207: 0.57 | AK207: 1.06 | AL207: 3.97 | AM207: 0 | AN207: 32.55 | AO207: 34.22 | AP207: 52.04 | AQ207: 43.83 | AR207: 13.43 | AS207: 31.71 | AT207: 14.04 | AU207: 36.09 | AV207: 45.3 | AW207: 92.09 | AX207: 64.64 | AY207: 15.05 | AZ207: 32.17 | BA207: 158.25 | BB207: 0.13 | BC207: 27.87 | BD207: 31.88 | BE207: 26.77 | BF207: 12.91 | BG207: 0.05 | BH207: 0.01 | BI207: 0.01 | BJ207: 0.02 | BK207: 0.03 | BL207: 0.1 | BM207: 0 | BN207: 0.12 | BO207: 0 | BP207: 0.06 | BQ207: 0 | BR207: 0.01 | BS207: 0 | BT207: 0 | BU207: 0.04 | BV207: 0.39 | BW207: 0 | BX207: 0 | BY207: 0.93 | BZ207: 0 | CA207: 0 | CB207: 0 | CC207: 0 | CD207: 0 | CE207: 163.65 | CF207: 98.39 | CH207: 4.8 | CI207: 4
A208: ="6/8" -> 6/8 | B208: Рагу овощное с мясом | C208: 130/40 | D208: ="120/40" -> 120/40 | E208: 12.79 | F208: 12.6 | G208: 11.06 | H208: 11.06 | I208: 17.59 | J208: 16.2 | K208: 218 | L208: 211.8686398 | M208: 6.9 | N208: 0.07 | O208: 0 | P208: 0 | Q208: 2.85 | R208: 11.29 | S208: 2.07 | T208: 0 | U208: 0 | V208: 0.24 | W208: 2.09 | X208: 226.3 | Y208: 486.76 | Z208: 25.52 | AA208: 33.96 | AB208: 139.23 | AC208: 2.12 | AD208: 18.57 | AE208: 2135.81 | AF208: 440.44 | AG208: 0.53 | AH208: 0.09 | AI208: 0.11 | AJ208: 3.02 | AK208: 6.92 | AL208: 4.2 | AM208: 0 | AN208: 633.75 | AO208: 495.85 | AP208: 914.13 | AQ208: 1519.73 | AR208: 263.83 | AS208: 504.9 | AT208: 138.28 | AU208: 503.69 | AV208: 674.47 | AW208: 732.96 | AX208: 1122.07 | AY208: 420.76 | AZ208: 581.22 | BA208: 2017.11 | BB208: 161.46 | BC208: 453.12 | BD208: 492.54 | BE208: 407.66 | BF208: 163.56 | BG208: 0.08 | BH208: 0.04 | BI208: 0.02 | BJ208: 0.04 | BK208: 0.05 | BL208: 0.23 | BM208: 0 | BN208: 0.7 | BO208: 0 | BP208: 0.21 | BQ208: 0 | BR208: 0 | BS208: 0 | BT208: 0.05 | BU208: 0.07 | BV208: 0.63 | BW208: 0 | BX208: 0 | BY208: 0.09 | BZ208: 0.02 | CA208: 0 | CB208: 0 | CC208: 0 | CD208: 0 | CE208: 156.35 | CF208: 374.54 | CH208: 4.5 | CI208: 4.2
A209: 648/04 | B209: Кисель | C209: 180 | D209: ="150" -> 150 | E209: 0 | F209: 0 | G209: 0 | H209: 0 | I209: 14.3 | J209: 11.96 | K209: 55 | L209: 45.43927267 | M209: 0 | N209: 0 | O209: 0 | P209: 0 | Q209: 11.96 | R209: 0 | S209: 0 | T209: 0 | U209: 0 | V209: 0 | W209: 0 | X209: 0 | Y209: 0.35 | Z209: 0.27 | AA209: 0 | AB209: 0 | AC209: 0.03 | AD209: 0 | AE209: 0 | AF209: 0 | AG209: 0 | AH209: 0 | AI209: 0 | AJ209: 0 | AK209: 0 | AL209: 0 | AM209: 0 | AN209: 0 | AO209: 0 | AP209: 0 | AQ209: 0 | AR209: 0 | AS209: 0 | AT209: 0 | AU209: 0 | AV209: 0 | AW209: 0 | AX209: 0 | AY209: 0 | AZ209: 0 | BA209: 0 | BB209: 0 | BC209: 0 | BD209: 0 | BE209: 0 | BF209: 0 | BG209: 0 | BH209: 0 | BI209: 0 | BJ209: 0 | BK209: 0 | BL209: 0 | BM209: 0 | BN209: 0 | BO209: 0 | BP209: 0 | BQ209: 0 | BR209: 0 | BS209: 0 | BT209: 0 | BU209: 0 | BV209: 0 | BW209: 0 | BX209: 0 | BY209: 0 | BZ209: 0 | CA209: 0 | CB209: 0 | CC209: 0 | CD209: 0 | CE209: 142.51 | CF209: 0 | CH209: 0 | CI209: 0
A210: - | B210: Хлеб ржаной | C210: 50 | D210: ="35" -> 35 | E210: 3.3 | F210: 2.31 | G210: 0.6 | H210: 0.42 | I210: 20.85 | J210: 14.6 | K210: 96.69 | L210: 67.683 | M210: 0.07 | N210: 0 | O210: 0 | P210: 0 | Q210: 0.42 | R210: 11.27 | S210: 2.91 | T210: 0 | U210: 0 | V210: 0.35 | W210: 0.88 | X210: 213.5 | Y210: 85.75 | Z210: 12.25 | AA210: 16.45 | AB210: 55.3 | AC210: 1.37 | AD210: 0 | AE210: 1.75 | AF210: 0.35 | AG210: 0.49 | AH210: 0.06 | AI210: 0.03 | AJ210: 0.25 | AK210: 0.7 | AL210: 0 | AM210: 0 | AN210: 112.7 | AO210: 86.8 | AP210: 149.45 | AQ210: 78.05 | AR210: 32.55 | AS210: 69.3 | AT210: 28 | AU210: 129.85 | AV210: 103.95 | AW210: 101.85 | AX210: 162.4 | AY210: 43.4 | AZ210: 108.5 | BA210: 545.65 | BB210: 0 | BC210: 184.1 | BD210: 101.85 | BE210: 63 | BF210: 45.5 | BG210: 0 | BH210: 0 | BI210: 0 | BJ210: 0 | BK210: 0 | BL210: 0 | BM210: 0 | BN210: 0.05 | BO210: 0 | BP210: 0 | BQ210: 0.01 | BR210: 0 | BS210: 0 | BT210: 0 | BU210: 0 | BV210: 0.04 | BW210: 0 | BX210: 0 | BY210: 0.17 | BZ210: 0.03 | CA210: 0 | CB210: 0 | CC210: 0 | CD210: 0 | CE210: 16.45 | CF210: 0.29 | CH210: 0 | CI210: 0
B211: Итого за 'Обед' | C211: 645 | D211: 540 | E211: =SUM(E206:E210) -> 20.62 | F211: =SUM(F206:F210) -> 18.75 | G211: =SUM(G206:G210) -> 17.76 | H211: 15.61 | I211: 70.08 | J211: 56.33 | K211: 508.257 | L211: 429.3850164 | M211: 7.47 | N211: 2.03 | O211: 1.01 | P211: 0 | Q211: 18.93 | R211: 30.73 | S211: 6.53 | T211: 0 | U211: 0 | V211: 0.81 | W211: 4.88 | X211: 790.86 | Y211: 931.47 | Z211: 58.23 | AA211: 68.72 | AB211: 238.23 | AC211: 4.25 | AD211: 19.67 | AE211: 2749.6 | AF211: 570.84 | AG211: 2.51 | AH211: 0.21 | AI211: 0.18 | AJ211: 4.03 | AK211: 9.02 | AL211: 10.12 | AM211: 0 | AN211: 782.75 | AO211: 620.11 | AP211: 1119.76 | AQ211: 1645.56 | AR211: 311.23 | AS211: 608.82 | AT211: 180.97 | AU211: 673.25 | AV211: 828.31 | AW211: 932.4 | AX211: 1360.24 | AY211: 481.03 | AZ211: 724.93 | BA211: 2738.8 | BB211: 161.59 | BC211: 668.91 | BD211: 630.09 | BE211: 500.66 | BF211: 223.26 | BG211: 0.13 | BH211: 0.05 | BI211: 0.03 | BJ211: 0.06 | BK211: 0.08 | BL211: 0.33 | BM211: 0 | BN211: 0.95 | BO211: 0 | BP211: 0.33 | BQ211: 0.01 | BR211: 0.02 | BS211: =SUM(BS206:BS210) -> 0 | BT211: 0.05 | BU211: 0.11 | BV211: 1.38 | BW211: 0 | BX211: 0 | BY211: 1.99 | BZ211: 0.05 | CA211: 0 | CB211: 0 | CC211: 0 | CD211: 0 | CE211: 518.65 | CF211: 477.94 | CG211: 0 | CH211: 10.5 | CI211: 8.9
B212: Полдник
A213: 297 | B213: Кефир | C213: 130 | D213: 110 | E213: 3.77 | F213: 3.19 | G213: 4.16 | H213: 3.52 | I213: 5.2 | J213: 4.4 | K213: 75.79 | L213: 64.13 | M213: 2 | N213: 0 | O213: 0 | P213: 0 | Q213: 4 | R213: 0 | S213: 0 | T213: 0 | U213: 0 | V213: 0.9 | W213: 0.7 | X213: 50 | Y213: 146 | Z213: 120 | AA213: 14 | AB213: 95 | AC213: 0.1 | AD213: 20 | AE213: 10 | AF213: 22 | AG213: 0 | AH213: 0.03 | AI213: 0.17 | AJ213: 0.1 | AK213: 0.8 | AL213: 0.7 | AM213: 0 | AN213: 135 | AO213: 160 | AP213: 277 | AQ213: 240 | AR213: 71 | AS213: 110 | AT213: 43 | AU213: 141 | AV213: 106 | AW213: 105 | AX213: 216 | AY213: 78 | AZ213: 46 | BA213: 506 | BB213: 0 | BC213: 272 | BD213: 185 | BE213: 155 | BF213: 20 | BG213: 0.1 | BH213: 0.07 | BI213: 0.04 | BJ213: 0.08 | BK213: 0.09 | BL213: 0.45 | BM213: 0.03 | BN213: 0.56 | BO213: 0.02 | BP213: 0.31 | BQ213: 0.04 | BR213: 0 | BS213: 0 | BT213: 0.04 | BU213: 0.08 | BV213: 0.69 | BW213: 0.01 | BX213: 0 | BY213: 0.02 | BZ213: 0.03 | CA213: 0.08 | CB213: 0 | CC213: 0 | CD213: 0 | CE213: 88.3 | CF213: 21.67 | CH213: 0.91 | CI213: 0.77
... 109 more rows

Sheet Dop
A1: Дата составления | B1: 2025-01-20
A2: Дата печати | B2: 2025-01-24T11:42:50
A3: Группа | B3: Ясли
A4: Физ.Норма | B4: СанПиН 2.3/2.4.3590-20 1-3 года
B5: 1
B6: 29.01.2025
